VENDOR NAME,EXPENSE CATEGORY,PAYMENT AMOUNT,PAYMENT DATE
CITY OF CHICAGO,Misc. Expenditures,6855.2,6/6/2018
"*ABC HUMANE WILDLIFE CONTROL & PREVENTION, INC.",Maintenance of Buildings,21432.5,1/2/2018
"*ABC HUMANE WILDLIFE CONTROL & PREVENTION, INC.",Maintenance of Equipment,2375,1/8/2018
"*ABC HUMANE WILDLIFE CONTROL & PREVENTION, INC.",Revenue Vehicle General Servicing,1481,1/22/2018
"*ABC HUMANE WILDLIFE CONTROL & PREVENTION, INC.",Revenue Vehicle General Servicing,1431.5,1/25/2018
"*ABC HUMANE WILDLIFE CONTROL & PREVENTION, INC.",Maintenance of Buildings,22113,1/30/2018
"*ABC HUMANE WILDLIFE CONTROL & PREVENTION, INC.",Revenue Vehicle General Servicing,1073,1/30/2018
"*ABC HUMANE WILDLIFE CONTROL & PREVENTION, INC.",Maintenance of Equipment,1250,2/5/2018
"*ABC HUMANE WILDLIFE CONTROL & PREVENTION, INC.",Revenue Vehicle General Servicing,2405.5,2/8/2018
"*ABC HUMANE WILDLIFE CONTROL & PREVENTION, INC.",Revenue Vehicle General Servicing,2155.5,2/20/2018
"*ABC HUMANE WILDLIFE CONTROL & PREVENTION, INC.",Maintenance of Buildings,22000,2/21/2018
"*ABC HUMANE WILDLIFE CONTROL & PREVENTION, INC.",Maintenance of Equipment,1125,3/1/2018
"*ABC HUMANE WILDLIFE CONTROL & PREVENTION, INC.",Revenue Vehicle General Servicing,424.5,3/1/2018
"*ABC HUMANE WILDLIFE CONTROL & PREVENTION, INC.",Maintenance of Buildings,21975,3/6/2018
"*ABC HUMANE WILDLIFE CONTROL & PREVENTION, INC.",Maintenance of Buildings,1000,3/28/2018
"*ABC HUMANE WILDLIFE CONTROL & PREVENTION, INC.",Maintenance of Equipment,500,3/28/2018
"*ABC HUMANE WILDLIFE CONTROL & PREVENTION, INC.",Maintenance of Equipment,875,3/29/2018
"*ABC HUMANE WILDLIFE CONTROL & PREVENTION, INC.",Revenue Vehicle General Servicing,1573,3/29/2018
"*ABC HUMANE WILDLIFE CONTROL & PREVENTION, INC.",Maintenance of Buildings,19572.5,4/27/2018
"*ABC HUMANE WILDLIFE CONTROL & PREVENTION, INC.",Maintenance of Buildings,19402.5,5/3/2018
"*ABC HUMANE WILDLIFE CONTROL & PREVENTION, INC.",Maintenance of Equipment,1875,5/3/2018
"*ABC HUMANE WILDLIFE CONTROL & PREVENTION, INC.",Maintenance of Equipment,250,5/4/2018
"*ABC HUMANE WILDLIFE CONTROL & PREVENTION, INC.",Maintenance of Equipment,1875,5/31/2018
"*ABC HUMANE WILDLIFE CONTROL & PREVENTION, INC.",Revenue Vehicle General Servicing,1589.5,6/8/2018
"*ABC HUMANE WILDLIFE CONTROL & PREVENTION, INC.",Maintenance of Equipment,2125,7/31/2018
"*ABC HUMANE WILDLIFE CONTROL & PREVENTION, INC.",Revenue Vehicle General Servicing,1514,8/15/2018
"*ABC HUMANE WILDLIFE CONTROL & PREVENTION, INC.",Maintenance of Buildings,6500,8/20/2018
"*ABC HUMANE WILDLIFE CONTROL & PREVENTION, INC.",Maintenance of Buildings,21717.5,9/20/2018
"*ABC HUMANE WILDLIFE CONTROL & PREVENTION, INC.",Maintenance of Equipment,4875,9/20/2018
"*ABC HUMANE WILDLIFE CONTROL & PREVENTION, INC.",Maintenance of Buildings,40682.5,9/24/2018
"*ABC HUMANE WILDLIFE CONTROL & PREVENTION, INC.",Revenue Vehicle General Servicing,1872.5,9/24/2018
"*ABC HUMANE WILDLIFE CONTROL & PREVENTION, INC.",Maintenance of Buildings,20895,9/26/2018
"*ABC HUMANE WILDLIFE CONTROL & PREVENTION, INC.",Maintenance of Buildings,6500,10/3/2018
"*ABC HUMANE WILDLIFE CONTROL & PREVENTION, INC.",Revenue Vehicle General Servicing,865.5,10/3/2018
"*ABC HUMANE WILDLIFE CONTROL & PREVENTION, INC.",Maintenance of Buildings,400,10/10/2018
"*ABC HUMANE WILDLIFE CONTROL & PREVENTION, INC.",Maintenance of Buildings,1500,11/1/2018
"*ABC HUMANE WILDLIFE CONTROL & PREVENTION, INC.",Maintenance of Buildings,7665.99,11/2/2018
"*ABC HUMANE WILDLIFE CONTROL & PREVENTION, INC.",Maintenance of Buildings,1500,11/6/2018
"*ABC HUMANE WILDLIFE CONTROL & PREVENTION, INC.",Maintenance of Buildings,23628,11/13/2018
"*ABC HUMANE WILDLIFE CONTROL & PREVENTION, INC.",Maintenance of Buildings,3250,11/19/2018
"*ABC HUMANE WILDLIFE CONTROL & PREVENTION, INC.",Maintenance of Buildings,41432.5,11/20/2018
"*ABC HUMANE WILDLIFE CONTROL & PREVENTION, INC.",Revenue Vehicle General Servicing,1165,11/20/2018
"*ABC HUMANE WILDLIFE CONTROL & PREVENTION, INC.",Maintenance of Buildings,12836.2,11/28/2018
"*ABC HUMANE WILDLIFE CONTROL & PREVENTION, INC.",Maintenance of Buildings,20137.5,11/29/2018
"*ABC HUMANE WILDLIFE CONTROL & PREVENTION, INC.",Revenue Vehicle General Servicing,441,11/29/2018
"*ABC HUMANE WILDLIFE CONTROL & PREVENTION, INC.",Maintenance of Buildings,3250,11/30/2018
"*ABC HUMANE WILDLIFE CONTROL & PREVENTION, INC.",Maintenance of Buildings,3250,12/13/2018
"*ABC HUMANE WILDLIFE CONTROL & PREVENTION, INC.",Revenue Vehicle General Servicing,141.5,12/21/2018
"*ABC HUMANE WILDLIFE CONTROL & PREVENTION, INC.",Maintenance of Buildings,21882.5,12/31/2018
"*ALLPOINTS SECURITY AND DETECTIVE, INC.",Administrative Support,19864.16,1/5/2018
"*ALLPOINTS SECURITY AND DETECTIVE, INC.",Administrative Support,19670.53,1/19/2018
"*ALLPOINTS SECURITY AND DETECTIVE, INC.",Administrative Support,19442.64,2/2/2018
"*ALLPOINTS SECURITY AND DETECTIVE, INC.",Administrative Support,10888.84,2/16/2018
"*ALLPOINTS SECURITY AND DETECTIVE, INC.",Administrative Support,8815.86,2/23/2018
"*ALLPOINTS SECURITY AND DETECTIVE, INC.",Administrative Support,19693.31,3/2/2018
"*ALLPOINTS SECURITY AND DETECTIVE, INC.",Administrative Support,20372.46,3/19/2018
"*ALLPOINTS SECURITY AND DETECTIVE, INC.",Administrative Support,20686.62,4/10/2018
"*ALLPOINTS SECURITY AND DETECTIVE, INC.",Administrative Support,20587.62,4/13/2018
"*ALLPOINTS SECURITY AND DETECTIVE, INC.",Administrative Support,20686.62,4/27/2018
"*ALLPOINTS SECURITY AND DETECTIVE, INC.",Administrative Support,21788,5/11/2018
"*ALLPOINTS SECURITY AND DETECTIVE, INC.",Administrative Support,13080.38,5/25/2018
"*ALLPOINTS SECURITY AND DETECTIVE, INC.",Administrative Support,22196.38,6/8/2018
"*ALLPOINTS SECURITY AND DETECTIVE, INC.",Administrative Support,21800.38,6/22/2018
"*ALLPOINTS SECURITY AND DETECTIVE, INC.",Administrative Support,22020,7/6/2018
"*ALLPOINTS SECURITY AND DETECTIVE, INC.",Administrative Support,22382,7/20/2018
"*ALLPOINTS SECURITY AND DETECTIVE, INC.",Administrative Support,24392.58,8/3/2018
"*ALLPOINTS SECURITY AND DETECTIVE, INC.",Administrative Support,26191.96,9/4/2018
"*ALLPOINTS SECURITY AND DETECTIVE, INC.",Administrative Support,8646.92,9/14/2018
"*ALLPOINTS SECURITY AND DETECTIVE, INC.",Administrative Support,37578.5,9/19/2018
"*ALLPOINTS SECURITY AND DETECTIVE, INC.",Administrative Support,8757.12,9/21/2018
"*ALLPOINTS SECURITY AND DETECTIVE, INC.",Administrative Support,23409.14,10/1/2018
"*ALLPOINTS SECURITY AND DETECTIVE, INC.",Administrative Support,23021.37,10/12/2018
"*ALLPOINTS SECURITY AND DETECTIVE, INC.",Administrative Support,22085.01,10/26/2018
"*ALLPOINTS SECURITY AND DETECTIVE, INC.",Administrative Support,25548.29,11/9/2018
"*ALLPOINTS SECURITY AND DETECTIVE, INC.",Administrative Support,20835.12,11/23/2018
"*ALLPOINTS SECURITY AND DETECTIVE, INC.",Administrative Support,20934.13,12/7/2018
"*ALLPOINTS SECURITY AND DETECTIVE, INC.",Administrative Support,21243.61,12/21/2018
"*AMERICAN SURVEYING & ENGINEERING, PC",Administrative Support,3859.7,12/21/2018
"*ANDERSON & SHAH ROOFING, INC.",Maintenance of Buildings,105111.6,1/2/2018
"*ANDERSON & SHAH ROOFING, INC.",Maintenance of Buildings,2260.27,1/4/2018
"*ANDERSON & SHAH ROOFING, INC.",Maintenance of Buildings,5336.4,1/11/2018
"*ANDERSON & SHAH ROOFING, INC.",Maintenance of Buildings,12071.39,2/1/2018
"*ANDERSON & SHAH ROOFING, INC.",Maintenance of Buildings,1237,2/8/2018
"*ANDERSON & SHAH ROOFING, INC.",Maintenance of Buildings,12301.32,2/14/2018
"*ANDERSON & SHAH ROOFING, INC.",Maintenance of Buildings,32134.38,2/15/2018
"*ANDERSON & SHAH ROOFING, INC.",Maintenance of Buildings,12815.94,3/28/2018
"*ANDERSON & SHAH ROOFING, INC.",Maintenance of Buildings,8387.93,3/29/2018
"*ANDERSON & SHAH ROOFING, INC.",Maintenance of Buildings,4763.41,4/4/2018
"*ANDERSON & SHAH ROOFING, INC.",Maintenance of Buildings,41861.6,4/12/2018
"*ANDERSON & SHAH ROOFING, INC.",Maintenance of Buildings,4095.06,4/17/2018
"*ANDERSON & SHAH ROOFING, INC.",Maintenance of Buildings,3211.16,4/20/2018
"*ANDERSON & SHAH ROOFING, INC.",Maintenance of Buildings,9597.99,6/14/2018
"*ANDERSON & SHAH ROOFING, INC.",Maintenance of Buildings,19954.81,6/21/2018
"*ANDERSON & SHAH ROOFING, INC.",Maintenance of Buildings,2122.2,6/22/2018
"*ANDERSON & SHAH ROOFING, INC.",Maintenance of Buildings,23212.98,7/5/2018
"*ANDERSON & SHAH ROOFING, INC.",Maintenance of Buildings,10581.69,7/18/2018
"*ANDERSON & SHAH ROOFING, INC.",Contract Construction,23870,7/19/2018
"*ANDERSON & SHAH ROOFING, INC.",Contract Construction,6643,7/26/2018
"*ANDERSON & SHAH ROOFING, INC.",Contract Construction,22842.5,8/1/2018
"*ANDERSON & SHAH ROOFING, INC.",Maintenance of Buildings,4354.56,8/8/2018
"*ANDERSON & SHAH ROOFING, INC.",Contract Construction,237320.2,8/23/2018
"*ANDERSON & SHAH ROOFING, INC.",Maintenance of Buildings,4353.29,9/4/2018
"*ANDERSON & SHAH ROOFING, INC.",Maintenance of Buildings,7658.7,11/13/2018
"*ATLAS & ASSOCIATES, INC.",Vehicle Rehab,100620,2/23/2018
"*ATLAS & ASSOCIATES, INC.",Maintenance of Equipment,12790.68,3/8/2018
"*ATLAS & ASSOCIATES, INC.",Maintenance of Equipment,24623.95,7/10/2018
"*ATLAS & ASSOCIATES, INC.",Maintenance of Equipment,3605.12,8/10/2018
"*ATLAS & ASSOCIATES, INC.",Maintenance of Equipment,12013.78,8/24/2018
"*ATLAS & ASSOCIATES, INC.",Maintenance of Equipment,28769.91,10/26/2018
"*ATLAS & ASSOCIATES, INC.",Maintenance of Equipment,5016.9,10/30/2018
"*BARRICADE LITES, INC.",Maintenance of Structures,5208.98,10/25/2018
"*BARRICADE LITES, INC.",Maintenance of Structures,8082.12,11/13/2018
"*BARRICADE LITES, INC.",Maintenance of Structures,198.74,11/21/2018
*CHICAGO ADVISORS LLC,Consulting Services,21580,1/10/2018
*CHICAGO ADVISORS LLC,Consulting Services,17745,2/12/2018
*CHICAGO ADVISORS LLC,Consulting Services,10530,4/16/2018
*CHICAGO ADVISORS LLC,Consulting Services,20800,5/7/2018
*CHICAGO ADVISORS LLC,Consulting Services,21840,5/22/2018
*CHICAGO ADVISORS LLC,Consulting Services,22685,7/10/2018
*CHICAGO ADVISORS LLC,Consulting Services,23465,8/7/2018
*CHICAGO ADVISORS LLC,Consulting Services,18720,9/5/2018
*CHICAGO ADVISORS LLC,Consulting Services,23400,10/4/2018
*CHICAGO ADVISORS LLC,Consulting Services,3770,10/25/2018
*COLETTE HOLT & ASSOCIATES,Other Consulting,20615,3/9/2018
*COLETTE HOLT & ASSOCIATES,Other Consulting,23140,4/25/2018
*COLETTE HOLT & ASSOCIATES,Other Consulting,22385,5/3/2018
*COLETTE HOLT & ASSOCIATES,Other Consulting,31960,6/4/2018
*COLETTE HOLT & ASSOCIATES,Consulting Services,35785.74,6/19/2018
*COLETTE HOLT & ASSOCIATES,Other Consulting,1900,6/19/2018
*COLETTE HOLT & ASSOCIATES,Consulting Services,30675,7/26/2018
*COLETTE HOLT & ASSOCIATES,Consulting Services,30460,9/13/2018
*COLETTE HOLT & ASSOCIATES,Consulting Services,50760,10/4/2018
"*CREA CONSTRUCTION, INC.",Contract Construction,179000,7/3/2018
*CSI 3000 Inc,Maintenance of Buildings,8871.4,5/29/2018
*CSI 3000 Inc,Maintenance of Buildings,15990,6/5/2018
"*DIGBY'S DETECTIVE & SECURITY AGENCY, INC.",Security Rail,185527.93,1/24/2018
"*DIGBY'S DETECTIVE & SECURITY AGENCY, INC.",Security Rail,48702.25,2/14/2018
"*DIGBY'S DETECTIVE & SECURITY AGENCY, INC.",Security Rail,5217.1,3/9/2018
"*DIGBY'S DETECTIVE & SECURITY AGENCY, INC.",Security Rail,48199.77,3/13/2018
"*DIGBY'S DETECTIVE & SECURITY AGENCY, INC.",Security Rail,48335.21,3/28/2018
"*DIGBY'S DETECTIVE & SECURITY AGENCY, INC.",Security Rail,95926.85,4/5/2018
"*DIGBY'S DETECTIVE & SECURITY AGENCY, INC.",Security Rail,91140.08,5/3/2018
"*DIGBY'S DETECTIVE & SECURITY AGENCY, INC.",Security Rail,46151.15,5/9/2018
"*DIGBY'S DETECTIVE & SECURITY AGENCY, INC.",Security Rail,46059.68,5/25/2018
"*DIGBY'S DETECTIVE & SECURITY AGENCY, INC.",Security Rail,45551.85,6/12/2018
"*DIGBY'S DETECTIVE & SECURITY AGENCY, INC.",Security Rail,46051.96,6/21/2018
"*DIGBY'S DETECTIVE & SECURITY AGENCY, INC.",Security Rail,47925.52,7/13/2018
"*DIGBY'S DETECTIVE & SECURITY AGENCY, INC.",Security Rail,90120.91,8/7/2018
"*DIGBY'S DETECTIVE & SECURITY AGENCY, INC.",Security Rail,47771.72,9/18/2018
"*DIGBY'S DETECTIVE & SECURITY AGENCY, INC.",Security Rail,91690.37,9/26/2018
"*DIGBY'S DETECTIVE & SECURITY AGENCY, INC.",Security Rail,47604.6,10/24/2018
"*DIGBY'S DETECTIVE & SECURITY AGENCY, INC.",Security Rail,49794.46,10/30/2018
"*DIGBY'S DETECTIVE & SECURITY AGENCY, INC.",Security Rail,46551.49,11/29/2018
"*DIGBY'S DETECTIVE & SECURITY AGENCY, INC.",Security Rail,99025.27,12/6/2018
"*FIRECO, INC.",Maintenance of Buildings,1375,1/4/2018
"*FIRECO, INC.",Maintenance of Buildings,3200,1/11/2018
"*FIRECO, INC.",Maintenance of Buildings,77825,1/23/2018
"*FIRECO, INC.",Maintenance of Buildings,1400,1/25/2018
"*FIRECO, INC.",Maintenance of Buildings,2475,2/6/2018
"*FIRECO, INC.",Maintenance of Buildings,8105,2/15/2018
"*FIRECO, INC.",Maintenance of Buildings,2745,2/20/2018
"*FIRECO, INC.",Maintenance of Buildings,23989,3/6/2018
"*FIRECO, INC.",Maintenance of Buildings,3740,3/13/2018
"*FIRECO, INC.",Maintenance of Buildings,9925,3/15/2018
"*FIRECO, INC.",Maintenance of Buildings,2250,5/8/2018
"*FIRECO, INC.",Maintenance of Buildings,2480,5/15/2018
"*FIRECO, INC.",Maintenance of Buildings,4930,5/24/2018
"*FIRECO, INC.",Maintenance of Buildings,5300,6/5/2018
"*FIRECO, INC.",Maintenance of Buildings,1630,7/24/2018
"*FIRECO, INC.",Maintenance of Buildings,6155,8/14/2018
"*FIRECO, INC.",Maintenance of Buildings,2720,9/6/2018
"*FIRECO, INC.",Maintenance of Buildings,2770,10/16/2018
"*FIRECO, INC.",Maintenance of Buildings,1750,10/19/2018
"*FIRECO, INC.",Maintenance of Buildings,51385,10/31/2018
"*FIRECO, INC.",Maintenance of Buildings,3675,11/2/2018
"*FIRECO, INC.",Maintenance of Buildings,1100,11/6/2018
"*FIRECO, INC.",Maintenance of Buildings,5725,11/20/2018
"*FIRECO, INC.",Maintenance of Buildings,11240,12/12/2018
"*FYI & ASSOCIATES, INC.",Maintenance of Buildings,19747.52,1/3/2018
"*FYI & ASSOCIATES, INC.",Maintenance of Buildings,19747.52,2/5/2018
"*FYI & ASSOCIATES, INC.",Maintenance of Buildings,19747.52,3/8/2018
"*FYI & ASSOCIATES, INC.",Maintenance of Buildings,19747.52,4/4/2018
"*FYI & ASSOCIATES, INC.",Maintenance of Buildings,19747.52,5/4/2018
"*FYI & ASSOCIATES, INC.",Maintenance of Buildings,19747.52,6/1/2018
"*FYI & ASSOCIATES, INC.",Maintenance of Buildings,19747.52,7/3/2018
"*FYI & ASSOCIATES, INC.",Maintenance of Buildings,19747.52,8/2/2018
"*FYI & ASSOCIATES, INC.",Maintenance of Buildings,20537.42,9/4/2018
"*FYI & ASSOCIATES, INC.",Maintenance of Buildings,20537.42,10/3/2018
"*FYI & ASSOCIATES, INC.",Maintenance of Buildings,20537.42,11/5/2018
"*FYI & ASSOCIATES, INC.",Maintenance of Buildings,20537.42,12/3/2018
*GREAT LAKES METALS CORPORATION,Maintenance of Rail Stations,1410,2/22/2018
*HARTMAN PUBLISHING GROUP LTD / N'DIGO,Marketing,2500,5/8/2018
*HI-TEK ENVIRONMENTAL- d/b/a STAT,Management,335,1/26/2018
*HI-TEK ENVIRONMENTAL- d/b/a STAT,Management,612,4/6/2018
*HI-TEK ENVIRONMENTAL- d/b/a STAT,Management,36,4/10/2018
*HI-TEK ENVIRONMENTAL- d/b/a STAT,Management,57,8/14/2018
*HI-TEK ENVIRONMENTAL- d/b/a STAT,Consulting Services,105,10/3/2018
*HI-TEK ENVIRONMENTAL- d/b/a STAT,Management,621,10/3/2018
*HIGHWAY SAFETY CORPORATON,Maintenance of Track & Roadway,6663.5,1/22/2018
*HIGHWAY SAFETY CORPORATON,Maintenance of Buildings,3862.5,2/1/2018
*HIGHWAY SAFETY CORPORATON,Maintenance of Buildings,3828.5,3/1/2018
*HIGHWAY SAFETY CORPORATON,Maintenance of Track & Roadway,3318,3/2/2018
*HIGHWAY SAFETY CORPORATON,Maintenance of Buildings,10000,4/19/2018
*HIGHWAY SAFETY CORPORATON,Maintenance of Track & Roadway,3592,4/27/2018
*HIGHWAY SAFETY CORPORATON,Maintenance of Structures,5971.88,7/16/2018
*INSPIRED CATERING & EVENTS,Administrative Support,1725,5/10/2018
*INSPIRED CATERING & EVENTS,Administrative Support,165,5/16/2018
*J.P. SIMONS & COMPANY,Maintenance of Buildings,2728.23,1/2/2018
*J.P. SIMONS & COMPANY,Maintenance of Equipment,28263.14,1/2/2018
*J.P. SIMONS & COMPANY,Maintenance of Escalators,776.8,1/2/2018
*J.P. SIMONS & COMPANY,Maintenance of Lighting,91.12,1/2/2018
*J.P. SIMONS & COMPANY,Maintenance of Equipment,8389.4,1/3/2018
*J.P. SIMONS & COMPANY,Maintenance of Buildings,4795.81,1/9/2018
*J.P. SIMONS & COMPANY,Maintenance of Equipment,2223.5,1/9/2018
*J.P. SIMONS & COMPANY,Maintenance of Buildings,2719.68,1/11/2018
*J.P. SIMONS & COMPANY,Maintenance of Equipment,1382.21,1/11/2018
*J.P. SIMONS & COMPANY,Maintenance of Escalators,179.94,1/11/2018
*J.P. SIMONS & COMPANY,Maintenance of Buildings,4062.02,1/16/2018
*J.P. SIMONS & COMPANY,Maintenance of Equipment,2399.31,1/16/2018
*J.P. SIMONS & COMPANY,Maintenance of Escalators,493.58,1/16/2018
*J.P. SIMONS & COMPANY,Maintenance of Track & Roadway-Electrical,38304,1/16/2018
*J.P. SIMONS & COMPANY,Maintenance of Escalators,486,1/24/2018
*J.P. SIMONS & COMPANY,Equipment Purchases,12154.77,1/31/2018
*J.P. SIMONS & COMPANY,Maintenance of Buildings,3717.35,1/31/2018
*J.P. SIMONS & COMPANY,Maintenance of Equipment,6615.21,1/31/2018
*J.P. SIMONS & COMPANY,Maintenance of Escalators,742.5,1/31/2018
*J.P. SIMONS & COMPANY,Vehicle Rehab,21829.5,1/31/2018
*J.P. SIMONS & COMPANY,Maintenance of Buildings,5115.07,2/6/2018
*J.P. SIMONS & COMPANY,Maintenance of Equipment,8418.92,2/6/2018
*J.P. SIMONS & COMPANY,Maintenance of Lighting,1262.5,2/6/2018
*J.P. SIMONS & COMPANY,Maintenance of Rail Stations,432.32,2/6/2018
*J.P. SIMONS & COMPANY,Maintenance of Buildings,80605.4,2/8/2018
*J.P. SIMONS & COMPANY,Maintenance of Equipment,66.03,2/8/2018
*J.P. SIMONS & COMPANY,Maintenance of Buildings,32782.83,2/14/2018
*J.P. SIMONS & COMPANY,Maintenance of Equipment,3097.7,2/14/2018
*J.P. SIMONS & COMPANY,Maintenance of Substations,7398.75,2/14/2018
*J.P. SIMONS & COMPANY,Maintenance of Equipment,758.9,2/20/2018
*J.P. SIMONS & COMPANY,Maintenance of Buildings,7636.77,2/22/2018
*J.P. SIMONS & COMPANY,Maintenance of Equipment,6834.44,2/22/2018
*J.P. SIMONS & COMPANY,Maintenance of Lighting,621.36,2/22/2018
*J.P. SIMONS & COMPANY,Maintenance of Rail Stations,1084,2/22/2018
*J.P. SIMONS & COMPANY,Maintenance of Buildings,3877.98,2/28/2018
*J.P. SIMONS & COMPANY,Maintenance of Equipment,4806.64,2/28/2018
*J.P. SIMONS & COMPANY,Maintenance of Lighting,1152.26,2/28/2018
*J.P. SIMONS & COMPANY,Maintenance of Equipment,398.4,3/1/2018
*J.P. SIMONS & COMPANY,Maintenance of Buildings,7382.95,3/6/2018
*J.P. SIMONS & COMPANY,Maintenance of Equipment,174.8,3/6/2018
*J.P. SIMONS & COMPANY,Maintenance of Buildings,3029.98,3/8/2018
*J.P. SIMONS & COMPANY,Maintenance of Equipment,2952.26,3/8/2018
*J.P. SIMONS & COMPANY,Maintenance of Lighting,5766,3/8/2018
*J.P. SIMONS & COMPANY,Maintenance of Rail Stations,4021.84,3/8/2018
*J.P. SIMONS & COMPANY,Maintenance of Equipment,234.44,3/13/2018
*J.P. SIMONS & COMPANY,Maintenance of Escalators,423.12,3/13/2018
*J.P. SIMONS & COMPANY,Maintenance of Buildings,12872.58,3/14/2018
*J.P. SIMONS & COMPANY,Maintenance of Equipment,11948.82,3/14/2018
*J.P. SIMONS & COMPANY,Maintenance of Track & Roadway-Electrical,5071.5,3/14/2018
*J.P. SIMONS & COMPANY,Maintenance of Buildings,13760.37,3/15/2018
*J.P. SIMONS & COMPANY,Maintenance of Equipment,2252.71,3/15/2018
*J.P. SIMONS & COMPANY,Maintenance of Rail Stations,797.98,3/15/2018
*J.P. SIMONS & COMPANY,Maintenance of Substations,18750,3/15/2018
*J.P. SIMONS & COMPANY,Maintenance of Track & Roadway-Electrical,3309.89,3/15/2018
*J.P. SIMONS & COMPANY,Equipment Purchases,11133.15,3/21/2018
*J.P. SIMONS & COMPANY,Maintenance of Buildings,24181.82,3/27/2018
*J.P. SIMONS & COMPANY,Maintenance of Equipment,2212.2,3/27/2018
*J.P. SIMONS & COMPANY,Maintenance of Lighting,2077.6,3/27/2018
*J.P. SIMONS & COMPANY,Equipment Purchases,54159.1,3/28/2018
*J.P. SIMONS & COMPANY,Maintenance of Buildings,582.6,3/29/2018
*J.P. SIMONS & COMPANY,Maintenance of Equipment,1222.9,3/29/2018
*J.P. SIMONS & COMPANY,Maintenance of Lighting,1690.8,3/29/2018
*J.P. SIMONS & COMPANY,Maintenance of Track & Roadway-Electrical,3208.35,3/29/2018
*J.P. SIMONS & COMPANY,Equipment Purchases,20850,4/4/2018
*J.P. SIMONS & COMPANY,Maintenance of Buildings,2543.71,4/10/2018
*J.P. SIMONS & COMPANY,Maintenance of Equipment,7788.43,4/10/2018
*J.P. SIMONS & COMPANY,Maintenance of Lighting,1164.3,4/10/2018
*J.P. SIMONS & COMPANY,Maintenance of Rail Stations,1939.46,4/10/2018
*J.P. SIMONS & COMPANY,Maintenance of Buildings,2326.42,4/11/2018
*J.P. SIMONS & COMPANY,Maintenance of Equipment,1284.11,4/11/2018
*J.P. SIMONS & COMPANY,Maintenance of Track & Roadway-Electrical,1050,4/11/2018
*J.P. SIMONS & COMPANY,Vehicle Rehab,19120.5,4/11/2018
*J.P. SIMONS & COMPANY,Maintenance of Buildings,12544.34,4/13/2018
*J.P. SIMONS & COMPANY,Maintenance of Equipment,1950.97,4/13/2018
*J.P. SIMONS & COMPANY,Maintenance of Lighting,536.8,4/13/2018
*J.P. SIMONS & COMPANY,Maintenance of Rail Stations,729,4/13/2018
*J.P. SIMONS & COMPANY,Maintenance of Buildings,5426.66,4/19/2018
*J.P. SIMONS & COMPANY,Maintenance of Equipment,4647.54,4/19/2018
*J.P. SIMONS & COMPANY,Maintenance of Track & Roadway-Electrical,1421.4,4/19/2018
*J.P. SIMONS & COMPANY,Maintenance of Equipment,548.13,4/20/2018
*J.P. SIMONS & COMPANY,Maintenance of Buildings,18818.44,4/26/2018
*J.P. SIMONS & COMPANY,Maintenance of Equipment,585.38,4/26/2018
*J.P. SIMONS & COMPANY,Maintenance of Lighting,2780.34,4/26/2018
*J.P. SIMONS & COMPANY,Maintenance of Rail Stations,594.79,4/26/2018
*J.P. SIMONS & COMPANY,Maintenance of Track & Roadway-Electrical,2545,4/26/2018
*J.P. SIMONS & COMPANY,Equipment Purchases,1235,4/27/2018
*J.P. SIMONS & COMPANY,Maintenance of Equipment,3534.02,5/3/2018
*J.P. SIMONS & COMPANY,Equipment Purchases,16576.83,5/4/2018
*J.P. SIMONS & COMPANY,Maintenance of Buildings,1336.27,5/8/2018
*J.P. SIMONS & COMPANY,Maintenance of Equipment,5344.02,5/8/2018
*J.P. SIMONS & COMPANY,Maintenance of Escalators,4316.4,5/8/2018
*J.P. SIMONS & COMPANY,Maintenance of Lighting,448.72,5/8/2018
*J.P. SIMONS & COMPANY,Maintenance of Rail Stations,1202.1,5/8/2018
*J.P. SIMONS & COMPANY,Maintenance of Track & Roadway-Electrical,926.5,5/8/2018
*J.P. SIMONS & COMPANY,Maintenance of Buildings,2297.37,5/15/2018
*J.P. SIMONS & COMPANY,Maintenance of Equipment,9087.03,5/15/2018
*J.P. SIMONS & COMPANY,Maintenance of Lighting,460,5/15/2018
*J.P. SIMONS & COMPANY,Maintenance of Track & Roadway-Electrical,1863.61,5/15/2018
*J.P. SIMONS & COMPANY,Maintenance of Buildings,2256.16,5/22/2018
*J.P. SIMONS & COMPANY,Maintenance of Equipment,384.9,5/22/2018
*J.P. SIMONS & COMPANY,Maintenance of Track & Roadway-Electrical,30324,5/22/2018
*J.P. SIMONS & COMPANY,Maintenance of Buildings,2167.3,5/23/2018
*J.P. SIMONS & COMPANY,Maintenance of Equipment,136,5/23/2018
*J.P. SIMONS & COMPANY,Maintenance of Track & Roadway-Electrical,7952,5/23/2018
*J.P. SIMONS & COMPANY,Maintenance of Buildings,7213.93,5/25/2018
*J.P. SIMONS & COMPANY,Maintenance of Equipment,3516.32,5/25/2018
*J.P. SIMONS & COMPANY,Maintenance of Lighting,2097.17,5/25/2018
*J.P. SIMONS & COMPANY,Equipment Purchases,53736.55,5/31/2018
*J.P. SIMONS & COMPANY,Maintenance of Buildings,2841.75,5/31/2018
*J.P. SIMONS & COMPANY,Maintenance of Equipment,2386.66,5/31/2018
*J.P. SIMONS & COMPANY,Maintenance of Lighting,16350.9,5/31/2018
*J.P. SIMONS & COMPANY,Maintenance of Rail Stations,423.02,5/31/2018
*J.P. SIMONS & COMPANY,Maintenance of Buildings,1172.15,6/5/2018
*J.P. SIMONS & COMPANY,Maintenance of Equipment,2201.64,6/5/2018
*J.P. SIMONS & COMPANY,Maintenance of Rail Stations,1420.66,6/5/2018
*J.P. SIMONS & COMPANY,Maintenance of Track & Roadway-Electrical,1112.7,6/5/2018
*J.P. SIMONS & COMPANY,Maintenance of Equipment,443.66,6/6/2018
*J.P. SIMONS & COMPANY,Maintenance of Buildings,2768.28,6/12/2018
*J.P. SIMONS & COMPANY,Maintenance of Buildings,1137.31,6/14/2018
*J.P. SIMONS & COMPANY,Maintenance of Equipment,2614.22,6/14/2018
*J.P. SIMONS & COMPANY,Maintenance of Track & Roadway-Electrical,1887.22,6/14/2018
*J.P. SIMONS & COMPANY,Maintenance of Buildings,6264.72,6/21/2018
*J.P. SIMONS & COMPANY,Maintenance of Equipment,1030.34,6/21/2018
*J.P. SIMONS & COMPANY,Maintenance of Lighting,2510.27,6/21/2018
*J.P. SIMONS & COMPANY,Maintenance of Rail Stations,182.08,6/21/2018
*J.P. SIMONS & COMPANY,Maintenance of Equipment,3633.4,6/27/2018
*J.P. SIMONS & COMPANY,Maintenance of Equipment,442.9,6/28/2018
*J.P. SIMONS & COMPANY,Maintenance of Track & Roadway-Electrical,6539.5,6/28/2018
*J.P. SIMONS & COMPANY,Maintenance of Buildings,3998.64,7/10/2018
*J.P. SIMONS & COMPANY,Maintenance of Equipment,1029.4,7/10/2018
*J.P. SIMONS & COMPANY,Maintenance of Rail Stations,112.42,7/10/2018
*J.P. SIMONS & COMPANY,Maintenance of Substations,832.36,7/10/2018
*J.P. SIMONS & COMPANY,Maintenance of Track & Roadway-Electrical,4351.69,7/10/2018
*J.P. SIMONS & COMPANY,Maintenance of Buildings,27480.26,7/12/2018
*J.P. SIMONS & COMPANY,Maintenance of Equipment,9980.84,7/12/2018
*J.P. SIMONS & COMPANY,Maintenance of Rail Stations,396.36,7/12/2018
*J.P. SIMONS & COMPANY,Maintenance of Buildings,2762.71,7/18/2018
*J.P. SIMONS & COMPANY,Maintenance of Equipment,187.75,7/18/2018
*J.P. SIMONS & COMPANY,Maintainance of Signal & Control Equipment,1270,7/25/2018
*J.P. SIMONS & COMPANY,Maintenance of Buildings,13098.85,7/25/2018
*J.P. SIMONS & COMPANY,Maintenance of Equipment,2925.07,7/25/2018
*J.P. SIMONS & COMPANY,Maintenance of Rail Stations,493.12,7/25/2018
*J.P. SIMONS & COMPANY,Maintenance of Track & Roadway,16718.64,7/25/2018
*J.P. SIMONS & COMPANY,Maintenance of Track & Roadway-Electrical,2212.75,7/25/2018
*J.P. SIMONS & COMPANY,Maintenance of Buildings,6015.64,7/31/2018
*J.P. SIMONS & COMPANY,Maintenance of Equipment,660,7/31/2018
*J.P. SIMONS & COMPANY,Maintenance of Escalators,729,7/31/2018
*J.P. SIMONS & COMPANY,Maintenance of Rail Stations,2935.59,7/31/2018
*J.P. SIMONS & COMPANY,Maintenance of Buildings,8540.07,8/9/2018
*J.P. SIMONS & COMPANY,Maintenance of Equipment,3443.96,8/9/2018
*J.P. SIMONS & COMPANY,Maintenance of Track & Roadway-Electrical,10178.4,8/9/2018
*J.P. SIMONS & COMPANY,Maintenance of Buildings,2007.5,8/14/2018
*J.P. SIMONS & COMPANY,Maintenance of Buildings,7050.39,8/16/2018
*J.P. SIMONS & COMPANY,Maintenance of Equipment,1052.22,8/16/2018
*J.P. SIMONS & COMPANY,Maintenance of Rail Stations,915,8/16/2018
*J.P. SIMONS & COMPANY,Maintenance of Buildings,3842.77,8/22/2018
*J.P. SIMONS & COMPANY,Maintenance of Equipment,4155.5,8/22/2018
*J.P. SIMONS & COMPANY,Maintenance of Buildings,990,8/28/2018
*J.P. SIMONS & COMPANY,Maintenance of Equipment,313.08,8/28/2018
*J.P. SIMONS & COMPANY,Maintenance of Rail Stations,466.06,8/28/2018
*J.P. SIMONS & COMPANY,Maintenance of Buildings,1592.79,8/30/2018
*J.P. SIMONS & COMPANY,Maintenance of Equipment,2004.25,8/30/2018
*J.P. SIMONS & COMPANY,Maintenance of Escalators,8596,8/30/2018
*J.P. SIMONS & COMPANY,Maintenance of Rail Stations,9819.02,8/30/2018
*J.P. SIMONS & COMPANY,Maintenance of Track & Roadway-Electrical,4807.16,8/30/2018
*J.P. SIMONS & COMPANY,Maintenance of Buildings,3481.86,9/4/2018
*J.P. SIMONS & COMPANY,Maintenance of Equipment,146.47,9/4/2018
*J.P. SIMONS & COMPANY,Maintenance of Escalators,429.65,9/4/2018
*J.P. SIMONS & COMPANY,Maintenance of Rail Stations,1054.14,9/4/2018
*J.P. SIMONS & COMPANY,Maintenance of Buildings,3862.25,9/11/2018
*J.P. SIMONS & COMPANY,Maintenance of Equipment,7932.84,9/11/2018
*J.P. SIMONS & COMPANY,Maintenance of Rail Stations,88.72,9/11/2018
*J.P. SIMONS & COMPANY,Maintenance of Rail Stations,323.06,9/12/2018
*J.P. SIMONS & COMPANY,Maintenance of Buildings,5783.32,9/13/2018
*J.P. SIMONS & COMPANY,Maintenance of Equipment,307,9/13/2018
*J.P. SIMONS & COMPANY,Maintenance of Rail Stations,704.63,9/13/2018
*J.P. SIMONS & COMPANY,Maintenance of Buildings,2733.88,9/18/2018
*J.P. SIMONS & COMPANY,Maintenance of Equipment,2364.99,9/18/2018
*J.P. SIMONS & COMPANY,Maintenance of Rail Stations,878.74,9/18/2018
*J.P. SIMONS & COMPANY,Maintenance of Substations,2761.32,9/18/2018
*J.P. SIMONS & COMPANY,Maintenance of Track & Roadway-Electrical,814.24,9/18/2018
*J.P. SIMONS & COMPANY,Maintenance of Buildings,1889.47,9/20/2018
*J.P. SIMONS & COMPANY,Maintenance of Equipment,1916,9/20/2018
*J.P. SIMONS & COMPANY,Maintenance of Buildings,4098.44,9/25/2018
*J.P. SIMONS & COMPANY,Maintenance of Equipment,1601.92,9/25/2018
*J.P. SIMONS & COMPANY,Maintenance of Track & Roadway-Electrical,2376.19,9/25/2018
*J.P. SIMONS & COMPANY,Maintenance of Buildings,4328,9/27/2018
*J.P. SIMONS & COMPANY,Maintenance of Escalators,2058,9/27/2018
*J.P. SIMONS & COMPANY,Maintenance of Buildings,2448.32,10/3/2018
*J.P. SIMONS & COMPANY,Maintenance of Equipment,1605.86,10/3/2018
*J.P. SIMONS & COMPANY,Maintenance of Buildings,4151.86,10/9/2018
*J.P. SIMONS & COMPANY,Maintenance of Equipment,239.96,10/9/2018
*J.P. SIMONS & COMPANY,Maintenance of Escalators,4165.3,10/9/2018
*J.P. SIMONS & COMPANY,Maintenance of Track & Roadway-Electrical,17301.44,10/9/2018
*J.P. SIMONS & COMPANY,Maintenance of Buildings,4721.9,10/11/2018
*J.P. SIMONS & COMPANY,Maintenance of Equipment,1478.4,10/11/2018
*J.P. SIMONS & COMPANY,Maintenance of Buildings,2818.54,10/16/2018
*J.P. SIMONS & COMPANY,Maintenance of Equipment,1140.52,10/16/2018
*J.P. SIMONS & COMPANY,Maintenance of Rail Stations,351.72,10/16/2018
*J.P. SIMONS & COMPANY,Maintenance of Track & Roadway-Electrical,1427.18,10/16/2018
*J.P. SIMONS & COMPANY,Maintenance of Buildings,4716.71,10/18/2018
*J.P. SIMONS & COMPANY,Maintenance of Equipment,4464.33,10/18/2018
*J.P. SIMONS & COMPANY,Maintenance of Track & Roadway-Electrical,5533.06,10/18/2018
*J.P. SIMONS & COMPANY,Maintenance of Buildings,1432.24,10/23/2018
*J.P. SIMONS & COMPANY,Maintenance of Equipment,4889.17,10/23/2018
*J.P. SIMONS & COMPANY,Maintain/Repair Communications  Equip,286624,10/25/2018
*J.P. SIMONS & COMPANY,Maintenance of Buildings,1783.95,10/25/2018
*J.P. SIMONS & COMPANY,Maintenance of Equipment,1258.5,10/25/2018
*J.P. SIMONS & COMPANY,Maintenance of Escalators,424.8,10/25/2018
*J.P. SIMONS & COMPANY,Maintenance of Track & Roadway-Electrical,39000,10/25/2018
*J.P. SIMONS & COMPANY,Maintenance of Buildings,271.25,10/30/2018
*J.P. SIMONS & COMPANY,Maintenance of Equipment,569.94,10/30/2018
*J.P. SIMONS & COMPANY,Maintenance of Track & Roadway-Electrical,30.16,10/30/2018
*J.P. SIMONS & COMPANY,Maintenance of Buildings,1525,11/1/2018
*J.P. SIMONS & COMPANY,Maintenance of Equipment,4224.84,11/1/2018
*J.P. SIMONS & COMPANY,Maintenance of Substations,2250,11/1/2018
*J.P. SIMONS & COMPANY,Maintenance of Buildings,2367.87,11/6/2018
*J.P. SIMONS & COMPANY,Maintenance of Equipment,2276.44,11/6/2018
*J.P. SIMONS & COMPANY,Maintenance of Buildings,3153.08,11/7/2018
*J.P. SIMONS & COMPANY,Maintenance of Buildings,220,11/8/2018
*J.P. SIMONS & COMPANY,Maintenance of Equipment,398.4,11/8/2018
*J.P. SIMONS & COMPANY,Maintenance of Track & Roadway-Electrical,199.75,11/8/2018
*J.P. SIMONS & COMPANY,Maintenance of Buildings,611.88,11/9/2018
*J.P. SIMONS & COMPANY,Maintenance of Equipment,1541.94,11/9/2018
*J.P. SIMONS & COMPANY,Maintenance of Escalators,1925.95,11/9/2018
*J.P. SIMONS & COMPANY,Maintenance of Buildings,555.88,11/13/2018
*J.P. SIMONS & COMPANY,Maintenance of Equipment,192,11/13/2018
*J.P. SIMONS & COMPANY,Maintain/Repair Communications  Equip,64586.4,11/14/2018
*J.P. SIMONS & COMPANY,Maintenance of Escalators,498,11/14/2018
*J.P. SIMONS & COMPANY,Maintenance of Buildings,5878.34,11/15/2018
*J.P. SIMONS & COMPANY,Maintenance of Equipment,932.78,11/15/2018
*J.P. SIMONS & COMPANY,Maintenance of Track & Roadway-Electrical,1495.1,11/15/2018
*J.P. SIMONS & COMPANY,Maintenance of Equipment,2302.45,11/21/2018
*J.P. SIMONS & COMPANY,Maintenance of Buildings,2229.84,11/23/2018
*J.P. SIMONS & COMPANY,Maintenance of Equipment,6630.26,11/27/2018
*J.P. SIMONS & COMPANY,Equipment Purchases,24320.6,11/28/2018
*J.P. SIMONS & COMPANY,Maintenance of Equipment,802.17,11/28/2018
*J.P. SIMONS & COMPANY,Maintenance of Escalators,882,11/28/2018
*J.P. SIMONS & COMPANY,Equipment Purchases,27498.2,11/30/2018
*J.P. SIMONS & COMPANY,Maintenance of Buildings,3275.1,11/30/2018
*J.P. SIMONS & COMPANY,Maintenance of Buildings,1196,12/4/2018
*J.P. SIMONS & COMPANY,Maintenance of Equipment,972.54,12/4/2018
*J.P. SIMONS & COMPANY,Maintenance of Substations,3278.77,12/4/2018
*J.P. SIMONS & COMPANY,Maintenance of Track & Roadway-Electrical,341.6,12/4/2018
*J.P. SIMONS & COMPANY,Maintenance of Buildings,1178.75,12/5/2018
*J.P. SIMONS & COMPANY,Maintenance of Equipment,3028.2,12/5/2018
*J.P. SIMONS & COMPANY,Maintenance of Track & Roadway-Electrical,62072.3,12/5/2018
*J.P. SIMONS & COMPANY,Maintenance of Buildings,10478.5,12/6/2018
*J.P. SIMONS & COMPANY,Maintenance of Buildings,298,12/7/2018
*J.P. SIMONS & COMPANY,Maintain/Repair Communications  Equip,140960,12/11/2018
*J.P. SIMONS & COMPANY,Maintenance of Buildings,552.04,12/11/2018
*J.P. SIMONS & COMPANY,Maintenance of Escalators,177.12,12/11/2018
*J.P. SIMONS & COMPANY,Equipment Purchases,890,12/12/2018
*J.P. SIMONS & COMPANY,Maintenance of Equipment,365.64,12/12/2018
*J.P. SIMONS & COMPANY,Maintenance of Buildings,3956.16,12/13/2018
*J.P. SIMONS & COMPANY,Maintenance of Equipment,1023.08,12/13/2018
*J.P. SIMONS & COMPANY,Maintenance of Escalators,3580,12/13/2018
*J.P. SIMONS & COMPANY,Maintenance of Rail Stations,3018.12,12/13/2018
*J.P. SIMONS & COMPANY,Maintenance of Track & Roadway-Electrical,4178.78,12/18/2018
*J.P. SIMONS & COMPANY,Maintenance of Buildings,19476,12/26/2018
*J.P. SIMONS & COMPANY,Maintenance of Equipment,3449.3,12/26/2018
*J.P. SIMONS & COMPANY,Maintenance of Buildings,1394.18,12/28/2018
*J.P. SIMONS & COMPANY,Maintenance of Equipment,3598.96,12/28/2018
*J.P. SIMONS & COMPANY,Maintenance of Escalators,285,12/28/2018
*KOI COMPUTERS,Maintenance of Fare Collection Equip - Bus,4570,1/4/2018
*KOI COMPUTERS,Maintain/Repair Communications  Equip,4005,2/1/2018
*KOI COMPUTERS,Administrative Support,7132,4/5/2018
*KOI COMPUTERS,Equipment Purchases,27472,4/12/2018
*KOI COMPUTERS,Computer Operations,3250,4/25/2018
*KOI COMPUTERS,Management,19120,4/27/2018
*KOI COMPUTERS,Administrative Support,760,7/5/2018
*KOI COMPUTERS,Applications Support,22376,7/26/2018
*KOI COMPUTERS,Computer Operations,30656,7/30/2018
*KOI COMPUTERS,Administrative Support,2395,8/15/2018
*KOI COMPUTERS,Equipment Purchases,12228,11/13/2018
"*KOPICO, INC.",Payroll,2398,2/13/2018
"*KOPICO, INC.",Administrative Support,3617.4,9/25/2018
"*L. A. COURT REPORTERS, LLC",I&D Claims (Damage Reserve),108,2/1/2018
"*L. A. COURT REPORTERS, LLC",Administrative Support,367.4,4/23/2018
"*L. A. COURT REPORTERS, LLC",I&D Claims (Damage Reserve),129.15,4/24/2018
"*L. A. COURT REPORTERS, LLC",Consulting Services,308,5/3/2018
"*L. A. COURT REPORTERS, LLC",I&D Claims (Damage Reserve),223.2,12/7/2018
*L.A. REPORTING........,I&D Claims (Damage Reserve),258,3/7/2018
*L.A. REPORTING........,I&D Claims (Damage Reserve),793,3/9/2018
*L.A. REPORTING........,I&D Claims (Damage Reserve),262.5,8/3/2018
*L.A. REPORTING........,I&D Claims (Damage Reserve),330,9/11/2018
*M. WELLS PRINTING COMPANY,Marketing,1298,1/2/2018
*M. WELLS PRINTING COMPANY,Marketing,750,1/22/2018
*M. WELLS PRINTING COMPANY,Marketing,44375,3/12/2018
*M. WELLS PRINTING COMPANY,Marketing,5995,5/3/2018
*M. WELLS PRINTING COMPANY,Administrative Support,255,6/5/2018
*M. WELLS PRINTING COMPANY,Administrative Support,3298,7/19/2018
*M. WELLS PRINTING COMPANY,Marketing,34761,8/9/2018
"*MAY WOOD INDUSTRIES, INC.",Maintenance of Track & Roadway,15882.24,2/14/2018
"*MIDWAY OVERHEAD DOOR, INC.",Maintenance of Buildings,16499,1/2/2018
"*MIDWAY OVERHEAD DOOR, INC.",Maintenance of Buildings,6220,1/9/2018
"*MIDWAY OVERHEAD DOOR, INC.",Maintenance of Buildings,4950,1/31/2018
"*MIDWAY OVERHEAD DOOR, INC.",Maintenance of Buildings,4950,2/14/2018
"*MIDWAY OVERHEAD DOOR, INC.",Maintenance of Buildings,17534.75,3/7/2018
"*MIDWAY OVERHEAD DOOR, INC.",Maintenance of Buildings,27999.98,3/28/2018
"*MIDWAY OVERHEAD DOOR, INC.",Maintenance of Buildings,24688.75,4/3/2018
"*MIDWAY OVERHEAD DOOR, INC.",Maintenance of Buildings,26941.35,4/20/2018
"*MIDWAY OVERHEAD DOOR, INC.",Maintenance of Buildings,9499.75,5/18/2018
"*MIDWAY OVERHEAD DOOR, INC.",Maintenance of Buildings,16492.25,6/28/2018
"*MIDWAY OVERHEAD DOOR, INC.",Maintenance of Buildings,1265.36,8/7/2018
"*MIDWAY OVERHEAD DOOR, INC.",Maintenance of Buildings,22949.5,8/14/2018
"*MIDWAY OVERHEAD DOOR, INC.",Maintenance of Buildings,16499,8/29/2018
"*MIDWAY OVERHEAD DOOR, INC.",Maintenance of Buildings,3500,8/31/2018
"*MIDWAY OVERHEAD DOOR, INC.",Maintenance of Buildings,18500.8,9/21/2018
"*MIDWAY OVERHEAD DOOR, INC.",Maintenance of Buildings,2998.95,12/18/2018
"*MIDWAY OVERHEAD DOOR, INC.",Maintenance of Buildings,22497.75,12/20/2018
"*MORREALE PUBLIC AFFAIRS GROUP, INC.",Marketing,15000,4/26/2018
"*MULTILINGUAL CONNECTIONS, LLC",Marketing,248.82,1/4/2018
"*MULTILINGUAL CONNECTIONS, LLC",Marketing,55,2/22/2018
"*MULTILINGUAL CONNECTIONS, LLC",Marketing,55,3/7/2018
"*MULTILINGUAL CONNECTIONS, LLC",Marketing,504,4/26/2018
"*MULTILINGUAL CONNECTIONS, LLC",Marketing,55,5/24/2018
"*MULTILINGUAL CONNECTIONS, LLC",Marketing,55,7/12/2018
"*MULTILINGUAL CONNECTIONS, LLC",Marketing,55,9/20/2018
"*MULTILINGUAL CONNECTIONS, LLC",Marketing,55,10/3/2018
"*MULTILINGUAL CONNECTIONS, LLC",Marketing,55,12/5/2018
"*MULTILINGUAL CONNECTIONS, LLC",Consulting Services,617.66,12/19/2018
*NAK-MAN CORPORATION,Maintenance of Buildings,2542.8,1/25/2018
*NAK-MAN CORPORATION,Maintenance of Buildings,2542.8,2/15/2018
*NAK-MAN CORPORATION,Equipment Purchases,261325.8,4/16/2018
*NAK-MAN CORPORATION,Maintenance of Rail Stations,4621,6/5/2018
*NAK-MAN CORPORATION,Equipment Purchases,3729.6,6/22/2018
*NAK-MAN CORPORATION,Equipment Purchases,4204.8,7/12/2018
*NAK-MAN CORPORATION,Equipment Purchases,127250.28,7/24/2018
*NAK-MAN CORPORATION,Equipment Purchases,12022.56,7/26/2018
*NAK-MAN CORPORATION,Equipment Purchases,53037.6,10/9/2018
"*NSN EMPLOYER SERVICES, INC.",Policy Adminsitration,10491,2/8/2018
"*NSN EMPLOYER SERVICES, INC.",Policy Adminsitration,57.7,2/22/2018
"*NSN EMPLOYER SERVICES, INC.",Policy Adminsitration,20875,3/21/2018
"*NSN EMPLOYER SERVICES, INC.",Policy Adminsitration,10491,4/30/2018
"*NSN EMPLOYER SERVICES, INC.",Policy Adminsitration,10491,9/6/2018
"*NSN EMPLOYER SERVICES, INC.",Policy Adminsitration,69,9/18/2018
"*NSN EMPLOYER SERVICES, INC.",Policy Adminsitration,10491,10/30/2018
"*NSN EMPLOYER SERVICES, INC.",Policy Adminsitration,34.24,11/1/2018
"*OAKLEY CONSTRUCTION COMPANY, INC.",Contract Construction,25272.62,7/26/2018
"*OAKLEY CONSTRUCTION COMPANY, INC.",Contract Construction,13529.78,7/27/2018
"*PROGRESSIVE INDUSTRIES, INC",Equipment Purchases,31578.95,5/9/2018
"*PW ASSOCIATES, INC.",Drug & Alcohol Testing,3533.5,1/24/2018
"*PW ASSOCIATES, INC.",Drug & Alcohol Testing,1591,2/6/2018
"*PW ASSOCIATES, INC.",Drug & Alcohol Testing,5487.5,3/2/2018
*RAE PRODUCTS AND CHEMICALS CORPORATION,Maintenance of Equipment,566.91,1/26/2018
*RAE PRODUCTS AND CHEMICALS CORPORATION,Maintenance of Equipment,483.02,5/10/2018
*RAE PRODUCTS AND CHEMICALS CORPORATION,Maintenance of Equipment,271.5,5/16/2018
*RAE PRODUCTS AND CHEMICALS CORPORATION,Maintenance of Equipment,144.46,8/21/2018
*RAE PRODUCTS AND CHEMICALS CORPORATION,Maintenance of Rail Stations,1184.43,8/21/2018
*RAE PRODUCTS AND CHEMICALS CORPORATION,Maintenance of Rail Stations,2054.38,10/24/2018
*RAE PRODUCTS AND CHEMICALS CORPORATION,Maintenance of Rail Stations,4008.88,12/11/2018
*RAE PRODUCTS AND CHEMICALS CORPORATION,Maintenance of Rail Stations,227.12,12/27/2018
"*RINGOLD FINANCIAL MANAGEMENT SERVICES, INC.",Consulting Services,5329,1/12/2018
"*RINGOLD FINANCIAL MANAGEMENT SERVICES, INC.",Consulting Services,3976.5,2/9/2018
"*RINGOLD FINANCIAL MANAGEMENT SERVICES, INC.",Consulting Services,22357,3/9/2018
"*RINGOLD FINANCIAL MANAGEMENT SERVICES, INC.",Consulting Services,13344.5,4/4/2018
"*RINGOLD FINANCIAL MANAGEMENT SERVICES, INC.",Consulting Services,12904.5,5/4/2018
"*RINGOLD FINANCIAL MANAGEMENT SERVICES, INC.",Consulting Services,13344.5,6/13/2018
"*RINGOLD FINANCIAL MANAGEMENT SERVICES, INC.",Consulting Services,13344.5,7/18/2018
"*RINGOLD FINANCIAL MANAGEMENT SERVICES, INC.",Consulting Services,12727.5,8/15/2018
"*RINGOLD FINANCIAL MANAGEMENT SERVICES, INC.",Consulting Services,14982,9/21/2018
"*RINGOLD FINANCIAL MANAGEMENT SERVICES, INC.",Consulting Services,29177,12/19/2018
"*RINGOLD FINANCIAL MANAGEMENT SERVICES, INC.",Consulting Services,7710,12/26/2018
"*ROSS BARNEY ARCHITECTS, INC.",Consulting Services,51862.5,11/23/2018
"*S.A.L. EXPRESS, INC., d/b/a/ S.A.L TRAFFIC CONTROL",Maintenance of Structures,5570.5,6/15/2018
"*S.A.L. EXPRESS, INC., d/b/a/ S.A.L TRAFFIC CONTROL",Maintenance of Structures,4806,6/19/2018
"*S.A.L. EXPRESS, INC., d/b/a/ S.A.L TRAFFIC CONTROL",Maintenance of Buildings,2427,6/21/2018
"*S.A.L. EXPRESS, INC., d/b/a/ S.A.L TRAFFIC CONTROL",Maintenance of Structures,4677.75,6/21/2018
"*S.A.L. EXPRESS, INC., d/b/a/ S.A.L TRAFFIC CONTROL",Maintenance of Buildings,3313.3,7/10/2018
"*S.A.L. EXPRESS, INC., d/b/a/ S.A.L TRAFFIC CONTROL",Maintenance of Buildings,1855.3,7/12/2018
"*S.A.L. EXPRESS, INC., d/b/a/ S.A.L TRAFFIC CONTROL",Maintenance of Structures,19344.7,8/10/2018
"*S.A.L. EXPRESS, INC., d/b/a/ S.A.L TRAFFIC CONTROL",Maintenance of Structures,14440.8,8/16/2018
"*S.A.L. EXPRESS, INC., d/b/a/ S.A.L TRAFFIC CONTROL",Equipment Purchases,17317.25,8/17/2018
*SHAMROCK CATERING INC.,Administrative Support,212,5/3/2018
*SHAMROCK CATERING INC.,Administrative Support,199.5,7/20/2018
*SHAMROCK CATERING INC.,Administrative Support,199.5,7/24/2018
*SHAMROCK CATERING INC.,Management,720,8/17/2018
*SHAMROCK CATERING INC.,Professional / Technical,1047.5,8/23/2018
*SHAMROCK CATERING INC.,Administrative Support,893.75,9/6/2018
*SHAMROCK CATERING INC.,Administrative Support,192.5,10/24/2018
*SHAMROCK CATERING INC.,Administrative Support,486.65,11/7/2018
*SOUTH SUBURBAN PEST CONTROL,Maintenance of Equipment,4204.2,1/22/2018
*SOUTH SUBURBAN PEST CONTROL,Maintenance of Equipment,4287.4,2/7/2018
*SOUTH SUBURBAN PEST CONTROL,Maintenance of Equipment,4375.8,3/19/2018
*SOUTH SUBURBAN PEST CONTROL,Maintenance of Equipment,4446,4/27/2018
*SOUTH SUBURBAN PEST CONTROL,Maintenance of Equipment,4378.4,5/29/2018
*SOUTH SUBURBAN PEST CONTROL,Maintenance of Equipment,4373.2,6/22/2018
*SOUTH SUBURBAN PEST CONTROL,Maintenance of Equipment,4227.6,7/13/2018
*SOUTH SUBURBAN PEST CONTROL,Maintenance of Equipment,25365,7/18/2018
*SOUTH SUBURBAN PEST CONTROL,Maintenance of Equipment,4318.6,8/21/2018
*SOUTH SUBURBAN PEST CONTROL,Maintenance of Equipment,3135,8/30/2018
*SOUTH SUBURBAN PEST CONTROL,Maintenance of Equipment,2090,9/28/2018
*SOUTH SUBURBAN PEST CONTROL,Maintenance of Equipment,4378.4,10/1/2018
*SOUTH SUBURBAN PEST CONTROL,Maintenance of Equipment,4370.6,10/19/2018
*SOUTH SUBURBAN PEST CONTROL,Maintenance of Equipment,3135,10/31/2018
*SOUTH SUBURBAN PEST CONTROL,Maintenance of Equipment,6856.4,11/29/2018
*SOUTH SUBURBAN PEST CONTROL,Maintenance of Equipment,4209.4,12/20/2018
"*STAR & CREST DECORATING, INC.",Vehicle Rehab,13862,2/5/2018
"*STAR & CREST DECORATING, INC.",Vehicle Rehab,13862,3/23/2018
"*STAR & CREST DECORATING, INC.",Vehicle Rehab,13862,4/5/2018
"*STAR & CREST DECORATING, INC.",Vehicle Rehab,13862,5/17/2018
*SULLIVAN REPORTING COMPANY,I&D Claims (Damage Reserve),207.45,1/25/2018
*SULLIVAN REPORTING COMPANY,I&D Claims (Damage Reserve),146.1,2/1/2018
*SULLIVAN REPORTING COMPANY,I&D Claims (Damage Reserve),1473.1,3/6/2018
*SULLIVAN REPORTING COMPANY,I&D Claims (Damage Reserve),1403,3/8/2018
*SULLIVAN REPORTING COMPANY,I&D Claims (Damage Reserve),807.5,4/4/2018
*SULLIVAN REPORTING COMPANY,I&D Claims (Damage Reserve),196.1,4/10/2018
*SULLIVAN REPORTING COMPANY,I&D Claims (Damage Reserve),935.9,4/11/2018
*SULLIVAN REPORTING COMPANY,I&D Claims (Damage Reserve),446.4,4/17/2018
*SULLIVAN REPORTING COMPANY,I&D Claims (Damage Reserve),149,4/18/2018
*SULLIVAN REPORTING COMPANY,I&D Claims (Damage Reserve),225.25,5/8/2018
"*TEAMPLETE, LLC",Consulting Services,4810,11/23/2018
"*THE BLUEPRINT SHOPPE, INC.",Management,2842.2,1/23/2018
"*THE BLUEPRINT SHOPPE, INC.",Management,615,1/25/2018
"*THE BLUEPRINT SHOPPE, INC.",Management,2005.12,8/21/2018
"*THE BLUEPRINT SHOPPE, INC.",Management,5400,9/18/2018
"*THE BLUEPRINT SHOPPE, INC.",Management,306,11/13/2018
"*THE BLUEPRINT SHOPPE, INC.",Management,674,12/21/2018
"*TKG & ASSOCIATES, LLC",Professional / Technical,10000,1/31/2018
"*TONERVISION, INC.",Applications Support,4653.4,3/13/2018
"*TONERVISION, INC.",Applications Support,12897.1,9/21/2018
"*TONERVISION, INC.",Applications Support,128971,10/9/2018
"*TONERVISION, INC.",Consulting Services,482254.3,11/6/2018
"*TONERVISION, INC.",Consulting Services,554575.3,11/27/2018
"*TONERVISION, INC.",Consulting Services,554575.3,12/27/2018
"*UBICA, INC.",Administrative Support,50000,1/19/2018
"*UBICA, INC.",Management,25000,5/10/2018
"*UBICA, INC.",Management,25000,5/11/2018
"*UBICA, INC.",Administrative Support,12500,6/4/2018
"*UBICA, INC.",Administrative Support,12500,7/9/2018
"*UBICA, INC.",Professional / Technical,12500,10/1/2018
"*UBICA, INC.",Administrative Support,12500,10/16/2018
"*UBICA, INC.",Administrative Support,12500,10/18/2018
"*UBICA, INC.",Administrative Support,25000,12/19/2018
"*URLAUB, BOWEN & ASSOCIATES, INC.",I&D Claims (Damage Reserve),293.2,3/7/2018
"*URLAUB, BOWEN & ASSOCIATES, INC.",I&D Claims (Damage Reserve),359,8/29/2018
"*URLAUB, BOWEN & ASSOCIATES, INC.",I&D Claims (Damage Reserve),176.15,11/13/2018
"*VALDES, LLC",Maintenance of Buildings,2535.75,1/16/2018
"*VALDES, LLC",Maintenance of Buildings,1408.75,10/11/2018
*VIVA USA INC,Consulting Services,9349.02,1/24/2018
*VIVA USA INC,Consulting Services,9206.46,3/14/2018
*VIVA USA INC,Consulting Services,2106,3/19/2018
"*WILEY'S LAWN CARE, LLC",Maintenance of Buildings,20020,5/14/2018
"*WILEY'S LAWN CARE, LLC",Maintenance of Buildings,19868,6/14/2018
"*WILEY'S LAWN CARE, LLC",Maintenance of Substations,7295,7/3/2018
"*WILEY'S LAWN CARE, LLC",Maintenance of Buildings,20515,7/6/2018
"*WILEY'S LAWN CARE, LLC",Maintenance of Substations,6155,7/12/2018
"*WILEY'S LAWN CARE, LLC",Maintenance of Buildings,20350,8/8/2018
"*WILEY'S LAWN CARE, LLC",Maintenance of Substations,6155,8/21/2018
"*WILEY'S LAWN CARE, LLC",Maintenance of Buildings,20490,9/11/2018
"*WILEY'S LAWN CARE, LLC",Maintenance of Substations,6155,9/27/2018
"*WILEY'S LAWN CARE, LLC",Maintenance of Buildings,20330,10/11/2018
"*WILEY'S LAWN CARE, LLC",Maintenance of Substations,5910,10/24/2018
"*WILEY'S LAWN CARE, LLC",Maintenance of Buildings,20330,11/5/2018
"*WILEY'S LAWN CARE, LLC",Maintenance of Buildings,19838,11/27/2018
"*WILEY'S LAWN CARE, LLC",Maintenance of Substations,5910,12/3/2018
*WORLD OF PROMOTIONS,Marketing,640,3/1/2018
*WORLD OF PROMOTIONS,Administrative Support,465,11/27/2018
"*WYNNDALCO ENTERPRISES, LLC",Equipment Purchases,200116,3/28/2018
"*WYNNDALCO ENTERPRISES, LLC",Equipment Purchases,14000,9/5/2018
"108 NORTH STATE ST. (CHICAGO) OWNER,LLC","Facilities Operating Expenses (Rent,Utilities,etc)",28500,2/2/2018
"108 NORTH STATE ST. (CHICAGO) OWNER,LLC","Facilities Operating Expenses (Rent,Utilities,etc)",57000,3/2/2018
"108 NORTH STATE ST. (CHICAGO) OWNER,LLC","Facilities Operating Expenses (Rent,Utilities,etc)",28500,4/10/2018
"108 NORTH STATE ST. (CHICAGO) OWNER,LLC","Facilities Operating Expenses (Rent,Utilities,etc)",18696.64,5/22/2018
"108 NORTH STATE ST. (CHICAGO) OWNER,LLC","Facilities Operating Expenses (Rent,Utilities,etc)",57000,7/5/2018
"108 NORTH STATE ST. (CHICAGO) OWNER,LLC","Facilities Operating Expenses (Rent,Utilities,etc)",28500,8/1/2018
"108 NORTH STATE ST. (CHICAGO) OWNER,LLC","Facilities Operating Expenses (Rent,Utilities,etc)",28500,9/7/2018
"108 NORTH STATE ST. (CHICAGO) OWNER,LLC","Facilities Operating Expenses (Rent,Utilities,etc)",28500,10/2/2018
"108 NORTH STATE ST. (CHICAGO) OWNER,LLC","Facilities Operating Expenses (Rent,Utilities,etc)",28500,11/6/2018
"108 NORTH STATE ST. (CHICAGO) OWNER,LLC","Facilities Operating Expenses (Rent,Utilities,etc)",28500,11/27/2018
2018 CITY INTERNS,Training - Students,3000,5/9/2018
"22ND CENTURY TECHNOLOGIES, INC.",Professional / Technical,9877,2/22/2018
"22ND CENTURY TECHNOLOGIES, INC.",Administrative Support,10080,4/24/2018
"22ND CENTURY TECHNOLOGIES, INC.",Training - Students,5040,6/5/2018
3406 SHEFFIELD LLC,Real Estate,1000000,3/2/2018
89TH ST PROPERTIES LLC,"Facilities Operating Expenses (Rent,Utilities,etc)",27968.92,1/2/2018
89TH ST PROPERTIES LLC,"Facilities Operating Expenses (Rent,Utilities,etc)",27968.92,2/2/2018
89TH ST PROPERTIES LLC,"Facilities Operating Expenses (Rent,Utilities,etc)",26.81,3/14/2018
89TH ST PROPERTIES LLC,"Facilities Operating Expenses (Rent,Utilities,etc)",27968.92,3/21/2018
89TH ST PROPERTIES LLC,"Facilities Operating Expenses (Rent,Utilities,etc)",27968.92,4/10/2018
89TH ST PROPERTIES LLC,"Facilities Operating Expenses (Rent,Utilities,etc)",187.36,4/17/2018
89TH ST PROPERTIES LLC,"Facilities Operating Expenses (Rent,Utilities,etc)",27968.92,5/15/2018
89TH ST PROPERTIES LLC,"Facilities Operating Expenses (Rent,Utilities,etc)",27968.92,6/15/2018
89TH ST PROPERTIES LLC,"Facilities Operating Expenses (Rent,Utilities,etc)",27968.92,7/2/2018
89TH ST PROPERTIES LLC,"Facilities Operating Expenses (Rent,Utilities,etc)",27968.92,8/1/2018
89TH ST PROPERTIES LLC,"Facilities Operating Expenses (Rent,Utilities,etc)",290.99,8/6/2018
89TH ST PROPERTIES LLC,"Facilities Operating Expenses (Rent,Utilities,etc)",655.32,8/7/2018
89TH ST PROPERTIES LLC,"Facilities Operating Expenses (Rent,Utilities,etc)",27968.92,9/5/2018
89TH ST PROPERTIES LLC,"Facilities Operating Expenses (Rent,Utilities,etc)",27968.92,10/2/2018
89TH ST PROPERTIES LLC,"Facilities Operating Expenses (Rent,Utilities,etc)",27968.92,11/5/2018
89TH ST PROPERTIES LLC,"Facilities Operating Expenses (Rent,Utilities,etc)",27968.92,11/29/2018
89TH ST PROPERTIES LLC,"Facilities Operating Expenses (Rent,Utilities,etc)",27993.06,12/21/2018
A & A GLOVE & SAFETY COMPANY,Equipment Purchases,2636.8,3/28/2018
A & F REPORTING INC,I&D Claims (Damage Reserve),63.05,12/7/2018
A&M INVESTMENT MANAGEMENT LLC,Cash Management,1008.91,6/14/2018
A&M INVESTMENT MANAGEMENT LLC,Cash Management,626.77,7/11/2018
A&M INVESTMENT MANAGEMENT LLC,Cash Management,612.98,10/31/2018
A&M INVESTMENT MANAGEMENT LLC,Cash Management,504.78,10/31/2018
A&M INVESTMENT MANAGEMENT LLC,Cash Management,501.94,10/31/2018
A&M INVESTMENT MANAGEMENT LLC,Cash Management,483.23,10/31/2018
A.R.D.C.,Administrative Support,385,12/7/2018
A.R.D.C.,Administrative Support,19085,12/7/2018
AAAED,Administrative Support,375,5/31/2018
AAAED,Administrative Support,400,5/31/2018
ABIGAIL GUALBERTO,I&D Claims (Damage Reserve),75,5/24/2018
ABIGAIL GUALBERTO,I&D Claims (Damage Reserve),75,6/26/2018
ABIGAIL GUALBERTO,I&D Claims (Damage Reserve),75,9/12/2018
ABIGAIL TODD,Real Estate,956.81,11/7/2018
ACCESS ON TIME,I&D Claims (Damage Reserve),178.9,1/9/2018
ACCOUNTING PRINCIPALS INC,Professional / Technical,1377.6,9/28/2018
ACCOUNTING PRINCIPALS INC,Professional / Technical,1102.08,10/5/2018
ACCOUNTING PRINCIPALS INC,Professional / Technical,1377.6,10/12/2018
ACCOUNTING PRINCIPALS INC,Professional / Technical,1377.6,10/19/2018
ACCOUNTING PRINCIPALS INC,Professional / Technical,1377.6,10/26/2018
ACCOUNTING PRINCIPALS INC,Professional / Technical,1102.08,11/2/2018
ACCOUNTING PRINCIPALS INC,Professional / Technical,1377.6,11/8/2018
ACCOUNTING PRINCIPALS INC,Professional / Technical,1377.6,11/16/2018
ACCOUNTING PRINCIPALS INC,Professional / Technical,1377.6,11/23/2018
ACCOUNTING PRINCIPALS INC,Professional / Technical,1377.6,11/30/2018
ACCOUNTING PRINCIPALS INC,Professional / Technical,1377.6,12/7/2018
ACCOUNTING PRINCIPALS INC,Professional / Technical,1102.08,12/14/2018
ACCOUNTING PRINCIPALS INC,Professional / Technical,551.04,12/21/2018
ACCOUNTING PRINCIPALS INC,Professional / Technical,1377.6,12/28/2018
"ACTION K-9 SECURITY, INC.",Security Rail,600797.96,1/24/2018
"ACTION K-9 SECURITY, INC.",Security Rail,331507.78,2/15/2018
"ACTION K-9 SECURITY, INC.",Security Rail,323508.13,3/6/2018
"ACTION K-9 SECURITY, INC.",Security Rail,248555,3/27/2018
"ACTION K-9 SECURITY, INC.",Security Rail,246062.68,4/5/2018
"ACTION K-9 SECURITY, INC.",Security Rail,327509.77,5/3/2018
"ACTION K-9 SECURITY, INC.",Security Rail,170308.35,5/7/2018
"ACTION K-9 SECURITY, INC.",Security Rail,166805.01,5/24/2018
"ACTION K-9 SECURITY, INC.",Security Rail,3619.37,5/30/2018
"ACTION K-9 SECURITY, INC.",Security Rail,164085.59,6/5/2018
"ACTION K-9 SECURITY, INC.",Security Rail,158905.87,6/21/2018
"ACTION K-9 SECURITY, INC.",Security Rail,3689.1,6/28/2018
"ACTION K-9 SECURITY, INC.",Security Rail,170474.81,7/13/2018
"ACTION K-9 SECURITY, INC.",Security Rail,124163.41,8/6/2018
"ACTION K-9 SECURITY, INC.",Security Rail,65433.35,8/14/2018
"ACTION K-9 SECURITY, INC.",Security Rail,182110.3,8/22/2018
"ACTION K-9 SECURITY, INC.",Security Rail,3564,9/25/2018
"ACTION K-9 SECURITY, INC.",Security Rail,561412.23,9/26/2018
"ACTION K-9 SECURITY, INC.",Security Rail,180208.09,9/27/2018
"ACTION K-9 SECURITY, INC.",Security Rail,183772.05,10/29/2018
ADAM BLACK M.D.,I&D Claims (Damage Reserve),450,2/21/2018
ADOBE SYSTEMS INCORPORATED,Training - Students,4799.4,12/13/2018
"ADR SYSTEMS OF AMERICA, LLC",I&D Claims (Damage Reserve),1395,2/23/2018
"ADR SYSTEMS OF AMERICA, LLC",I&D Claims (Damage Reserve),1395,4/4/2018
"ADR SYSTEMS OF AMERICA, LLC",I&D Claims (Damage Reserve),1621,4/10/2018
"ADR SYSTEMS OF AMERICA, LLC",I&D Claims (Damage Reserve),1952,4/10/2018
"ADR SYSTEMS OF AMERICA, LLC",I&D Claims (Damage Reserve),750,5/3/2018
"ADR SYSTEMS OF AMERICA, LLC",I&D Claims (Damage Reserve),1295,7/12/2018
ADR SYSYEMS,I&D Claims (Damage Reserve),1031.25,8/31/2018
ADULT AND PEDIATRIC ORTHODICS S.C.,I&D Claims (Damage Reserve),750,3/2/2018
ADVANCED FOOT & ANKLE CENTERS OF ILLINOIS,I&D Claims (Damage Reserve),750,3/6/2018
ADVANCED PHYSICAL MEDICINE,I&D Claims (Damage Reserve),400,2/20/2018
ADVANCED SPINE AND PAIN SPECIALISTS,I&D Claims (Damage Reserve),500,6/26/2018
ADVANCED SPINE AND PAIN SPECIALISTS,I&D Claims (Damage Reserve),500,9/25/2018
ADVANCED SPINE AND PAIN SPECIALISTS,I&D Claims (Damage Reserve),250,11/13/2018
"ADVANTAGE SIGN SUPPLY, INC.",Administrative Support,29204.07,4/17/2018
"ADVANTAGE SIGN SUPPLY, INC.",Maintenance of Buildings,1215,4/17/2018
ADVOCATE COURT REPORTERS LLC,I&D Claims (Damage Reserve),127.7,12/7/2018
ADVOCATE MEDICAL GROUP.,I&D Claims (Damage Reserve),700,4/27/2018
AFFILIATED PODIATRISTS LTD,I&D Claims (Damage Reserve),750,4/18/2018
AGAE / PRO FENCE JOINT VENTURE,Maintenance of Buildings,5793.6,1/23/2018
AGAE / PRO FENCE JOINT VENTURE,Maintenance of Buildings,33045.8,1/24/2018
AGAE / PRO FENCE JOINT VENTURE,Maintenance of Buildings,26264.6,1/26/2018
AGAE / PRO FENCE JOINT VENTURE,Maintenance of Buildings,31614.65,1/30/2018
AGAE / PRO FENCE JOINT VENTURE,Maintenance of Buildings,4260,2/13/2018
AGAE / PRO FENCE JOINT VENTURE,Maintenance of Buildings,9398,2/15/2018
AGAE / PRO FENCE JOINT VENTURE,Maintenance of Buildings,881.5,2/21/2018
AGAE / PRO FENCE JOINT VENTURE,Maintenance of Buildings,20067.2,4/4/2018
AGAE / PRO FENCE JOINT VENTURE,Maintenance of Buildings,778,4/5/2018
AGAE / PRO FENCE JOINT VENTURE,Maintenance of Buildings,13685.4,4/13/2018
AGAE / PRO FENCE JOINT VENTURE,Maintenance of Buildings,3761.5,4/24/2018
AGAE / PRO FENCE JOINT VENTURE,Maintenance of Buildings,2140.5,5/8/2018
AGAE / PRO FENCE JOINT VENTURE,Maintenance of Buildings,8214.7,5/9/2018
AGAE / PRO FENCE JOINT VENTURE,Maintenance of Buildings,4923,5/10/2018
AGAE / PRO FENCE JOINT VENTURE,Maintenance of Buildings,44367.35,5/15/2018
AGAE / PRO FENCE JOINT VENTURE,Maintenance of Buildings,4972.75,6/1/2018
AGAE / PRO FENCE JOINT VENTURE,Maintenance of Buildings,5097.58,6/13/2018
AGAE / PRO FENCE JOINT VENTURE,Maintenance of Buildings,20166.1,6/19/2018
AGAE / PRO FENCE JOINT VENTURE,Maintenance of Buildings,3468,6/26/2018
AGAE / PRO FENCE JOINT VENTURE,Maintenance of Buildings,3218.1,7/10/2018
AGAE / PRO FENCE JOINT VENTURE,Maintenance of Buildings,2502.6,8/30/2018
AGAE / PRO FENCE JOINT VENTURE,Maintenance of Buildings,55236.78,9/7/2018
AGAE / PRO FENCE JOINT VENTURE,Maintenance of Buildings,4552.5,9/11/2018
AGAE / PRO FENCE JOINT VENTURE,Maintenance of Buildings,15917.25,9/13/2018
AGAE / PRO FENCE JOINT VENTURE,Maintenance of Buildings,1320,9/14/2018
AGAE / PRO FENCE JOINT VENTURE,Maintenance of Buildings,778,10/23/2018
AGAE / PRO FENCE JOINT VENTURE,Maintenance of Buildings,1272,11/1/2018
AGAE / PRO FENCE JOINT VENTURE,Maintenance of Buildings,40677.6,11/6/2018
AGAE / PRO FENCE JOINT VENTURE,Maintenance of Buildings,160970.95,11/8/2018
AGAE / PRO FENCE JOINT VENTURE,Maintenance of Buildings,2124.3,11/9/2018
AHEAD OF OUR TIME PUBLISHING INC,Administrative Support,500,6/29/2018
AICPA,Training,200.81,6/27/2018
AICPA,Administrative Support,275,7/20/2018
AICPA,Dues & Memberships,275,7/24/2018
AICPA,Professional / Technical,275,7/26/2018
ALDRIDGE ELECTRIC INC,Contract Construction,783418.39,2/8/2018
ALDRIDGE ELECTRIC INC,Contract Construction,79886.78,7/5/2018
ALDRIDGE ELECTRIC INC,Contract Construction,37732.08,7/5/2018
ALDRIDGE ELECTRIC INC,Contract Construction,5019.24,7/18/2018
ALDRIDGE ELECTRIC INC,Contract Construction,188231.79,7/19/2018
ALDRIDGE ELECTRIC INC,Contract Construction,586513.03,7/26/2018
ALDRIDGE ELECTRIC INC,Contract Construction,557703.61,7/27/2018
ALDRIDGE ELECTRIC INC,Contract Construction,280506.81,7/31/2018
ALDRIDGE ELECTRIC INC,Contract Construction,77262.79,8/1/2018
ALDRIDGE ELECTRIC INC,Contract Construction,337725.89,8/2/2018
ALDRIDGE ELECTRIC INC,Contract Construction,1202210.02,8/3/2018
ALDRIDGE ELECTRIC INC,Contract Construction,289353.82,8/7/2018
ALDRIDGE ELECTRIC INC,Contract Construction,126272.28,8/8/2018
ALDRIDGE ELECTRIC INC,Contract Construction,87945.94,8/9/2018
ALDRIDGE ELECTRIC INC,Contract Construction,88556.78,8/14/2018
ALDRIDGE ELECTRIC INC,Contract Construction,44390.23,8/15/2018
ALDRIDGE ELECTRIC INC,Contract Construction,5592.65,8/16/2018
ALDRIDGE ELECTRIC INC,Contract Construction,6454.1,8/17/2018
"ALDRIDGE-MASS, A JOINT VENTURE",Contract Construction,112896.73,7/18/2018
"ALDRIDGE-MASS, A JOINT VENTURE",Contract Construction,781436.24,7/19/2018
"ALDRIDGE-MASS, A JOINT VENTURE",Contract Construction,1764560.04,7/26/2018
"ALDRIDGE-MASS, A JOINT VENTURE",Contract Construction,1601055.05,7/27/2018
"ALDRIDGE-MASS, A JOINT VENTURE",Contract Construction,1919296.23,7/31/2018
"ALDRIDGE-MASS, A JOINT VENTURE",Contract Construction,1378759.3,8/1/2018
"ALDRIDGE-MASS, A JOINT VENTURE",Contract Construction,1041318.33,8/2/2018
"ALDRIDGE-MASS, A JOINT VENTURE",Contract Construction,1171479.54,8/3/2018
"ALDRIDGE-MASS, A JOINT VENTURE",Contract Construction,384435.37,8/7/2018
"ALEKSANDR GOLDVEKHT, M.D",I&D Claims (Damage Reserve),600,9/14/2018
ALEX ORTHOPEDICS,I&D Claims (Damage Reserve),750,3/6/2018
ALEX ORTHOPEDICS,I&D Claims (Damage Reserve),750,4/10/2018
ALEXANDER WILLIAMS,Reimb for lost tools/badges,50,6/20/2018
ALFRED BENESCH & COMPANY,Consulting Services,5238.48,10/30/2018
"ALLIANCE PRINTERS & PUBLISHERS, INC. d/b/a POLISH DAILY NEWS",Administrative Support,350,1/16/2018
"ALLIANCE PRINTERS & PUBLISHERS, INC. d/b/a POLISH DAILY NEWS",Administrative Support,80,11/28/2018
"ALLIED WASTE TRANSPORTATION, INC. d/b/a REPUBLIC SERVICES OF CHICAGO",Facilities Cleaning,66308.38,1/2/2018
"ALLIED WASTE TRANSPORTATION, INC. d/b/a REPUBLIC SERVICES OF CHICAGO",Facilities Cleaning,83606.71,1/29/2018
"ALLIED WASTE TRANSPORTATION, INC. d/b/a REPUBLIC SERVICES OF CHICAGO",Facilities Cleaning,74104.97,3/6/2018
"ALLIED WASTE TRANSPORTATION, INC. d/b/a REPUBLIC SERVICES OF CHICAGO",Facilities Cleaning,62247.1,3/28/2018
"ALLIED WASTE TRANSPORTATION, INC. d/b/a REPUBLIC SERVICES OF CHICAGO",Facilities Cleaning,483.6,4/24/2018
"ALLIED WASTE TRANSPORTATION, INC. d/b/a REPUBLIC SERVICES OF CHICAGO",Facilities Cleaning,72274.08,4/27/2018
"ALLIED WASTE TRANSPORTATION, INC. d/b/a REPUBLIC SERVICES OF CHICAGO",Facilities Cleaning,66895.63,5/29/2018
"ALLIED WASTE TRANSPORTATION, INC. d/b/a REPUBLIC SERVICES OF CHICAGO",Facilities Cleaning,69522.05,6/28/2018
"ALLIED WASTE TRANSPORTATION, INC. d/b/a REPUBLIC SERVICES OF CHICAGO",Facilities Cleaning,69796.27,7/27/2018
"ALLIED WASTE TRANSPORTATION, INC. d/b/a REPUBLIC SERVICES OF CHICAGO",Facilities Cleaning,69477.59,9/10/2018
"ALLIED WASTE TRANSPORTATION, INC. d/b/a REPUBLIC SERVICES OF CHICAGO",Facilities Cleaning,73387.73,10/2/2018
"ALLIED WASTE TRANSPORTATION, INC. d/b/a REPUBLIC SERVICES OF CHICAGO",Facilities Cleaning,64772.28,10/29/2018
"ALLIED WASTE TRANSPORTATION, INC. d/b/a REPUBLIC SERVICES OF CHICAGO",Facilities Cleaning,74013.33,11/29/2018
ALLISON ZILLMER,Real Estate,1295,1/26/2018
"ALLSTATE SAWS & MACHINING, LLC",General Shop/Gar/Term Repairs & Svcs,1500.5,1/4/2018
"ALLSTATE SAWS & MACHINING, LLC",Maintenance of Buildings,1039,1/11/2018
"ALLSTATE SAWS & MACHINING, LLC",General Shop/Gar/Term Repairs & Svcs,853,2/15/2018
"ALLSTATE SAWS & MACHINING, LLC",Maintenance of Buildings,1433.02,3/7/2018
"ALLSTATE SAWS & MACHINING, LLC",Maintenance of Buildings,392.21,3/22/2018
"ALLSTATE SAWS & MACHINING, LLC",Maintenance of Buildings,542.36,3/27/2018
"ALLSTATE SAWS & MACHINING, LLC",Maintenance of Buildings,409.95,5/3/2018
"ALLSTATE SAWS & MACHINING, LLC",Maintenance of Buildings,1805.7,8/2/2018
"ALLSTATE SAWS & MACHINING, LLC",Maintenance of Structures,1954,8/15/2018
ALOFT NASHVILLE WEST END,Administrative Support,793.7,7/20/2018
ALOFT NASHVILLE WEST END,Administrative Support,793.7,8/14/2018
"ALPINA MANUFACTURING, LLC",Administrative Support,1403.6,11/14/2018
"ALPINA MANUFACTURING, LLC",Administrative Support,10251.25,11/28/2018
"ALSTOM SIGNALING, INC.",Maintainance of Signal & Control Equipment,4975,2/27/2018
"ALSTOM SIGNALING, INC.",Maintainance of Signal & Control Equipment,6350,3/27/2018
"ALSTOM SIGNALING, INC.",Maintainance of Signal & Control Equipment,772,4/12/2018
"ALSTOM SIGNALING, INC.",Equipment Purchases,678000,4/16/2018
"ALSTOM SIGNALING, INC.",Maintainance of Signal & Control Equipment,4042.5,6/14/2018
"ALSTOM SIGNALING, INC.",Maintainance of Signal & Control Equipment,900,6/21/2018
"ALSTOM SIGNALING, INC.",Contract Construction,128483,8/9/2018
"ALSTOM SIGNALING, INC.",Contract Construction,8541.6,8/14/2018
"ALSTOM SIGNALING, INC.",Contract Construction,18683.35,8/15/2018
"ALSTOM SIGNALING, INC.",Contract Construction,28816.68,8/16/2018
"ALSTOM SIGNALING, INC.",Contract Construction,30986.28,8/17/2018
"ALSTOM SIGNALING, INC.",Contract Construction,20017.55,8/22/2018
"ALSTOM SIGNALING, INC.",Maintainance of Signal & Control Equipment,1140,8/22/2018
AMALGAMATED BANK OF CHICAGO,Cash Management,524.03,1/9/2018
AMALGAMATED BANK OF CHICAGO,Cash Management,654.67,2/2/2018
AMALGAMATED BANK OF CHICAGO,Cash Management,8865.24,3/1/2018
AMALGAMATED BANK OF CHICAGO,Cash Management,767.86,3/20/2018
AMALGAMATED BANK OF CHICAGO,Cash Management,642.18,3/27/2018
AMALGAMATED BANK OF CHICAGO,Cash Management,673.19,5/2/2018
AMALGAMATED BANK OF CHICAGO,Cash Management,6984.35,5/17/2018
AMALGAMATED BANK OF CHICAGO,Cash Management,604.92,6/1/2018
AMALGAMATED BANK OF CHICAGO,Cash Management,673.38,7/10/2018
AMALGAMATED BANK OF CHICAGO,Cash Management,598.97,8/7/2018
AMALGAMATED BANK OF CHICAGO,Cash Management,448.62,9/7/2018
AMALGAMATED BANK OF CHICAGO,Cash Management,710.54,10/2/2018
AMALGAMATED BANK OF CHICAGO,Cash Management,669.42,11/7/2018
AMALGAMATED BANK OF CHICAGO,Cash Management,188.61,12/11/2018
AMALGAMATED BANK OF CHICAGO.,Cash Management,10000,4/18/2018
AMALGAMATED BANK OF CHICAGO.,Cash Management,10000,5/17/2018
AMALGAMATED BANK OF CHICAGO.,Cash Management,367.5,8/16/2018
AMALGAMATED BANK OF CHICAGO.,Cash Management,17374.35,8/17/2018
AMALGAMATED BANK OF CHICAGO.,Cash Management,5000,9/11/2018
AMALGAMATED BANK OF CHICAGO.,Cash Management,5000,9/13/2018
AMALGAMATED BANK OF CHICAGO.,Cash Management,2500,10/16/2018
AMALGAMATED BANK OF CHICAGO.,Cash Management,10337.5,11/20/2018
AMALGAMATED BANK OF CHICAGO.,Cash Management,6585.1,11/21/2018
AMANDA M AGOSTI,Administrative Support,750,11/1/2018
AMAXX LLC,Administrative Support,309,10/5/2018
"AMAZON WEB SERVICES, INC.",Professional / Technical,896.33,1/9/2018
"AMAZON WEB SERVICES, INC.",Professional / Technical,16815,1/10/2018
"AMAZON WEB SERVICES, INC.",Professional / Technical,1755.3,2/1/2018
"AMAZON WEB SERVICES, INC.",Professional / Technical,299.38,3/28/2018
"AMAZON WEB SERVICES, INC.",Professional / Technical,409.22,3/30/2018
"AMAZON WEB SERVICES, INC.",Professional / Technical,459.82,5/3/2018
"AMAZON WEB SERVICES, INC.",Professional / Technical,476.23,7/5/2018
"AMAZON WEB SERVICES, INC.",Professional / Technical,598.05,7/25/2018
"AMAZON WEB SERVICES, INC.",Professional / Technical,529.87,8/6/2018
"AMAZON WEB SERVICES, INC.",Professional / Technical,467.72,8/30/2018
"AMAZON WEB SERVICES, INC.",Professional / Technical,459.9,10/16/2018
"AMAZON WEB SERVICES, INC.",Professional / Technical,456.47,11/1/2018
"AMAZON WEB SERVICES, INC.",Professional / Technical,550.18,11/30/2018
AMBRELL CORPORATION,Equipment Purchases,112050,3/29/2018
AMBRELL CORPORATION,Equipment Purchases,12450,4/16/2018
"AMERESCO, INC.",Professional / Technical,14730,1/2/2018
"AMERESCO, INC.",Professional / Technical,14730,2/1/2018
"AMERESCO, INC.",Professional / Technical,15006.65,2/9/2018
"AMERESCO, INC.",Professional / Technical,14730,3/1/2018
"AMERESCO, INC.",Professional / Technical,14730,3/29/2018
"AMERESCO, INC.",Professional / Technical,14730,5/3/2018
"AMERESCO, INC.",Professional / Technical,14730,5/31/2018
"AMERESCO, INC.",Professional / Technical,14730,7/3/2018
"AMERESCO, INC.",Professional / Technical,14730,8/1/2018
"AMERESCO, INC.",Professional / Technical,14730,8/30/2018
"AMERESCO, INC.",Professional / Technical,14730,10/4/2018
"AMERESCO, INC.",Professional / Technical,14730,10/31/2018
"AMERESCO, INC.",Professional / Technical,14730,11/29/2018
"AMERESCO, INC.",Professional / Technical,14730,12/31/2018
"AMERICAN BUILDING SERVICES, LLC (M-D BUILDING MATERIALS)",Maintenance of Buildings,8157.6,2/1/2018
"AMERICAN BUILDING SERVICES, LLC (M-D BUILDING MATERIALS)",Maintenance of Buildings,683.55,2/5/2018
"AMERICAN BUILDING SERVICES, LLC (M-D BUILDING MATERIALS)",Maintenance of Buildings,6889.95,2/14/2018
"AMERICAN BUILDING SERVICES, LLC (M-D BUILDING MATERIALS)",Maintenance of Buildings,3524.79,2/20/2018
"AMERICAN BUILDING SERVICES, LLC (M-D BUILDING MATERIALS)",Maintenance of Buildings,665.06,3/7/2018
"AMERICAN BUILDING SERVICES, LLC (M-D BUILDING MATERIALS)",Maintenance of Buildings,4143.36,4/25/2018
"AMERICAN BUILDING SERVICES, LLC (M-D BUILDING MATERIALS)",Maintenance of Buildings,7221.85,5/3/2018
"AMERICAN BUILDING SERVICES, LLC (M-D BUILDING MATERIALS)",Maintenance of Buildings,3484,5/10/2018
"AMERICAN BUILDING SERVICES, LLC (M-D BUILDING MATERIALS)",Maintenance of Buildings,1000.16,6/12/2018
"AMERICAN BUILDING SERVICES, LLC (M-D BUILDING MATERIALS)",Maintenance of Buildings,669.25,6/14/2018
"AMERICAN BUILDING SERVICES, LLC (M-D BUILDING MATERIALS)",Maintenance of Buildings,6602.96,6/28/2018
"AMERICAN BUILDING SERVICES, LLC (M-D BUILDING MATERIALS)",Maintenance of Buildings,1665.57,7/5/2018
"AMERICAN BUILDING SERVICES, LLC (M-D BUILDING MATERIALS)",Maintenance of Buildings,1177.7,7/16/2018
"AMERICAN BUILDING SERVICES, LLC (M-D BUILDING MATERIALS)",Maintenance of Buildings,8266.4,8/2/2018
"AMERICAN BUILDING SERVICES, LLC (M-D BUILDING MATERIALS)",Maintenance of Buildings,622.96,8/14/2018
"AMERICAN BUILDING SERVICES, LLC (M-D BUILDING MATERIALS)",Maintenance of Buildings,911.18,8/30/2018
"AMERICAN BUILDING SERVICES, LLC (M-D BUILDING MATERIALS)",Maintenance of Buildings,829.05,9/18/2018
"AMERICAN BUILDING SERVICES, LLC (M-D BUILDING MATERIALS)",Maintenance of Buildings,798.72,9/19/2018
"AMERICAN BUILDING SERVICES, LLC (M-D BUILDING MATERIALS)",Maintenance of Buildings,17378.48,10/9/2018
"AMERICAN BUILDING SERVICES, LLC (M-D BUILDING MATERIALS)",Maintenance of Buildings,814.28,10/18/2018
"AMERICAN BUILDING SERVICES, LLC (M-D BUILDING MATERIALS)",Maintenance of Buildings,5170.66,11/19/2018
"AMERICAN BUILDING SERVICES, LLC (M-D BUILDING MATERIALS)",Maintenance of Buildings,2173.12,12/5/2018
AMERICAN CALIBRATION INC.,Maintenance of Equipment,728.45,6/8/2018
AMERICAN CALIBRATION INC.,Maintenance of Equipment,8673,9/18/2018
AMERICAN CONCRETE INSTITUTE,Engineering,249,6/14/2018
AMERICAN CONCRETE INSTITUTE,Engineering,235,6/29/2018
AMERICAN DOOR AND DOCK  d/b/a,Maintenance of Equipment,496.1,11/23/2018
AMERICAN INSTITUTE OF STEEL CONSTRUCTION LLC,Engineering,225,6/14/2018
AMERICAN INSTITUTE OF STEEL CONSTRUCTION LLC,Engineering,656.67,11/1/2018
AMERICAN INSURANCE SERVICES GROUP,I&D Claims (Damage Reserve),323,1/25/2018
AMERICAN INSURANCE SERVICES GROUP,I&D Claims (Damage Reserve),1432.5,2/6/2018
AMERICAN INSURANCE SERVICES GROUP,Administrative Support,205.8,3/16/2018
AMERICAN INSURANCE SERVICES GROUP,Administrative Support,254.8,4/5/2018
AMERICAN INSURANCE SERVICES GROUP,Administrative Support,352.8,4/26/2018
AMERICAN INSURANCE SERVICES GROUP,Administrative Support,392,5/25/2018
AMERICAN INSURANCE SERVICES GROUP,Administrative Support,431.2,6/28/2018
AMERICAN INSURANCE SERVICES GROUP,Administrative Support,274.4,8/7/2018
AMERICAN INSURANCE SERVICES GROUP,Administrative Support,431.2,8/28/2018
AMERICAN INSURANCE SERVICES GROUP,Administrative Support,264.6,10/2/2018
AMERICAN INSURANCE SERVICES GROUP,Administrative Support,284.2,10/26/2018
AMERICAN INSURANCE SERVICES GROUP,Administrative Support,323.4,12/18/2018
AMERICAN MEDICAL ASSOCIATION,Administrative Support,81.87,12/4/2018
AMERICAN PUBLIC TRANSPORTATION ASSOCIATION,Administrative Support,300,3/2/2018
AMERICAN PUBLIC TRANSPORTATION ASSOCIATION,Administrative Support,975,3/16/2018
AMERICAN PUBLIC TRANSPORTATION ASSOCIATION,BUS/RAIL ROADEO,4730,3/16/2018
AMERICAN PUBLIC TRANSPORTATION ASSOCIATION,FARE CARD SOFTWARE CHG,825,4/5/2018
AMERICAN PUBLIC TRANSPORTATION ASSOCIATION,FARE CARD SOFTWARE CHG,2610,4/10/2018
AMERICAN PUBLIC TRANSPORTATION ASSOCIATION,BUS/RAIL ROADEO,825,4/18/2018
AMERICAN PUBLIC TRANSPORTATION ASSOCIATION,BUS/RAIL ROADEO,3515,4/18/2018
AMERICAN PUBLIC TRANSPORTATION ASSOCIATION,Training - Students,3500,5/23/2018
AMERICAN PUBLIC TRANSPORTATION ASSOCIATION,FARE CARD SOFTWARE CHG,875,5/24/2018
AMERICAN PUBLIC TRANSPORTATION ASSOCIATION,FARE CARD SOFTWARE CHG,280,5/24/2018
AMERICAN PUBLIC TRANSPORTATION ASSOCIATION,Administrative Support,875,6/1/2018
AMERICAN PUBLIC TRANSPORTATION ASSOCIATION,Open Fare,325,6/25/2018
AMERICAN PUBLIC TRANSPORTATION ASSOCIATION,Training - Students,875,7/6/2018
AMERICAN PUBLIC TRANSPORTATION ASSOCIATION,Administrative Support,875,7/17/2018
AMERICAN PUBLIC TRANSPORTATION ASSOCIATION,Administrative Support,875,8/22/2018
AMERICAN PUBLIC TRANSPORTATION ASSOCIATION,Administrative Support,925,9/7/2018
AMERICAN PUBLIC TRANSPORTATION ASSOCIATION,Administrative Support,6000,9/11/2018
AMERICAN RAILWAY ENGINEERING AND MAINTENANCE OF WAY ASSOCIATION,Engineering,11500,1/16/2018
AMERICAN RAILWAY ENGINEERING AND MAINTENANCE OF WAY ASSOCIATION,Engineering,183,7/24/2018
AMERICAN RAILWAY ENGINEERING AND MAINTENANCE OF WAY ASSOCIATION,Engineering,795,8/9/2018
AMERICAN RAILWAY ENGINEERING AND MAINTENANCE OF WAY ASSOCIATION,Engineering,995,8/9/2018
AMERICAN RAILWAY ENGINEERING AND MAINTENANCE OF WAY ASSOCIATION,Engineering,795,8/9/2018
AMERICAN RAILWAY ENGINEERING AND MAINTENANCE OF WAY ASSOCIATION,Engineering,995,8/9/2018
AMERICAN RAILWAY ENGINEERING AND MAINTENANCE OF WAY ASSOCIATION,Engineering,995,8/9/2018
AMERICAN RAILWAY ENGINEERING AND MAINTENANCE OF WAY ASSOCIATION,Engineering,995,8/9/2018
AMERICAN RAILWAY ENGINEERING AND MAINTENANCE OF WAY ASSOCIATION,Maintenance of Track & Roadway,995,8/9/2018
AMERICAN RAILWAY ENGINEERING AND MAINTENANCE OF WAY ASSOCIATION,Management,995,8/9/2018
AMERICAN RAILWAY ENGINEERING AND MAINTENANCE OF WAY ASSOCIATION,Management,995,8/9/2018
AMERICAN RAILWAY ENGINEERING AND MAINTENANCE OF WAY ASSOCIATION,Engineering,5750,10/24/2018
AMERICAN ROOFING & REPAIR CO.,Contract Construction,7492.14,8/1/2018
AMERICAN SOCIETY OF CIVIL ENG.,Engineering,107.95,11/23/2018
AMERICAN SOCIETY OF SAFETY ENG.,Management,185,4/17/2018
AMERICAN TOWERS LLC,"Facilities Operating Expenses (Rent,Utilities,etc)",4235.25,2/2/2018
AMERICAN TOWERS LLC,"Facilities Operating Expenses (Rent,Utilities,etc)",4235.25,2/23/2018
AMERICAN TOWERS LLC,"Facilities Operating Expenses (Rent,Utilities,etc)",4235.25,3/27/2018
AMERICAN TOWERS LLC,"Facilities Operating Expenses (Rent,Utilities,etc)",4235.25,4/17/2018
AMERICAN TOWERS LLC,"Facilities Operating Expenses (Rent,Utilities,etc)",8347.14,5/15/2018
AMERICAN TOWERS LLC,"Facilities Operating Expenses (Rent,Utilities,etc)",4235.25,7/3/2018
AMERICAN TOWERS LLC,"Facilities Operating Expenses (Rent,Utilities,etc)",4111.89,7/5/2018
AMERICAN TOWERS LLC,"Facilities Operating Expenses (Rent,Utilities,etc)",4235.25,7/25/2018
AMERICAN TOWERS LLC,"Facilities Operating Expenses (Rent,Utilities,etc)",4235.25,7/25/2018
AMERICAN TOWERS LLC,"Facilities Operating Expenses (Rent,Utilities,etc)",4235.25,8/23/2018
AMERICAN TOWERS LLC,"Facilities Operating Expenses (Rent,Utilities,etc)",4235.25,8/23/2018
AMERICAN TOWERS LLC,"Facilities Operating Expenses (Rent,Utilities,etc)",4235.25,9/25/2018
AMERICAN TOWERS LLC,"Facilities Operating Expenses (Rent,Utilities,etc)",4235.25,9/25/2018
AMERICAN TOWERS LLC,"Facilities Operating Expenses (Rent,Utilities,etc)",8470.5,10/30/2018
AMERICAN TOWERS LLC,"Facilities Operating Expenses (Rent,Utilities,etc)",8470.5,11/27/2018
AMERICAN TOWERS LLC,"Facilities Operating Expenses (Rent,Utilities,etc)",8470.5,12/24/2018
AMERIMEX SALES & SERVICE,General Shop/Gar/Term Repairs & Svcs,855.45,1/11/2018
AMERIMEX SALES & SERVICE,Maintenance of Equipment,9398.21,10/18/2018
AN EXECUTIVE DECISION,Marketing,5692.11,7/25/2018
AN EXECUTIVE DECISION,Marketing,3177.92,7/25/2018
AN EXECUTIVE DECISION,Professional / Technical,755.9,10/25/2018
ANAMAR HERNANDEZ,I&D Claims (Damage Reserve),25,9/7/2018
"ANCHOR MECHANICAL, INC.",Equipment Purchases,328362.5,1/17/2018
"ANCHOR MECHANICAL, INC.",Equipment Purchases,138400,3/16/2018
"ANCHOR MECHANICAL, INC.",Equipment Purchases,375361.2,3/21/2018
"ANCHOR MECHANICAL, INC.",Equipment Purchases,1141830.94,4/18/2018
"ANCHOR MECHANICAL, INC.",Maintenance of Buildings,6984.45,10/11/2018
"ANCHOR STAFFING, INC.",Professional / Technical,531.19,1/4/2018
"ANCHOR STAFFING, INC.",Professional / Technical,320.85,1/11/2018
"ANCHOR STAFFING, INC.",Professional / Technical,520.49,1/18/2018
"ANCHOR STAFFING, INC.",Professional / Technical,534.75,1/25/2018
"ANCHOR STAFFING, INC.",Professional / Technical,1182.92,2/2/2018
"ANCHOR STAFFING, INC.",Professional / Technical,854.76,2/5/2018
"ANCHOR STAFFING, INC.",Professional / Technical,1032.8,2/15/2018
"ANCHOR STAFFING, INC.",Professional / Technical,740.86,2/22/2018
"ANCHOR STAFFING, INC.",Professional / Technical,1018.54,3/1/2018
"ANCHOR STAFFING, INC.",Professional / Technical,925.85,3/8/2018
"ANCHOR STAFFING, INC.",Professional / Technical,719.29,3/15/2018
"ANCHOR STAFFING, INC.",Professional / Technical,1032.8,3/22/2018
"ANCHOR STAFFING, INC.",Professional / Technical,988.99,3/29/2018
"ANCHOR STAFFING, INC.",Professional / Technical,996.1,4/5/2018
"ANCHOR STAFFING, INC.",Professional / Technical,1102.83,4/12/2018
"ANCHOR STAFFING, INC.",Professional / Technical,1053.02,4/20/2018
"ANCHOR STAFFING, INC.",Professional / Technical,868.04,4/27/2018
"ANCHOR STAFFING, INC.",Professional / Technical,426.9,5/3/2018
"ANCHOR STAFFING, INC.",Professional / Technical,1554.63,5/10/2018
"ANCHOR STAFFING, INC.",Professional / Technical,1102.83,5/18/2018
"ANCHOR STAFFING, INC.",Professional / Technical,988.99,5/31/2018
"ANCHOR STAFFING, INC.",Professional / Technical,967.64,6/13/2018
"ANCHOR STAFFING, INC.",Professional / Technical,1049.47,6/14/2018
"ANCHOR STAFFING, INC.",Professional / Technical,992.53,6/21/2018
"ANCHOR STAFFING, INC.",Professional / Technical,1085.04,6/22/2018
"ANCHOR STAFFING, INC.",Professional / Technical,875.15,7/5/2018
"ANCHOR STAFFING, INC.",Professional / Technical,988.99,7/10/2018
"ANCHOR STAFFING, INC.",Professional / Technical,1099.27,7/12/2018
"ANCHOR STAFFING, INC.",Professional / Technical,1003.22,7/26/2018
"ANCHOR STAFFING, INC.",Professional / Technical,796.88,8/9/2018
"ANCHOR STAFFING, INC.",Professional / Technical,931.2,8/10/2018
"ANCHOR STAFFING, INC.",Professional / Technical,993.28,8/16/2018
"ANCHOR STAFFING, INC.",Professional / Technical,1081.49,8/24/2018
"ANCHOR STAFFING, INC.",Professional / Technical,1039.84,9/7/2018
"ANCHOR STAFFING, INC.",Professional / Technical,1191.16,9/13/2018
"ANCHOR STAFFING, INC.",Professional / Technical,2157.28,9/21/2018
"ANCHOR STAFFING, INC.",Professional / Technical,1051.48,9/27/2018
"ANCHOR STAFFING, INC.",Professional / Technical,2262.04,10/25/2018
"ANCHOR STAFFING, INC.",Professional / Technical,4299.04,11/9/2018
"ANCHOR STAFFING, INC.",Professional / Technical,1649,12/5/2018
"ANCHOR STAFFING, INC.",Professional / Technical,977.76,12/6/2018
ANDERSON COVERAGE GROUP LLC,Administrative Support,855.5,1/11/2018
ANDERSON COVERAGE GROUP LLC,Administrative Support,177,7/5/2018
ANDERSON COVERAGE GROUP LLC,Administrative Support,1062,8/2/2018
ANDERSON ELEVATOR CO.,Maintenance of Buildings,343493.6,1/11/2018
ANDERSON ELEVATOR CO.,Contract Construction,13281.74,1/29/2018
ANDERSON ELEVATOR CO.,Maintenance of Buildings,389656.8,2/7/2018
ANDERSON ELEVATOR CO.,Contract Construction,10818.83,2/8/2018
ANDERSON ELEVATOR CO.,Contract Construction,24826.1,2/12/2018
ANDERSON ELEVATOR CO.,Contract Construction,8676.8,3/5/2018
ANDERSON ELEVATOR CO.,Maintenance of Buildings,342914.35,3/13/2018
ANDERSON ELEVATOR CO.,Contract Construction,21128.55,3/23/2018
ANDERSON ELEVATOR CO.,Contract Construction,14026.27,3/27/2018
ANDERSON ELEVATOR CO.,Maintenance of Buildings,350969.71,4/5/2018
ANDERSON ELEVATOR CO.,Contract Construction,33176.58,4/23/2018
ANDERSON ELEVATOR CO.,Contract Construction,39727.79,5/7/2018
ANDERSON ELEVATOR CO.,Maintenance of Buildings,344050.02,5/17/2018
ANDERSON ELEVATOR CO.,Contract Construction,20137.71,5/22/2018
ANDERSON ELEVATOR CO.,Contract Construction,10116.26,5/29/2018
ANDERSON ELEVATOR CO.,Maintenance of Buildings,23555,5/30/2018
ANDERSON ELEVATOR CO.,Contract Construction,6107.2,5/31/2018
ANDERSON ELEVATOR CO.,Maintenance of Buildings,346034.07,6/7/2018
ANDERSON ELEVATOR CO.,Contract Construction,7123.04,6/19/2018
ANDERSON ELEVATOR CO.,Contract Construction,22855,6/28/2018
ANDERSON ELEVATOR CO.,Maintenance of Buildings,343392.54,7/12/2018
ANDERSON ELEVATOR CO.,Contract Construction,110100,7/26/2018
ANDERSON ELEVATOR CO.,Maintenance of Buildings,346898.12,8/10/2018
ANDERSON ELEVATOR CO.,Contract Construction,40355.44,8/21/2018
ANDERSON ELEVATOR CO.,Contract Construction,19361.92,8/23/2018
ANDERSON ELEVATOR CO.,Contract Construction,21025.92,9/5/2018
ANDERSON ELEVATOR CO.,Maintenance of Buildings,351326.78,9/6/2018
ANDERSON ELEVATOR CO.,Maintenance of Buildings,15147,9/14/2018
ANDERSON ELEVATOR CO.,Contract Construction,123253,9/25/2018
ANDERSON ELEVATOR CO.,Maintenance of Buildings,290,9/26/2018
ANDERSON ELEVATOR CO.,Contract Construction,20417.76,10/2/2018
ANDERSON ELEVATOR CO.,Contract Construction,24957.76,10/4/2018
ANDERSON ELEVATOR CO.,Contract Construction,43923.7,11/1/2018
ANDERSON ELEVATOR CO.,Equipment Purchases,382321.27,11/1/2018
ANDERSON ELEVATOR CO.,Equipment Purchases,338641.56,11/8/2018
ANDERSON ELEVATOR CO.,Contract Construction,27585.36,11/13/2018
ANDERSON ELEVATOR CO.,Contract Construction,10430.01,12/6/2018
ANDERSON ELEVATOR CO.,Equipment Purchases,355564.97,12/6/2018
ANDERSON ELEVATOR CO.,Contract Construction,19947.36,12/27/2018
ANDREA SYLVESTER,Real Estate,573.47,6/20/2018
ANDREA SYLVESTER,Real Estate,291,10/5/2018
ANDREA SYLVESTER,Real Estate,582,11/7/2018
ANDREW COIN,Real Estate,3660.67,8/29/2018
ANDREW DENNIS,I&D Claims (Damage Reserve),1700,7/10/2018
ANDREW KILMER,I&D Claims (Damage Reserve),25,8/10/2018
ANITA M. ROWE,Administrative Support,500,3/30/2018
ANITA M. ROWE,Administrative Support,625,4/17/2018
ANITA M. ROWE,I&D Claims (Damage Reserve),458.23,7/31/2018
"ANIXTER, INC.",Administrative Support,1239.1,4/11/2018
ANN S. KENIS,Administrative Support,4125,3/9/2018
ANN S. KENIS,Administrative Support,1500,7/24/2018
ANN S. KENIS,I&D Claims (Damage Reserve),2625,8/2/2018
ANN S. KENIS,Administrative Support,3750,9/11/2018
ANN S. KENIS,Administrative Support,1500,10/25/2018
ANN S. KENIS,Administrative Support,750,12/12/2018
ANNA COBB,Administrative Support,200,2/7/2018
ANNIE PRICE,I&D Claims (Damage Reserve),75,10/24/2018
ANNIE PRICE,I&D Claims (Damage Reserve),75,12/4/2018
"ANSALDO STS USA, INC.",Maintainance of Signal & Control Equipment,4174.64,1/2/2018
"ANSALDO STS USA, INC.",Maintainance of Signal & Control Equipment,4239,1/11/2018
"ANSALDO STS USA, INC.",Maintainance of Signal & Control Equipment,3761.1,1/18/2018
"ANSALDO STS USA, INC.",Maintainance of Signal & Control Equipment,5070.63,1/26/2018
"ANSALDO STS USA, INC.",Maintainance of Signal & Control Equipment,417.9,2/14/2018
"ANSALDO STS USA, INC.",Maintainance of Signal & Control Equipment,12435.62,3/1/2018
"ANSALDO STS USA, INC.",Maintainance of Signal & Control Equipment,2293.2,3/29/2018
"ANSALDO STS USA, INC.",Maintainance of Signal & Control Equipment,395.92,4/3/2018
"ANSALDO STS USA, INC.",Maintainance of Signal & Control Equipment,231.98,4/12/2018
"ANSALDO STS USA, INC.",Maintainance of Signal & Control Equipment,518.25,5/2/2018
"ANSALDO STS USA, INC.",Maintainance of Signal & Control Equipment,8451.05,5/30/2018
"ANSALDO STS USA, INC.",Maintainance of Signal & Control Equipment,518.25,5/31/2018
"ANSALDO STS USA, INC.",Maintainance of Signal & Control Equipment,5669.91,6/20/2018
"ANSALDO STS USA, INC.",Maintainance of Signal & Control Equipment,5214.56,6/28/2018
"ANSALDO STS USA, INC.",Maintainance of Signal & Control Equipment,1571.22,7/3/2018
"ANSALDO STS USA, INC.",Maintainance of Signal & Control Equipment,11286.25,7/5/2018
"ANSALDO STS USA, INC.",Maintainance of Signal & Control Equipment,8451.05,7/10/2018
"ANSALDO STS USA, INC.",Equipment Purchases,14193.69,8/10/2018
"ANSALDO STS USA, INC.",Equipment Purchases,686.08,8/22/2018
"ANSALDO STS USA, INC.",Maintainance of Signal & Control Equipment,3137.5,8/29/2018
"ANSALDO STS USA, INC.",Maintainance of Signal & Control Equipment,2045.64,9/4/2018
"ANSALDO STS USA, INC.",Maintainance of Signal & Control Equipment,2448.4,9/5/2018
"ANSALDO STS USA, INC.",Equipment Purchases,10273.1,10/19/2018
"ANSALDO STS USA, INC.",Maintainance of Signal & Control Equipment,9726,11/1/2018
"ANSALDO STS USA, INC.",Equipment Purchases,18548.75,11/9/2018
"ANSALDO STS USA, INC.",Maintainance of Signal & Control Equipment,1339.8,11/15/2018
"ANSALDO STS USA, INC.",Maintainance of Signal & Control Equipment,235.2,11/20/2018
"ANSALDO STS USA, INC.",Maintainance of Signal & Control Equipment,22.94,12/6/2018
"ANSALDO STS USA, INC.",Maintainance of Signal & Control Equipment,1692.16,12/18/2018
"ANSALDO STS USA, INC.",Equipment Purchases,81202.04,12/21/2018
"ANSALDO STS USA, INC.",Equipment Purchases,29188.8,12/26/2018
ANTHONY MILLER,I&D Claims (Damage Reserve),300,1/16/2018
ANTHONY MILLER,I&D Claims (Damage Reserve),225,1/16/2018
ANTHONY MILLER,I&D Claims (Damage Reserve),75,1/16/2018
ANTHONY MILLER,I&D Claims (Damage Reserve),225,3/9/2018
ANTHONY MILLER,I&D Claims (Damage Reserve),75,3/9/2018
ANTHONY MILLER,I&D Claims (Damage Reserve),75,3/9/2018
ANTHONY MILLER,I&D Claims (Damage Reserve),225,5/17/2018
ANTHONY PIRIE MD.,I&D Claims (Damage Reserve),500,1/9/2018
APOLLO VIDEO TECHNOLOGY,Maintenance of Equipment,120443.5,2/1/2018
APOLLO VIDEO TECHNOLOGY,Maintenance of Equipment,63563.5,4/10/2018
APOLLO VIDEO TECHNOLOGY,Maintenance of Equipment,67859.25,4/25/2018
APOLLO VIDEO TECHNOLOGY,Maintenance of Equipment,63420.25,5/15/2018
APOLLO VIDEO TECHNOLOGY,Equipment Purchases,276630,6/20/2018
APOLLO VIDEO TECHNOLOGY,Maintenance of Equipment,66744,7/19/2018
APOLLO VIDEO TECHNOLOGY,Maintenance of Equipment,133430,8/7/2018
APOLLO VIDEO TECHNOLOGY,Maintenance of Equipment,72126.3,12/19/2018
APPLICATIONS SOFTWARE TECH.,Consulting Services,323900,3/5/2018
APPLICATIONS SOFTWARE TECH.,Consulting Services,466900,3/29/2018
APPLICATIONS SOFTWARE TECH.,Consulting Services,327500,4/23/2018
APPLICATIONS SOFTWARE TECH.,Consulting Services,108800,9/13/2018
APPLICATIONS SOFTWARE TECH.,Consulting Services,203000,11/26/2018
"ARAMARK UNIFORM SERVICES, INC.",Money Counting,45.22,1/2/2018
"ARAMARK UNIFORM SERVICES, INC.",Engineering,161.28,1/16/2018
"ARAMARK UNIFORM SERVICES, INC.",Engineering,168,1/23/2018
"ARAMARK UNIFORM SERVICES, INC.",Money Counting,45.22,1/24/2018
"ARAMARK UNIFORM SERVICES, INC.",Money Counting,377.54,1/29/2018
"ARAMARK UNIFORM SERVICES, INC.",Money Counting,45.22,1/31/2018
"ARAMARK UNIFORM SERVICES, INC.",Money Counting,45.22,2/7/2018
"ARAMARK UNIFORM SERVICES, INC.",Engineering,166.29,2/13/2018
"ARAMARK UNIFORM SERVICES, INC.",Money Counting,53.4,2/14/2018
"ARAMARK UNIFORM SERVICES, INC.",Money Counting,53.4,2/20/2018
"ARAMARK UNIFORM SERVICES, INC.",Engineering,126,2/23/2018
"ARAMARK UNIFORM SERVICES, INC.",Engineering,42,2/27/2018
"ARAMARK UNIFORM SERVICES, INC.",Money Counting,19.76,3/21/2018
"ARAMARK UNIFORM SERVICES, INC.",Money Counting,55.4,3/27/2018
"ARAMARK UNIFORM SERVICES, INC.",Money Counting,55.4,4/4/2018
"ARAMARK UNIFORM SERVICES, INC.",Money Counting,55.4,4/11/2018
"ARAMARK UNIFORM SERVICES, INC.",Money Counting,55.4,4/18/2018
"ARAMARK UNIFORM SERVICES, INC.",Engineering,126,4/19/2018
"ARAMARK UNIFORM SERVICES, INC.",Money Counting,55.4,4/25/2018
"ARAMARK UNIFORM SERVICES, INC.",Engineering,168,4/27/2018
"ARAMARK UNIFORM SERVICES, INC.",Money Counting,55.4,5/3/2018
"ARAMARK UNIFORM SERVICES, INC.",Money Counting,55.4,5/9/2018
"ARAMARK UNIFORM SERVICES, INC.",Engineering,210,5/11/2018
"ARAMARK UNIFORM SERVICES, INC.",Money Counting,72.56,5/23/2018
"ARAMARK UNIFORM SERVICES, INC.",Money Counting,55.4,5/30/2018
"ARAMARK UNIFORM SERVICES, INC.",Engineering,168,6/8/2018
"ARAMARK UNIFORM SERVICES, INC.",Money Counting,166.2,6/13/2018
"ARAMARK UNIFORM SERVICES, INC.",Money Counting,55.4,6/20/2018
"ARAMARK UNIFORM SERVICES, INC.",Money Counting,55.4,6/27/2018
"ARAMARK UNIFORM SERVICES, INC.",Money Counting,55.4,7/3/2018
"ARAMARK UNIFORM SERVICES, INC.",Engineering,126,7/11/2018
"ARAMARK UNIFORM SERVICES, INC.",Money Counting,55.4,7/11/2018
"ARAMARK UNIFORM SERVICES, INC.",Engineering,42,7/13/2018
"ARAMARK UNIFORM SERVICES, INC.",Money Counting,55.4,7/18/2018
"ARAMARK UNIFORM SERVICES, INC.",Money Counting,55.4,7/25/2018
"ARAMARK UNIFORM SERVICES, INC.",Engineering,164.64,8/28/2018
"ARAMARK UNIFORM SERVICES, INC.",Money Counting,63.72,9/5/2018
"ARAMARK UNIFORM SERVICES, INC.",Money Counting,63.72,9/12/2018
"ARAMARK UNIFORM SERVICES, INC.",Money Counting,191.16,9/17/2018
"ARAMARK UNIFORM SERVICES, INC.",Engineering,42,9/18/2018
"ARAMARK UNIFORM SERVICES, INC.",Money Counting,63.72,9/18/2018
"ARAMARK UNIFORM SERVICES, INC.",Engineering,42,9/20/2018
"ARAMARK UNIFORM SERVICES, INC.",Money Counting,63.72,9/26/2018
"ARAMARK UNIFORM SERVICES, INC.",Money Counting,63.72,9/27/2018
"ARAMARK UNIFORM SERVICES, INC.",Engineering,161.28,10/2/2018
"ARAMARK UNIFORM SERVICES, INC.",Money Counting,63.72,10/3/2018
"ARAMARK UNIFORM SERVICES, INC.",Engineering,120.96,10/4/2018
"ARAMARK UNIFORM SERVICES, INC.",Engineering,40.32,10/5/2018
"ARAMARK UNIFORM SERVICES, INC.",Money Counting,63.72,10/10/2018
"ARAMARK UNIFORM SERVICES, INC.",Money Counting,63.72,10/17/2018
"ARAMARK UNIFORM SERVICES, INC.",Money Counting,111.2,10/24/2018
"ARAMARK UNIFORM SERVICES, INC.",Money Counting,67.04,10/31/2018
"ARAMARK UNIFORM SERVICES, INC.",Engineering,161.28,11/7/2018
"ARAMARK UNIFORM SERVICES, INC.",Money Counting,67.04,11/7/2018
"ARAMARK UNIFORM SERVICES, INC.",Money Counting,63.72,11/8/2018
"ARAMARK UNIFORM SERVICES, INC.",Money Counting,67.04,11/14/2018
"ARAMARK UNIFORM SERVICES, INC.",Money Counting,67.04,11/21/2018
"ARAMARK UNIFORM SERVICES, INC.",Money Counting,67.04,11/28/2018
"ARAMARK UNIFORM SERVICES, INC.",Money Counting,40.48,12/5/2018
"ARAMARK UNIFORM SERVICES, INC.",Money Counting,67.04,12/12/2018
"ARAMARK UNIFORM SERVICES, INC.",Engineering,161.28,12/13/2018
"ARAMARK UNIFORM SERVICES, INC.",Money Counting,67.04,12/19/2018
"ARAMARK UNIFORM SERVICES, INC.",Money Counting,67.04,12/26/2018
ARC IMAGING RESOURCES,Management,5473.96,1/11/2018
ARC IMAGING RESOURCES,Management,362.72,3/8/2018
ARC IMAGING RESOURCES,Management,5473.96,4/27/2018
ARC IMAGING RESOURCES,Management,562.16,5/24/2018
ARC IMAGING RESOURCES,Management,120.18,6/7/2018
ARC IMAGING RESOURCES,Management,221.68,6/18/2018
ARC IMAGING RESOURCES,Management,5473.96,7/5/2018
ARC IMAGING RESOURCES,Management,140.54,7/10/2018
ARC IMAGING RESOURCES,Management,1124.32,7/11/2018
ARC IMAGING RESOURCES,Management,120.72,8/1/2018
ARC IMAGING RESOURCES,Management,313.62,8/23/2018
ARC IMAGING RESOURCES,Management,59.76,10/25/2018
ARC IMAGING RESOURCES,Management,125,11/29/2018
ARC IMAGING RESOURCES,Management,5473.96,12/11/2018
ARC IMAGING RESOURCES,Management,59.76,12/19/2018
"ARCADIS  U.S., INC.",Consulting Services,307923.83,1/19/2018
"ARCADIS  U.S., INC.",Consulting Services,251444.99,2/5/2018
"ARCADIS  U.S., INC.",Consulting Services,263177.71,3/14/2018
"ARCADIS  U.S., INC.",Consulting Services,202768.81,4/6/2018
"ARCADIS  U.S., INC.",Consulting Services,241958.48,6/12/2018
"ARCADIS  U.S., INC.",Consulting Services,165146.92,8/28/2018
"ARCADIS  U.S., INC.",Consulting Services,417835.33,8/30/2018
"ARCADIS  U.S., INC.",Consulting Services,185459.18,9/13/2018
"ARCADIS  U.S., INC.",Consulting Services,568.92,9/25/2018
"ARCADIS  U.S., INC.",Consulting Services,360069.37,10/9/2018
"ARCADIS  U.S., INC.",Consulting Services,124504.9,11/1/2018
"ARCADIS  U.S., INC.",Consulting Services,12830.95,12/18/2018
"ARCCA, INCORPORATED",I&D Claims (Damage Reserve),515,1/10/2018
"ARCCA, INCORPORATED",I&D Claims (Damage Reserve),4125,4/18/2018
"ARCON WELDING, LLC",Maintenance of Track & Roadway-Electrical,1594.81,1/11/2018
"ARCON WELDING, LLC",Maintenance of Structures,3054.89,1/26/2018
"ARCON WELDING, LLC",Maintenance of Track & Roadway-Electrical,756.57,2/20/2018
"ARCON WELDING, LLC",Maintenance of Track & Roadway-Electrical,985.57,8/23/2018
"ARCON WELDING, LLC",Maintenance of Structures,2296.95,12/4/2018
ARIEL LEIFER M.D.,I&D Claims (Damage Reserve),500,10/23/2018
ARMA INTERNATIONAL,Quality Assurance,225,9/5/2018
ASHRAE LEARNING INSTITUTE,Professional / Technical,209,8/3/2018
"ASKREPLY, INC.",Software Maintenance Fees,9900,4/13/2018
"ASKREPLY, INC.",Software Maintenance Fees,103983,10/5/2018
ASME INTERNATIONAL,Professional / Technical,158,9/5/2018
ASME INTERNATIONAL,Professional / Technical,146.5,10/9/2018
"ASSETWORKS, INC.",Consulting Services,18867.54,7/19/2018
"ASSETWORKS, INC.",Consulting Services,9433.77,7/26/2018
"ASSETWORKS, INC.",Consulting Services,9433.77,7/26/2018
"ASSETWORKS, INC.",Consulting Services,11781.27,7/26/2018
"ASSETWORKS, INC.",Consulting Services,9433.77,7/27/2018
"ASSETWORKS, INC.",Consulting Services,9433.77,7/27/2018
"ASSETWORKS, INC.",Consulting Services,9433.77,7/27/2018
"ASSOCIATED INDUSTRIAL BRUSH CO, LTD",Maintenance of Equipment,12531.6,4/5/2018
ASSOCIATION FOR TALENT DEVELOPMENT,Training - Students,1197,8/21/2018
ASSOCIATION OF CERTIFIED FRAUD,Dues & Memberships,195,2/2/2018
ASSOCIATION OF CERTIFIED FRAUD,Dues & Memberships,225,7/24/2018
ASTM INTERNATIONAL,Professional / Technical,20600,3/23/2018
AT & T CORP,Maintain/Repair Communications  Equip,369758.11,2/7/2018
AT & T CORP,Maintain/Repair Communications  Equip,1010.67,2/7/2018
AT & T CORP,Maintain/Repair Communications  Equip,1694.37,2/9/2018
AT & T CORP,Maintain/Repair Communications  Equip,426024.86,2/20/2018
AT & T CORP,Maintain/Repair Communications  Equip,372068.74,4/13/2018
AT & T CORP,Maintain/Repair Communications  Equip,5910.11,5/29/2018
AT & T CORP,Maintain/Repair Communications  Equip,25604.4,5/29/2018
AT & T CORP,Maintain/Repair Communications  Equip,641112.97,5/30/2018
AT & T CORP,Maintain/Repair Communications  Equip,8350.8,8/24/2018
AT & T CORP,Maintain/Repair Communications  Equip,711673.85,8/28/2018
AT & T CORP,Maintain/Repair Communications  Equip,4175.4,8/29/2018
AT & T CORP,Maintain/Repair Communications  Equip,239302.34,9/6/2018
AT & T CORP,Maintain/Repair Communications  Equip,380017.52,11/14/2018
AT & T CORP,Maintain/Repair Communications  Equip,530914.04,12/11/2018
AT & T CORP,Maintain/Repair Communications  Equip,9000,12/13/2018
AT&T,Equipment Purchases,87678.18,8/31/2018
"AT&T MOBILITY NATIONAL ACCOUNTS, LLC",Computer Operations,496147.81,5/16/2018
"AT&T MOBILITY NATIONAL ACCOUNTS, LLC",Computer Operations,1011.16,5/16/2018
"AT&T MOBILITY NATIONAL ACCOUNTS, LLC",Computer Operations,505.58,5/22/2018
"AT&T MOBILITY NATIONAL ACCOUNTS, LLC",Computer Operations,1011.16,5/31/2018
"AT&T MOBILITY NATIONAL ACCOUNTS, LLC",Computer Operations,1011.16,7/31/2018
"AT&T MOBILITY NATIONAL ACCOUNTS, LLC",Computer Operations,193396.3,8/24/2018
"AT&T MOBILITY NATIONAL ACCOUNTS, LLC",Computer Operations,505.58,8/28/2018
"AT&T MOBILITY NATIONAL ACCOUNTS, LLC",Computer Operations,95263.3,9/4/2018
"AT&T MOBILITY NATIONAL ACCOUNTS, LLC",Computer Operations,95596.63,11/14/2018
"AT&T MOBILITY NATIONAL ACCOUNTS, LLC",Computer Operations,1516.74,12/11/2018
"AT&T MOBILITY NATIONAL ACCOUNTS, LLC",Computer Operations,190266.19,12/11/2018
"AT&T MOBILITY NATIONAL ACCOUNTS, LLC",Computer Operations,505.58,12/20/2018
"ATKINSON-BAKER, INC.",I&D Claims (Damage Reserve),296.35,3/7/2018
"ATLAS FIRST ACCESS MATERIAL HANDLING, INC.",Maintenance of Buildings,2489.43,1/4/2018
"ATLAS FIRST ACCESS MATERIAL HANDLING, INC.",Maintenance of Equipment,551.77,1/4/2018
"ATLAS FIRST ACCESS MATERIAL HANDLING, INC.",Maintenance of Buildings,6086.88,1/5/2018
"ATLAS FIRST ACCESS MATERIAL HANDLING, INC.",Maintenance of Equipment,227.65,1/5/2018
"ATLAS FIRST ACCESS MATERIAL HANDLING, INC.",Maintenance of Buildings,3054.94,1/8/2018
"ATLAS FIRST ACCESS MATERIAL HANDLING, INC.",Maintenance of Buildings,17012.4,1/9/2018
"ATLAS FIRST ACCESS MATERIAL HANDLING, INC.",Maintenance of Equipment,1220.52,1/9/2018
"ATLAS FIRST ACCESS MATERIAL HANDLING, INC.",Maintenance of Buildings,2923.28,1/10/2018
"ATLAS FIRST ACCESS MATERIAL HANDLING, INC.",Maintenance of Buildings,4143.63,1/11/2018
"ATLAS FIRST ACCESS MATERIAL HANDLING, INC.",Maintenance of Equipment,227.65,1/11/2018
"ATLAS FIRST ACCESS MATERIAL HANDLING, INC.",Maintenance of Buildings,866.6,1/16/2018
"ATLAS FIRST ACCESS MATERIAL HANDLING, INC.",Maintenance of Buildings,233.77,1/18/2018
"ATLAS FIRST ACCESS MATERIAL HANDLING, INC.",Maintenance of Equipment,425.1,1/18/2018
"ATLAS FIRST ACCESS MATERIAL HANDLING, INC.",Maintenance of Buildings,877.16,1/24/2018
"ATLAS FIRST ACCESS MATERIAL HANDLING, INC.",Maintenance of Equipment,335.67,1/24/2018
"ATLAS FIRST ACCESS MATERIAL HANDLING, INC.",Maintenance of Buildings,2543.92,1/25/2018
"ATLAS FIRST ACCESS MATERIAL HANDLING, INC.",Maintenance of Equipment,409.77,1/25/2018
"ATLAS FIRST ACCESS MATERIAL HANDLING, INC.",Maintenance of Buildings,7222.02,1/29/2018
"ATLAS FIRST ACCESS MATERIAL HANDLING, INC.",Maintenance of Equipment,5895.89,1/29/2018
"ATLAS FIRST ACCESS MATERIAL HANDLING, INC.",Maintenance of Equipment,751.81,1/30/2018
"ATLAS FIRST ACCESS MATERIAL HANDLING, INC.",Maintenance of Buildings,352.43,2/1/2018
"ATLAS FIRST ACCESS MATERIAL HANDLING, INC.",Maintenance of Equipment,227.65,2/1/2018
"ATLAS FIRST ACCESS MATERIAL HANDLING, INC.",Maintenance of Buildings,1050.84,2/2/2018
"ATLAS FIRST ACCESS MATERIAL HANDLING, INC.",Maintenance of Buildings,441.69,2/6/2018
"ATLAS FIRST ACCESS MATERIAL HANDLING, INC.",Maintenance of Buildings,9134.57,2/7/2018
"ATLAS FIRST ACCESS MATERIAL HANDLING, INC.",Maintenance of Buildings,227.65,2/13/2018
"ATLAS FIRST ACCESS MATERIAL HANDLING, INC.",Maintenance of Buildings,1070.76,2/14/2018
"ATLAS FIRST ACCESS MATERIAL HANDLING, INC.",Maintenance of Equipment,136.59,2/14/2018
"ATLAS FIRST ACCESS MATERIAL HANDLING, INC.",Maintenance of Buildings,1625.35,2/15/2018
"ATLAS FIRST ACCESS MATERIAL HANDLING, INC.",Maintenance of Equipment,1768.54,2/15/2018
"ATLAS FIRST ACCESS MATERIAL HANDLING, INC.",Maintenance of Buildings,242.92,2/16/2018
"ATLAS FIRST ACCESS MATERIAL HANDLING, INC.",Maintenance of Equipment,3144.42,2/16/2018
"ATLAS FIRST ACCESS MATERIAL HANDLING, INC.",Maintenance of Buildings,3161.45,2/22/2018
"ATLAS FIRST ACCESS MATERIAL HANDLING, INC.",Maintenance of Equipment,4847.93,2/22/2018
"ATLAS FIRST ACCESS MATERIAL HANDLING, INC.",Maintenance of Buildings,273.18,2/23/2018
"ATLAS FIRST ACCESS MATERIAL HANDLING, INC.",Maintenance of Equipment,4171.59,2/23/2018
"ATLAS FIRST ACCESS MATERIAL HANDLING, INC.",Maintenance of Buildings,2765.37,2/27/2018
"ATLAS FIRST ACCESS MATERIAL HANDLING, INC.",Maintenance of Equipment,409.77,2/27/2018
"ATLAS FIRST ACCESS MATERIAL HANDLING, INC.",Maintenance of Buildings,318.71,2/28/2018
"ATLAS FIRST ACCESS MATERIAL HANDLING, INC.",Maintenance of Buildings,7590.86,3/1/2018
"ATLAS FIRST ACCESS MATERIAL HANDLING, INC.",Maintenance of Equipment,4083.1,3/1/2018
"ATLAS FIRST ACCESS MATERIAL HANDLING, INC.",Maintenance of Buildings,91.06,3/6/2018
"ATLAS FIRST ACCESS MATERIAL HANDLING, INC.",Maintenance of Buildings,803.56,3/7/2018
"ATLAS FIRST ACCESS MATERIAL HANDLING, INC.",Maintenance of Equipment,568,3/7/2018
"ATLAS FIRST ACCESS MATERIAL HANDLING, INC.",Maintenance of Equipment,933.37,3/8/2018
"ATLAS FIRST ACCESS MATERIAL HANDLING, INC.",Maintenance of Buildings,1714.12,3/13/2018
"ATLAS FIRST ACCESS MATERIAL HANDLING, INC.",Maintenance of Equipment,227.65,3/13/2018
"ATLAS FIRST ACCESS MATERIAL HANDLING, INC.",Maintenance of Buildings,8939.26,3/15/2018
"ATLAS FIRST ACCESS MATERIAL HANDLING, INC.",Maintenance of Buildings,364.24,3/16/2018
"ATLAS FIRST ACCESS MATERIAL HANDLING, INC.",Maintenance of Buildings,1268.54,3/19/2018
"ATLAS FIRST ACCESS MATERIAL HANDLING, INC.",Maintenance of Equipment,1892.2,3/19/2018
"ATLAS FIRST ACCESS MATERIAL HANDLING, INC.",Maintenance of Buildings,2645.35,3/20/2018
"ATLAS FIRST ACCESS MATERIAL HANDLING, INC.",Maintenance of Equipment,1988.26,3/20/2018
"ATLAS FIRST ACCESS MATERIAL HANDLING, INC.",Maintenance of Buildings,1538.35,3/22/2018
"ATLAS FIRST ACCESS MATERIAL HANDLING, INC.",Maintenance of Equipment,790.36,3/22/2018
"ATLAS FIRST ACCESS MATERIAL HANDLING, INC.",Maintenance of Equipment,4289.01,3/23/2018
"ATLAS FIRST ACCESS MATERIAL HANDLING, INC.",Maintenance of Buildings,9109.75,3/27/2018
"ATLAS FIRST ACCESS MATERIAL HANDLING, INC.",Maintenance of Equipment,46068.87,3/27/2018
"ATLAS FIRST ACCESS MATERIAL HANDLING, INC.",Maintenance of Buildings,971.46,3/28/2018
"ATLAS FIRST ACCESS MATERIAL HANDLING, INC.",Maintenance of Equipment,6333.19,3/28/2018
"ATLAS FIRST ACCESS MATERIAL HANDLING, INC.",Maintenance of Equipment,923.6,3/30/2018
"ATLAS FIRST ACCESS MATERIAL HANDLING, INC.",Maintenance of Equipment,970.92,4/3/2018
"ATLAS FIRST ACCESS MATERIAL HANDLING, INC.",Maintenance of Equipment,91.06,4/4/2018
"ATLAS FIRST ACCESS MATERIAL HANDLING, INC.",Maintenance of Buildings,1420.87,4/5/2018
"ATLAS FIRST ACCESS MATERIAL HANDLING, INC.",Maintenance of Equipment,2526.44,4/5/2018
"ATLAS FIRST ACCESS MATERIAL HANDLING, INC.",Maintenance of Equipment,3621,4/6/2018
"ATLAS FIRST ACCESS MATERIAL HANDLING, INC.",Maintenance of Buildings,5268.12,4/11/2018
"ATLAS FIRST ACCESS MATERIAL HANDLING, INC.",Maintenance of Equipment,227.65,4/11/2018
"ATLAS FIRST ACCESS MATERIAL HANDLING, INC.",Maintenance of Equipment,9088.17,4/12/2018
"ATLAS FIRST ACCESS MATERIAL HANDLING, INC.",Maintenance of Buildings,60.84,4/13/2018
"ATLAS FIRST ACCESS MATERIAL HANDLING, INC.",Maintenance of Equipment,3130.04,4/13/2018
"ATLAS FIRST ACCESS MATERIAL HANDLING, INC.",Maintenance of Equipment,4030.83,4/17/2018
"ATLAS FIRST ACCESS MATERIAL HANDLING, INC.",Maintenance of Equipment,1672.13,4/19/2018
"ATLAS FIRST ACCESS MATERIAL HANDLING, INC.",Maintenance of Equipment,3862.84,4/20/2018
"ATLAS FIRST ACCESS MATERIAL HANDLING, INC.",Maintenance of Equipment,2417.47,4/24/2018
"ATLAS FIRST ACCESS MATERIAL HANDLING, INC.",Maintenance of Buildings,994.08,4/25/2018
"ATLAS FIRST ACCESS MATERIAL HANDLING, INC.",Maintenance of Equipment,18627.17,4/25/2018
"ATLAS FIRST ACCESS MATERIAL HANDLING, INC.",Maintenance of Equipment,1612.69,4/26/2018
"ATLAS FIRST ACCESS MATERIAL HANDLING, INC.",Maintenance of Buildings,4872.6,4/27/2018
"ATLAS FIRST ACCESS MATERIAL HANDLING, INC.",Maintenance of Equipment,11038.2,4/27/2018
"ATLAS FIRST ACCESS MATERIAL HANDLING, INC.",Maintenance of Buildings,12046.85,5/3/2018
"ATLAS FIRST ACCESS MATERIAL HANDLING, INC.",Maintenance of Equipment,4318.95,5/3/2018
"ATLAS FIRST ACCESS MATERIAL HANDLING, INC.",Maintenance of Equipment,113.83,5/9/2018
"ATLAS FIRST ACCESS MATERIAL HANDLING, INC.",Maintenance of Equipment,1164.42,5/10/2018
"ATLAS FIRST ACCESS MATERIAL HANDLING, INC.",Maintenance of Buildings,1295.37,5/11/2018
"ATLAS FIRST ACCESS MATERIAL HANDLING, INC.",Maintenance of Buildings,124.74,5/15/2018
"ATLAS FIRST ACCESS MATERIAL HANDLING, INC.",Maintenance of Equipment,707.32,5/15/2018
"ATLAS FIRST ACCESS MATERIAL HANDLING, INC.",Maintenance of Buildings,844.41,5/16/2018
"ATLAS FIRST ACCESS MATERIAL HANDLING, INC.",Maintenance of Equipment,649.61,5/16/2018
"ATLAS FIRST ACCESS MATERIAL HANDLING, INC.",Maintenance of Equipment,3213.68,5/17/2018
"ATLAS FIRST ACCESS MATERIAL HANDLING, INC.",Maintenance of Buildings,1183.78,5/18/2018
"ATLAS FIRST ACCESS MATERIAL HANDLING, INC.",Maintenance of Equipment,2359.64,5/18/2018
"ATLAS FIRST ACCESS MATERIAL HANDLING, INC.",Maintenance of Equipment,855.37,5/22/2018
"ATLAS FIRST ACCESS MATERIAL HANDLING, INC.",Maintenance of Equipment,13162.34,5/24/2018
"ATLAS FIRST ACCESS MATERIAL HANDLING, INC.",Maintenance of Buildings,799.56,5/25/2018
"ATLAS FIRST ACCESS MATERIAL HANDLING, INC.",Maintenance of Equipment,3451.42,5/25/2018
"ATLAS FIRST ACCESS MATERIAL HANDLING, INC.",Maintenance of Buildings,438.73,5/29/2018
"ATLAS FIRST ACCESS MATERIAL HANDLING, INC.",Maintenance of Equipment,9863.26,5/29/2018
"ATLAS FIRST ACCESS MATERIAL HANDLING, INC.",Maintenance of Buildings,7742,5/31/2018
"ATLAS FIRST ACCESS MATERIAL HANDLING, INC.",Maintenance of Equipment,513.9,5/31/2018
"ATLAS FIRST ACCESS MATERIAL HANDLING, INC.",Maintenance of Equipment,1092.72,6/1/2018
"ATLAS FIRST ACCESS MATERIAL HANDLING, INC.",Maintenance of Equipment,1649.2,6/5/2018
"ATLAS FIRST ACCESS MATERIAL HANDLING, INC.",Maintenance of Buildings,1052.8,6/7/2018
"ATLAS FIRST ACCESS MATERIAL HANDLING, INC.",Maintenance of Equipment,614.66,6/7/2018
"ATLAS FIRST ACCESS MATERIAL HANDLING, INC.",Maintenance of Buildings,314.16,6/8/2018
"ATLAS FIRST ACCESS MATERIAL HANDLING, INC.",Maintenance of Buildings,881.16,6/12/2018
"ATLAS FIRST ACCESS MATERIAL HANDLING, INC.",Maintenance of Equipment,6097.7,6/12/2018
"ATLAS FIRST ACCESS MATERIAL HANDLING, INC.",Maintenance of Equipment,875.43,6/13/2018
"ATLAS FIRST ACCESS MATERIAL HANDLING, INC.",Maintenance of Buildings,344.34,6/14/2018
"ATLAS FIRST ACCESS MATERIAL HANDLING, INC.",Maintenance of Equipment,3223.86,6/14/2018
"ATLAS FIRST ACCESS MATERIAL HANDLING, INC.",Maintenance of Equipment,923.68,6/15/2018
"ATLAS FIRST ACCESS MATERIAL HANDLING, INC.",Maintenance of Buildings,10966.61,6/18/2018
"ATLAS FIRST ACCESS MATERIAL HANDLING, INC.",Maintenance of Buildings,563.19,6/19/2018
"ATLAS FIRST ACCESS MATERIAL HANDLING, INC.",Maintenance of Equipment,2004.93,6/19/2018
"ATLAS FIRST ACCESS MATERIAL HANDLING, INC.",Maintenance of Equipment,1523.06,6/20/2018
"ATLAS FIRST ACCESS MATERIAL HANDLING, INC.",Maintenance of Equipment,10029.9,6/21/2018
"ATLAS FIRST ACCESS MATERIAL HANDLING, INC.",Maintenance of Buildings,249.46,6/22/2018
"ATLAS FIRST ACCESS MATERIAL HANDLING, INC.",Maintenance of Equipment,2478.44,6/22/2018
"ATLAS FIRST ACCESS MATERIAL HANDLING, INC.",Maintenance of Buildings,2728.56,6/25/2018
"ATLAS FIRST ACCESS MATERIAL HANDLING, INC.",Maintenance of Equipment,1802.41,6/25/2018
"ATLAS FIRST ACCESS MATERIAL HANDLING, INC.",Maintenance of Equipment,13186.61,6/26/2018
"ATLAS FIRST ACCESS MATERIAL HANDLING, INC.",Maintenance of Equipment,15141.48,6/27/2018
"ATLAS FIRST ACCESS MATERIAL HANDLING, INC.",Maintenance of Equipment,22141.82,6/28/2018
"ATLAS FIRST ACCESS MATERIAL HANDLING, INC.",Maintenance of Equipment,6790,6/29/2018
"ATLAS FIRST ACCESS MATERIAL HANDLING, INC.",Maintenance of Equipment,227.65,7/2/2018
"ATLAS FIRST ACCESS MATERIAL HANDLING, INC.",Maintenance of Equipment,8545.59,7/3/2018
"ATLAS FIRST ACCESS MATERIAL HANDLING, INC.",Maintenance of Equipment,2294.42,7/5/2018
"ATLAS FIRST ACCESS MATERIAL HANDLING, INC.",Maintenance of Equipment,227.65,7/6/2018
"ATLAS FIRST ACCESS MATERIAL HANDLING, INC.",Maintenance of Equipment,2394.02,7/11/2018
"ATLAS FIRST ACCESS MATERIAL HANDLING, INC.",Maintenance of Buildings,577.5,7/12/2018
"ATLAS FIRST ACCESS MATERIAL HANDLING, INC.",Maintenance of Equipment,2205.67,7/12/2018
"ATLAS FIRST ACCESS MATERIAL HANDLING, INC.",Maintenance of Equipment,1111.23,7/17/2018
"ATLAS FIRST ACCESS MATERIAL HANDLING, INC.",Maintenance of Buildings,124.74,7/23/2018
"ATLAS FIRST ACCESS MATERIAL HANDLING, INC.",Maintenance of Equipment,80.48,7/24/2018
"ATLAS FIRST ACCESS MATERIAL HANDLING, INC.",Maintenance of Buildings,326.25,7/26/2018
"ATLAS FIRST ACCESS MATERIAL HANDLING, INC.",Maintenance of Equipment,2008.79,7/26/2018
"ATLAS FIRST ACCESS MATERIAL HANDLING, INC.",Maintenance of Buildings,453.07,7/27/2018
"ATLAS FIRST ACCESS MATERIAL HANDLING, INC.",Maintenance of Equipment,11342.12,7/27/2018
"ATLAS FIRST ACCESS MATERIAL HANDLING, INC.",Maintenance of Equipment,6802.5,8/1/2018
"ATLAS FIRST ACCESS MATERIAL HANDLING, INC.",Maintenance of Equipment,193.5,8/2/2018
"ATLAS FIRST ACCESS MATERIAL HANDLING, INC.",Maintenance of Buildings,268.92,8/3/2018
"ATLAS FIRST ACCESS MATERIAL HANDLING, INC.",Maintenance of Equipment,1938,8/3/2018
"ATLAS FIRST ACCESS MATERIAL HANDLING, INC.",Maintenance of Equipment,6585,8/9/2018
"ATLAS FIRST ACCESS MATERIAL HANDLING, INC.",Maintenance of Equipment,435,8/16/2018
"ATLAS FIRST ACCESS MATERIAL HANDLING, INC.",Maintenance of Buildings,87,8/17/2018
"ATLAS FIRST ACCESS MATERIAL HANDLING, INC.",Maintenance of Equipment,130.5,8/17/2018
"ATLAS FIRST ACCESS MATERIAL HANDLING, INC.",Maintenance of Equipment,4054.78,8/22/2018
"ATLAS FIRST ACCESS MATERIAL HANDLING, INC.",Maintenance of Equipment,1397.09,8/23/2018
"ATLAS FIRST ACCESS MATERIAL HANDLING, INC.",Maintenance of Equipment,1996.32,8/28/2018
"ATLAS FIRST ACCESS MATERIAL HANDLING, INC.",Maintenance of Buildings,81,9/7/2018
"ATLAS FIRST ACCESS MATERIAL HANDLING, INC.",Maintenance of Equipment,217.5,9/7/2018
"ATLAS FIRST ACCESS MATERIAL HANDLING, INC.",Maintenance of Equipment,261,9/11/2018
"ATLAS FIRST ACCESS MATERIAL HANDLING, INC.",Maintenance of Equipment,3291.79,9/12/2018
"ATLAS FIRST ACCESS MATERIAL HANDLING, INC.",Maintenance of Buildings,1865.47,9/13/2018
"ATLAS FIRST ACCESS MATERIAL HANDLING, INC.",Maintenance of Equipment,9459.48,9/13/2018
"ATLAS FIRST ACCESS MATERIAL HANDLING, INC.",Maintenance of Buildings,2322,9/14/2018
"ATLAS FIRST ACCESS MATERIAL HANDLING, INC.",Maintenance of Equipment,2099.39,9/14/2018
"ATLAS FIRST ACCESS MATERIAL HANDLING, INC.",Maintenance of Buildings,250,9/18/2018
"ATLAS FIRST ACCESS MATERIAL HANDLING, INC.",Maintenance of Equipment,1428.52,9/18/2018
"ATLAS FIRST ACCESS MATERIAL HANDLING, INC.",Maintenance of Equipment,380.85,9/19/2018
"ATLAS FIRST ACCESS MATERIAL HANDLING, INC.",Maintenance of Equipment,20098.35,9/20/2018
"ATLAS FIRST ACCESS MATERIAL HANDLING, INC.",Maintenance of Buildings,1834.95,9/21/2018
"ATLAS FIRST ACCESS MATERIAL HANDLING, INC.",Maintenance of Equipment,11095.98,9/21/2018
"ATLAS FIRST ACCESS MATERIAL HANDLING, INC.",Maintenance of Buildings,522,9/25/2018
"ATLAS FIRST ACCESS MATERIAL HANDLING, INC.",Maintenance of Equipment,307.36,9/25/2018
"ATLAS FIRST ACCESS MATERIAL HANDLING, INC.",Maintenance of Buildings,302.52,9/27/2018
"ATLAS FIRST ACCESS MATERIAL HANDLING, INC.",Maintenance of Equipment,16529.36,9/27/2018
"ATLAS FIRST ACCESS MATERIAL HANDLING, INC.",Maintenance of Equipment,5463.9,10/4/2018
"ATLAS FIRST ACCESS MATERIAL HANDLING, INC.",Maintenance of Equipment,435,10/5/2018
"ATLAS FIRST ACCESS MATERIAL HANDLING, INC.",Maintenance of Equipment,532.9,10/9/2018
"ATLAS FIRST ACCESS MATERIAL HANDLING, INC.",Maintenance of Equipment,1208.19,10/10/2018
"ATLAS FIRST ACCESS MATERIAL HANDLING, INC.",Maintenance of Equipment,1026.2,10/11/2018
"ATLAS FIRST ACCESS MATERIAL HANDLING, INC.",Maintenance of Buildings,250,10/12/2018
"ATLAS FIRST ACCESS MATERIAL HANDLING, INC.",Maintenance of Equipment,81,10/12/2018
"ATLAS FIRST ACCESS MATERIAL HANDLING, INC.",Maintenance of Buildings,1194.62,10/16/2018
"ATLAS FIRST ACCESS MATERIAL HANDLING, INC.",Maintenance of Equipment,2635.72,10/17/2018
"ATLAS FIRST ACCESS MATERIAL HANDLING, INC.",Maintenance of Buildings,630.5,10/24/2018
"ATLAS FIRST ACCESS MATERIAL HANDLING, INC.",Maintenance of Equipment,3485.4,10/24/2018
"ATLAS FIRST ACCESS MATERIAL HANDLING, INC.",Maintenance of Buildings,750,10/25/2018
"ATLAS FIRST ACCESS MATERIAL HANDLING, INC.",Maintenance of Equipment,1200.2,10/25/2018
"ATLAS FIRST ACCESS MATERIAL HANDLING, INC.",Maintenance of Buildings,348,10/29/2018
"ATLAS FIRST ACCESS MATERIAL HANDLING, INC.",Maintenance of Equipment,5951.06,10/29/2018
"ATLAS FIRST ACCESS MATERIAL HANDLING, INC.",Maintenance of Buildings,130.5,10/31/2018
"ATLAS FIRST ACCESS MATERIAL HANDLING, INC.",Maintenance of Equipment,280.43,10/31/2018
"ATLAS FIRST ACCESS MATERIAL HANDLING, INC.",Maintenance of Buildings,870,11/1/2018
"ATLAS FIRST ACCESS MATERIAL HANDLING, INC.",Maintenance of Equipment,3029.01,11/1/2018
"ATLAS FIRST ACCESS MATERIAL HANDLING, INC.",Maintenance of Buildings,4966.5,11/2/2018
"ATLAS FIRST ACCESS MATERIAL HANDLING, INC.",Maintenance of Equipment,6145.84,11/2/2018
"ATLAS FIRST ACCESS MATERIAL HANDLING, INC.",Maintenance of Buildings,1680.52,11/5/2018
"ATLAS FIRST ACCESS MATERIAL HANDLING, INC.",Maintenance of Equipment,26357.95,11/5/2018
"ATLAS FIRST ACCESS MATERIAL HANDLING, INC.",Maintenance of Equipment,12512.54,11/6/2018
"ATLAS FIRST ACCESS MATERIAL HANDLING, INC.",Maintenance of Buildings,478.5,11/8/2018
"ATLAS FIRST ACCESS MATERIAL HANDLING, INC.",Maintenance of Equipment,7808.16,11/8/2018
"ATLAS FIRST ACCESS MATERIAL HANDLING, INC.",Maintenance of Equipment,12332.27,11/9/2018
"ATLAS FIRST ACCESS MATERIAL HANDLING, INC.",Maintenance of Buildings,1041,11/13/2018
"ATLAS FIRST ACCESS MATERIAL HANDLING, INC.",Maintenance of Equipment,726.94,11/16/2018
"ATLAS FIRST ACCESS MATERIAL HANDLING, INC.",Maintenance of Buildings,348,11/21/2018
"ATLAS FIRST ACCESS MATERIAL HANDLING, INC.",Maintenance of Equipment,1633.96,11/21/2018
"ATLAS FIRST ACCESS MATERIAL HANDLING, INC.",Maintenance of Buildings,250,11/23/2018
"ATLAS FIRST ACCESS MATERIAL HANDLING, INC.",Maintenance of Equipment,81,11/23/2018
"ATLAS FIRST ACCESS MATERIAL HANDLING, INC.",Maintenance of Buildings,3726.7,11/28/2018
"ATLAS FIRST ACCESS MATERIAL HANDLING, INC.",Maintenance of Equipment,1419.04,11/28/2018
"ATLAS FIRST ACCESS MATERIAL HANDLING, INC.",Maintenance of Buildings,5307.4,11/29/2018
"ATLAS FIRST ACCESS MATERIAL HANDLING, INC.",Maintenance of Equipment,21784.76,11/29/2018
"ATLAS FIRST ACCESS MATERIAL HANDLING, INC.",Maintenance of Buildings,130.64,11/30/2018
"ATLAS FIRST ACCESS MATERIAL HANDLING, INC.",Maintenance of Equipment,136.59,11/30/2018
"ATLAS FIRST ACCESS MATERIAL HANDLING, INC.",Maintenance of Equipment,1428.2,12/4/2018
"ATLAS FIRST ACCESS MATERIAL HANDLING, INC.",Maintenance of Equipment,609,12/7/2018
"ATLAS FIRST ACCESS MATERIAL HANDLING, INC.",Maintenance of Buildings,75,12/11/2018
"ATLAS FIRST ACCESS MATERIAL HANDLING, INC.",Maintenance of Buildings,1911,12/12/2018
"ATLAS FIRST ACCESS MATERIAL HANDLING, INC.",Maintenance of Equipment,1725.59,12/12/2018
"ATLAS FIRST ACCESS MATERIAL HANDLING, INC.",Maintenance of Equipment,174,12/13/2018
"ATLAS FIRST ACCESS MATERIAL HANDLING, INC.",Maintenance of Buildings,675,12/14/2018
"ATLAS FIRST ACCESS MATERIAL HANDLING, INC.",Maintenance of Buildings,130.5,12/18/2018
"ATLAS FIRST ACCESS MATERIAL HANDLING, INC.",Maintenance of Equipment,724.35,12/18/2018
"ATLAS FIRST ACCESS MATERIAL HANDLING, INC.",Maintenance of Buildings,1131,12/19/2018
"ATLAS FIRST ACCESS MATERIAL HANDLING, INC.",Maintenance of Equipment,2034.36,12/19/2018
"ATLAS FIRST ACCESS MATERIAL HANDLING, INC.",Maintenance of Buildings,783.28,12/21/2018
"ATLAS FIRST ACCESS MATERIAL HANDLING, INC.",Maintenance of Equipment,1031.8,12/21/2018
"ATLAS FIRST ACCESS MATERIAL HANDLING, INC.",Maintenance of Buildings,348,12/24/2018
"ATLAS FIRST ACCESS MATERIAL HANDLING, INC.",Maintenance of Equipment,3746.99,12/24/2018
"ATLAS FIRST ACCESS MATERIAL HANDLING, INC.",Maintenance of Buildings,81,12/26/2018
"ATLAS FIRST ACCESS MATERIAL HANDLING, INC.",Maintenance of Equipment,1193.88,12/26/2018
"ATLAS FIRST ACCESS MATERIAL HANDLING, INC.",Maintenance of Buildings,11331.07,12/27/2018
"ATLAS FIRST ACCESS MATERIAL HANDLING, INC.",Maintenance of Equipment,12196.36,12/27/2018
"ATLAS FIRST ACCESS MATERIAL HANDLING, INC.",Maintenance of Buildings,3225,12/28/2018
AURIGA CORPORATION,Consulting Services,26271.2,7/20/2018
AURIGA CORPORATION,Consulting Services,35871.2,9/21/2018
AURIGA CORPORATION,Consulting Services,23198.32,11/28/2018
"AUTOMATIC FIRE CONTROLS, INC.",Maintenance of Buildings,16950,1/3/2018
"AUTOMATIC FIRE CONTROLS, INC.",Maintenance of Buildings,10498,1/19/2018
"AUTOMATIC FIRE CONTROLS, INC.",Maintainance of Signal & Control Equipment,190,2/27/2018
"AUTOMATIC FIRE CONTROLS, INC.",Maintenance of Buildings,9187,3/8/2018
"AUTOMATIC FIRE CONTROLS, INC.",Maintainance of Signal & Control Equipment,2000,3/22/2018
"AUTOMATIC FIRE CONTROLS, INC.",Maintainance of Signal & Control Equipment,14000,3/23/2018
"AUTOMATIC FIRE CONTROLS, INC.",Maintainance of Signal & Control Equipment,7338,4/5/2018
"AUTOMATIC FIRE CONTROLS, INC.",Maintenance of Buildings,16950,8/15/2018
"AUTOMATIC FIRE CONTROLS, INC.",Maintenance of Buildings,11860,11/21/2018
"AUTOMATIC FIRE CONTROLS, INC.",Maintainance of Signal & Control Equipment,33000,12/24/2018
"AUTOMATIC FIRE CONTROLS, INC.",Maintainance of Signal & Control Equipment,4000,12/31/2018
"AUTOMATIC MECHANICAL SERVICES, INC, d/b/a CONTROL ENGINEERING CORP.",Maintenance of Buildings,2695.5,6/12/2018
"AUTOMATIC MECHANICAL SERVICES, INC, d/b/a CONTROL ENGINEERING CORP.",Maintenance of Buildings,5391,11/15/2018
"AVAYA, INCORPORATED",Maintain/Repair Communications  Equip,233120.85,2/13/2018
"AVAYA, INCORPORATED",Maintain/Repair Communications  Equip,217286.96,2/14/2018
"AVAYA, INCORPORATED",Maintain/Repair Communications  Equip,36701.39,2/20/2018
"AVAYA, INCORPORATED",Maintain/Repair Communications  Equip,243816.82,4/11/2018
"AVAYA, INCORPORATED",Maintain/Repair Communications  Equip,182605.79,6/27/2018
"AVAYA, INCORPORATED",Maintain/Repair Communications  Equip,43781.64,7/6/2018
"AVAYA, INCORPORATED",Maintain/Repair Communications  Equip,57355.2,7/11/2018
"AVAYA, INCORPORATED",Maintain/Repair Communications  Equip,70849.55,11/20/2018
"AVAYA, INCORPORATED",Maintain/Repair Communications  Equip,131708.04,12/10/2018
AVITRU,Professional / Technical,2292.35,6/5/2018
AXIL L3C,Consulting Services,3100,1/10/2018
AXIL L3C,Consulting Services,7967.96,3/23/2018
AXION TECHNOLOGIES LTD.,Vehicle Rehab,21776,1/17/2018
AXION TECHNOLOGIES LTD.,Vehicle Rehab,10888,2/16/2018
AXION TECHNOLOGIES LTD.,Vehicle Rehab,10888,3/16/2018
AXION TECHNOLOGIES LTD.,Vehicle Rehab,10888,4/20/2018
AXION TECHNOLOGIES LTD.,Vehicle Rehab,10888,5/25/2018
AXION TECHNOLOGIES LTD.,Vehicle Rehab,10888,6/22/2018
AXION TECHNOLOGIES LTD.,Vehicle Rehab,10888,7/25/2018
AXION TECHNOLOGIES LTD.,Vehicle Rehab,10888,8/10/2018
AXION TECHNOLOGIES LTD.,Vehicle Rehab,10888,9/21/2018
AXION TECHNOLOGIES LTD.,Repair Communications Equipment,1537.31,9/25/2018
AXION TECHNOLOGIES LTD.,Vehicle Rehab,10888,10/24/2018
AXION TECHNOLOGIES LTD.,Vehicle Rehab,12249,12/19/2018
"Allen, Vincent J",Travel & Seminar,300.51,7/19/2018
"Alstom Signaling Inc., d/b/a Alstom Signaling Operation, LLC.",Contract Construction,20000,10/9/2018
"Alstom Signaling Inc., d/b/a Alstom Signaling Operation, LLC.",Maintainance of Signal & Control Equipment,13900,12/17/2018
"Anwar, Keith",Travel & Seminar,637.82,8/9/2018
BACCI PIZZERIA,Engineering,380.42,4/24/2018
BAIRDWARNER TITLE SERVICES,Real Estate,32000,9/17/2018
"BALL-NOGUES DESIGN STUDIO, LLC",Consulting Services,20000,1/10/2018
"BALL-NOGUES DESIGN STUDIO, LLC",Consulting Services,7500,5/15/2018
"BALL-NOGUES DESIGN STUDIO, LLC",Consulting Services,17042.1,12/6/2018
BALMOND STUDIO,Consulting Services,212932,2/9/2018
BALMOND STUDIO,Consulting Services,31440.63,3/28/2018
BALMOND STUDIO,Consulting Services,20400,5/11/2018
BALOUGH LAW OFFICES LLC,Administrative Support,4368,3/1/2018
BANK OF AMERICA,Administrative Support,2540.15,1/16/2018
BANK OF AMERICA,Administrative Support,13.01,1/16/2018
BANK OF AMERICA,Recruiting / Hiring,1110.86,1/16/2018
BANK OF AMERICA,Training - Students,1268.57,1/16/2018
BANK OF AMERICA,Travel & Seminar,2510.15,1/16/2018
BANK OF AMERICA,Administrative Support,25,2/16/2018
BANK OF AMERICA,Administrative Support,1419.59,2/16/2018
BANK OF AMERICA,I&D Claims (Damage Reserve),209.4,2/16/2018
BANK OF AMERICA,Training - Students,2167.2,2/16/2018
BANK OF AMERICA,Travel & Seminar,5598.85,2/16/2018
BANK OF AMERICA,Administrative Support,859.65,3/20/2018
BANK OF AMERICA,Administrative Support,3780.27,3/20/2018
BANK OF AMERICA,Employee Recognition,230.85,3/20/2018
BANK OF AMERICA,Travel & Seminar,1518.61,3/20/2018
BANK OF AMERICA,Administrative Support,1927.42,4/17/2018
BANK OF AMERICA,Administrative Support,2345.12,4/17/2018
BANK OF AMERICA,BUS/RAIL ROADEO,3203.92,4/17/2018
BANK OF AMERICA,FARE CARD SOFTWARE CHG,310.59,4/17/2018
BANK OF AMERICA,I&D Claims (Damage Reserve),23,4/17/2018
BANK OF AMERICA,Management,23,4/17/2018
BANK OF AMERICA,Professional / Technical,286.96,4/17/2018
BANK OF AMERICA,Travel & Seminar,1768.79,4/17/2018
BANK OF AMERICA,Administrative Support,1527.09,5/21/2018
BANK OF AMERICA,Administrative Support,3087.96,5/21/2018
BANK OF AMERICA,BUS/RAIL ROADEO,2593.57,5/21/2018
BANK OF AMERICA,Drug & Alcohol Testing,477.92,5/21/2018
BANK OF AMERICA,Engineering,347.39,5/21/2018
BANK OF AMERICA,FARE CARD SOFTWARE CHG,676.92,5/21/2018
BANK OF AMERICA,Management,365.1,5/21/2018
BANK OF AMERICA,Management,302.39,5/21/2018
BANK OF AMERICA,Open Fare,347.4,5/21/2018
BANK OF AMERICA,Professional / Technical,231.96,5/21/2018
BANK OF AMERICA,Training - Students,200,5/21/2018
BANK OF AMERICA,Travel & Seminar,16869.79,5/21/2018
BANK OF AMERICA,Administrative Support,3587.82,7/15/2018
BANK OF AMERICA,Training - Students,5279.67,7/15/2018
BANK OF AMERICA,Administrative Support,1171.22,7/20/2018
BANK OF AMERICA,BUS/RAIL ROADEO,229,7/20/2018
BANK OF AMERICA,Engineering,327.4,7/20/2018
BANK OF AMERICA,I&D Claims (Damage Reserve),264.4,7/20/2018
BANK OF AMERICA,Open Fare,480.4,7/20/2018
BANK OF AMERICA,Travel & Seminar,1296.8,7/20/2018
BANK OF AMERICA,Administrative Support,933.14,7/23/2018
BANK OF AMERICA,Administrative Support,3444.86,7/23/2018
BANK OF AMERICA,FARE CARD SOFTWARE CHG,386.96,7/23/2018
BANK OF AMERICA,Training - Students,830,7/23/2018
BANK OF AMERICA,Training - Students,765.92,7/23/2018
BANK OF AMERICA,Travel & Seminar,11071.24,7/23/2018
BANK OF AMERICA,Administrative Support,1623.84,8/20/2018
BANK OF AMERICA,Administrative Support,1560.21,8/20/2018
BANK OF AMERICA,BUS/RAIL ROADEO,311.39,8/20/2018
BANK OF AMERICA,I&D Claims (Damage Reserve),945,8/20/2018
BANK OF AMERICA,Management,32,8/20/2018
BANK OF AMERICA,Training - Students,360,8/20/2018
BANK OF AMERICA,Travel & Seminar,1048.8,8/20/2018
BANK OF AMERICA,Administrative Support,2397.48,9/18/2018
BANK OF AMERICA,Administrative Support,700.8,9/18/2018
BANK OF AMERICA,BUS/RAIL ROADEO,650.36,9/18/2018
BANK OF AMERICA,Management,341.9,9/18/2018
BANK OF AMERICA,Travel & Seminar,2421.08,9/18/2018
BANK OF AMERICA,Administrative Support,1017.51,10/19/2018
BANK OF AMERICA,Administrative Support,1341.84,10/19/2018
BANK OF AMERICA,BUS/RAIL ROADEO,619.96,10/19/2018
BANK OF AMERICA,I&D Claims (Damage Reserve),1058.88,10/19/2018
BANK OF AMERICA,Management,154.39,10/19/2018
BANK OF AMERICA,Professional / Technical,755.36,10/19/2018
BANK OF AMERICA,Scheduling,544.58,10/19/2018
BANK OF AMERICA,Travel & Seminar,5298.54,10/19/2018
BANK OF AMERICA,Administrative Support,5018.29,11/19/2018
BANK OF AMERICA,Administrative Support,1089.98,11/19/2018
BANK OF AMERICA,BUS/RAIL ROADEO,937.79,11/19/2018
BANK OF AMERICA,Open Fare,1302.8,11/19/2018
BANK OF AMERICA,Policy Adminsitration,486.18,11/19/2018
BANK OF AMERICA,Professional / Technical,1870.32,11/19/2018
BANK OF AMERICA,Travel & Seminar,2854.32,11/19/2018
BANK OF AMERICA,Administrative Support,719.87,12/17/2018
BANK OF AMERICA,BUS/RAIL ROADEO,418.83,12/17/2018
BANK OF AMERICA,Travel & Seminar,1102.62,12/17/2018
BEATRICE WALKER,Reimb for lost tools/badges,20,7/17/2018
BEBON OFFICE MACHINES CO.,Administrative Support,1495,3/13/2018
BEBON OFFICE MACHINES CO.,Maintenance of Equipment,184,11/9/2018
BEBON OFFICE MACHINES CO.,Maintenance of Equipment,234,12/13/2018
BENITA LOONEY,I&D Claims (Damage Reserve),75,8/9/2018
BENJAMIN BRUCE M.D.,I&D Claims (Damage Reserve),750,8/17/2018
BENTLEY SYSTEMS INC,Engineering,4614,5/1/2018
"BHFX, LLC",Administrative Support,880,3/28/2018
"BHFX, LLC",Administrative Support,945,3/29/2018
"BHFX, LLC",Administrative Support,945,4/27/2018
"BHFX, LLC",Administrative Support,1036.66,5/29/2018
"BHFX, LLC",Administrative Support,945,7/6/2018
"BHFX, LLC",Administrative Support,945,8/1/2018
"BHFX, LLC",Administrative Support,945,8/29/2018
"BHFX, LLC",Administrative Support,945,9/27/2018
"BHFX, LLC",Administrative Support,945,10/30/2018
"BHFX, LLC",Administrative Support,945,11/29/2018
"BHFX, LLC",Administrative Support,945,12/27/2018
BIAS CORPORATION,Applications Support,1184.6,1/23/2018
BIAS CORPORATION,Applications Support,1184.6,4/13/2018
BIAS CORPORATION,Applications Support,1184.6,7/25/2018
"BIDDLE CONSULTING GROUP, INC.",Recruiting / Hiring,1859,7/25/2018
"BIG O MOVERS & STORAGE, INC.",Maintenance of Buildings,1015,8/23/2018
BJPR Internet Technologies,Consulting Services,27300,12/26/2018
BLAIDA AND ASSOCIATES LLC,Management,6000,2/5/2018
BLAIDA AND ASSOCIATES LLC,Administrative Support,12000,4/30/2018
BLAIDA AND ASSOCIATES LLC,Management,6000,4/30/2018
BLAIDA AND ASSOCIATES LLC,Administrative Support,6000,5/30/2018
BLAIDA AND ASSOCIATES LLC,Management,36000,12/5/2018
BLAIDA AND ASSOCIATES LLC,Management,6000,12/31/2018
BLOOMBERG FINANCE L.P.,Administrative Support,6870,1/23/2018
BLOOMBERG FINANCE L.P.,Administrative Support,6870,5/3/2018
BLOOMBERG FINANCE L.P.,Administrative Support,6870,7/30/2018
BLOOMBERG FINANCE L.P.,Administrative Support,6870,11/5/2018
BLUE SODA PROMO,Training - Students,105.18,10/16/2018
"BOARD OF EDUCATION, CITY OF CHICAGO","Facilities Operating Expenses (Rent,Utilities,etc)",125,2/22/2018
"BOARD OF EDUCATION, CITY OF CHICAGO","Facilities Operating Expenses (Rent,Utilities,etc)",125,3/1/2018
"BOARD OF EDUCATION, CITY OF CHICAGO","Facilities Operating Expenses (Rent,Utilities,etc)",125,4/17/2018
"BOARD OF EDUCATION, CITY OF CHICAGO","Facilities Operating Expenses (Rent,Utilities,etc)",125,5/14/2018
"BOARD OF EDUCATION, CITY OF CHICAGO","Facilities Operating Expenses (Rent,Utilities,etc)",375,8/24/2018
"BOARD OF EDUCATION, CITY OF CHICAGO","Facilities Operating Expenses (Rent,Utilities,etc)",125,9/7/2018
"BOARD OF EDUCATION, CITY OF CHICAGO","Facilities Operating Expenses (Rent,Utilities,etc)",125,10/10/2018
"BOARD OF EDUCATION, CITY OF CHICAGO","Facilities Operating Expenses (Rent,Utilities,etc)",125,12/24/2018
"BOLGRIEN, KOEPKE, KIMES & LIVINGSTON, LLC",I&D Claims (Damage Reserve),200,9/7/2018
BONE AND JOINT CENTER PC,I&D Claims (Damage Reserve),750,2/28/2018
BONE AND JOINT CENTER PC,I&D Claims (Damage Reserve),187.5,2/28/2018
BONE AND JOINT CENTER PC,I&D Claims (Damage Reserve),187.5,2/28/2018
BONE AND JOINT CENTER PC,I&D Claims (Damage Reserve),187.5,2/28/2018
BONE AND JOINT CENTER PC,I&D Claims (Damage Reserve),187.5,2/28/2018
BONE AND JOINT CENTER PC,I&D Claims (Damage Reserve),1875,3/6/2018
BOTTOMLINE TECHNOLOGIES,Applications Support,6171.22,9/18/2018
BRAD SCHUMAN,Real Estate,3660.67,8/29/2018
BRADLEY MERK MD,I&D Claims (Damage Reserve),750,1/31/2018
"BRANCATO LANDSCAPING, INC.",Maintenance of Buildings,8069,6/13/2018
"BRANCATO LANDSCAPING, INC.",Maintenance of Buildings,10289.5,9/27/2018
"BRANCATO LANDSCAPING, INC.",Maintenance of Buildings,2099.5,10/17/2018
"BRANCATO LANDSCAPING, INC.",Maintenance of Buildings,14766,10/18/2018
"BRANCATO LANDSCAPING, INC.",Maintenance of Buildings,1637.5,10/24/2018
"BRANCATO LANDSCAPING, INC.",Maintenance of Buildings,2770,10/25/2018
"BRANCATO LANDSCAPING, INC.",Maintenance of Buildings,5987,10/31/2018
"BRANCATO LANDSCAPING, INC.",Maintenance of Buildings,15431,11/1/2018
BRANDON WOODBERRY,I&D Claims (Damage Reserve),75,3/30/2018
BRE RIVER NORTH POINT OWNER,"Facilities Operating Expenses (Rent,Utilities,etc)",13464.13,7/31/2018
BRE RIVER NORTH POINT OWNER,"Facilities Operating Expenses (Rent,Utilities,etc)",49888.44,11/27/2018
BRIDGEPORT NEWS,Marketing,1200,3/27/2018
BRIDGEPORT PAIN CONTROL CENTER,I&D Claims (Damage Reserve),100,12/5/2018
BRIDGEPORT PAIN CONTROL CENTER,I&D Claims (Damage Reserve),100,12/5/2018
BRIDGEPORT PAIN CONTROL CENTER,I&D Claims (Damage Reserve),100,12/5/2018
BRIDGEPORT PAIN CONTROL CENTER,I&D Claims (Damage Reserve),100,12/5/2018
BRIDGEPORT PAIN CONTROL CENTER,I&D Claims (Damage Reserve),400,12/5/2018
BRIDGES COURT REPORTING,I&D Claims (Damage Reserve),460.4,1/9/2018
BRIDGES COURT REPORTING,I&D Claims (Damage Reserve),782.35,3/7/2018
BRIDGES COURT REPORTING,I&D Claims (Damage Reserve),230.75,5/31/2018
BRIDGES COURT REPORTING,I&D Claims (Damage Reserve),91.8,10/11/2018
BRITTANY GRABER & ROBERT CUMMINGS,Real Estate,20056.61,1/26/2018
"BUCHANAN REPORTING, INC",I&D Claims (Damage Reserve),155,7/3/2018
"BUCHANAN REPORTING, INC",I&D Claims (Damage Reserve),179.8,9/11/2018
BUILDERS CHICAGO CORPORATION,Maintenance of Buildings,14422.19,1/12/2018
BUILDERS CHICAGO CORPORATION,Maintenance of Buildings,10386.63,1/25/2018
BUILDERS CHICAGO CORPORATION,Maintenance of Buildings,6198.5,1/29/2018
BUILDERS CHICAGO CORPORATION,Maintenance of Buildings,9623.75,2/22/2018
BUILDERS CHICAGO CORPORATION,Maintenance of Buildings,3461.84,3/1/2018
BUILDERS CHICAGO CORPORATION,Maintenance of Buildings,10718.28,3/5/2018
BUILDERS CHICAGO CORPORATION,Maintenance of Buildings,16198.27,3/22/2018
BUILDERS CHICAGO CORPORATION,Maintenance of Buildings,9711.5,3/27/2018
BUILDERS CHICAGO CORPORATION,Maintenance of Buildings,18267.94,3/28/2018
BUILDERS CHICAGO CORPORATION,Maintenance of Buildings,13735.29,4/6/2018
BUILDERS CHICAGO CORPORATION,Maintenance of Buildings,13555.06,4/13/2018
BUILDERS CHICAGO CORPORATION,Maintenance of Buildings,4994.92,4/18/2018
BUILDERS CHICAGO CORPORATION,Maintenance of Buildings,21303.88,4/20/2018
BUILDERS CHICAGO CORPORATION,Maintenance of Buildings,7902.94,4/24/2018
BUILDERS CHICAGO CORPORATION,Maintenance of Buildings,10907.46,4/27/2018
BUILDERS CHICAGO CORPORATION,Maintenance of Buildings,8051.05,5/3/2018
BUILDERS CHICAGO CORPORATION,Maintenance of Buildings,7733.75,5/7/2018
BUILDERS CHICAGO CORPORATION,Maintenance of Buildings,30697,5/22/2018
BUILDERS CHICAGO CORPORATION,Maintenance of Buildings,17206.5,6/19/2018
BUILDERS CHICAGO CORPORATION,Maintenance of Buildings,32630.19,6/21/2018
BUILDERS CHICAGO CORPORATION,Maintenance of Buildings,930.25,6/22/2018
BUILDERS CHICAGO CORPORATION,Maintenance of Buildings,1726.75,6/28/2018
BUILDERS CHICAGO CORPORATION,Maintenance of Buildings,3587.75,7/12/2018
BUILDERS CHICAGO CORPORATION,Maintenance of Buildings,24930.75,8/29/2018
BUILDERS CHICAGO CORPORATION,Maintenance of Buildings,5082.75,9/4/2018
BUILDERS CHICAGO CORPORATION,Maintenance of Buildings,894,9/19/2018
BUILDERS CHICAGO CORPORATION,Maintenance of Buildings,433.5,9/27/2018
BUILDERS CHICAGO CORPORATION,Maintenance of Buildings,21432,10/16/2018
BUILDERS CHICAGO CORPORATION,Maintenance of Buildings,370,10/25/2018
BUILDERS CHICAGO CORPORATION,Maintenance of Buildings,18169.5,10/29/2018
BUILDERS CHICAGO CORPORATION,Maintenance of Buildings,497,11/15/2018
BUILDERS CHICAGO CORPORATION,Maintenance of Buildings,5435.25,11/27/2018
BUILDERS CHICAGO CORPORATION,Maintenance of Buildings,225.75,11/29/2018
BUILDERS CHICAGO CORPORATION,Maintenance of Buildings,2094.5,12/4/2018
BUILDERS CHICAGO CORPORATION,Maintenance of Buildings,370,12/13/2018
BUILDERS CHICAGO CORPORATION,Maintenance of Buildings,5475.75,12/27/2018
"BUREAU OF NATIONAL AFFAIRS, INC., THE",Administrative Support,12130,3/19/2018
"BUREAU VERITAS NORTH AMERICA, INC.",Quality Assurance,2586.8,3/27/2018
BUZZ MUSIC SERVICES INC,Administrative Support,250,2/2/2018
Bastian Solutions,Administrative Support,44400,12/4/2018
Bastian Solutions,Maintenance of Buildings,20001,12/10/2018
Bastian Solutions,Administrative Support,29600,12/20/2018
"Biocic, Timothy J",Travel & Seminar,496.83,7/31/2018
"Biocic, Timothy J",Travel & Seminar,859.58,8/22/2018
"Bruno, Maria",Travel & Seminar,362.44,7/26/2018
"Buczkiewicz, Edward J",Travel & Seminar,688.87,7/5/2018
"Buczkiewicz, Edward J",Travel & Seminar,369.81,7/26/2018
"Buczkiewicz, Edward J",Travel & Seminar,330.45,7/27/2018
"Busby, Jeffrey Ryan",Travel & Seminar,385.22,7/27/2018
"C2, LLC",Cash Management,3540,4/25/2018
CAIRS,Administrative Support,706,2/8/2018
CAIRS,Administrative Support,282.5,2/9/2018
CAIRS,Administrative Support,395.5,5/17/2018
CAIRS,Administrative Support,395,6/15/2018
CAIRS,Administrative Support,452,8/14/2018
CAIRS,Administrative Support,508.5,11/20/2018
CAIRS,Administrative Support,339,12/19/2018
CALERO SOFTWARE,Maintain/Repair Communications  Equip,11017,11/16/2018
CALIBER PACKAGING LLC,Maintenance of Equipment,517.5,8/27/2018
"CALIBRATION SOLUTION, THE",Management,979.52,9/5/2018
CALLIE SPIROS,Real Estate,1325.83,5/2/2018
"CALUMET ARMATURE AND ELECTRIC, LLC",Vehicle Rehab,174675.72,1/10/2018
"CALUMET ARMATURE AND ELECTRIC, LLC",Vehicle Rehab,174675.72,1/31/2018
"CALUMET ARMATURE AND ELECTRIC, LLC",Equipment Purchases,206379,11/27/2018
"CALUMET ARMATURE AND ELECTRIC, LLC",Equipment Purchases,179460,12/18/2018
CAMBRIA HOTEL NASHVILLE DOWNTOWN,Administrative Support,827.13,8/22/2018
CAMBRIA HOTEL NASHVILLE DOWNTOWN,Administrative Support,595.28,8/22/2018
CAMERON BLOUNT,I&D Claims (Damage Reserve),75,7/19/2018
"CANON BUSINESS SOLUTIONS, INC.",Administrative Support,8418.45,1/10/2018
"CANON BUSINESS SOLUTIONS, INC.",Administrative Support,9444.72,2/8/2018
"CANON BUSINESS SOLUTIONS, INC.",Administrative Support,8094.71,3/8/2018
"CANON BUSINESS SOLUTIONS, INC.",Administrative Support,8450.78,4/10/2018
"CANON BUSINESS SOLUTIONS, INC.",Administrative Support,8008.9,5/10/2018
"CANON BUSINESS SOLUTIONS, INC.",Administrative Support,8457.37,6/8/2018
"CANON BUSINESS SOLUTIONS, INC.",Administrative Support,8350.3,7/10/2018
"CANON BUSINESS SOLUTIONS, INC.",Administrative Support,8425.68,8/9/2018
"CANON BUSINESS SOLUTIONS, INC.",Administrative Support,8204.82,9/11/2018
"CANON BUSINESS SOLUTIONS, INC.",Administrative Support,9686.51,10/10/2018
"CANON BUSINESS SOLUTIONS, INC.",Administrative Support,9186.56,11/8/2018
"CANON BUSINESS SOLUTIONS, INC.",Administrative Support,8393.9,12/12/2018
CAPITAL HILTON HOTEL,Professional / Technical,861,10/19/2018
CAPITAL HILTON HOTEL,Professional / Technical,861,10/19/2018
"CAPRICORN COMMUNICATIONS, LLC",Management,12000,1/22/2018
"CAPRICORN COMMUNICATIONS, LLC",Management,6000,3/15/2018
"CAPRICORN COMMUNICATIONS, LLC",Management,24000,9/27/2018
"CAPRICORN COMMUNICATIONS, LLC",Management,6000,10/3/2018
"CAPRICORN COMMUNICATIONS, LLC",Management,6000,10/16/2018
"CAPRICORN COMMUNICATIONS, LLC",Management,12000,12/5/2018
"CAPUS AUTOMATION SERVICES, INC.",Maintenance of Equipment,1615,2/8/2018
"CARD IMAGING, INC.",Administrative Support,2032,1/18/2018
"CARD IMAGING, INC.",Management,133,1/31/2018
"CARD IMAGING, INC.",Training - Students,293.6,2/21/2018
"CARD IMAGING, INC.",Administrative Support,304,5/9/2018
"CARD IMAGING, INC.",Administrative Support,192,6/21/2018
"CARD IMAGING, INC.",Administrative Support,278,9/21/2018
CARDISS COLLINS POSTAL STORE,I&D Claims (Damage Reserve),500,5/1/2018
CARDISS COLLINS POSTAL STORE,I&D Claims (Damage Reserve),225,10/3/2018
"CAREERBUILDER GOVERNMENT SOLUTIONS, LLC",Recruiting / Hiring,12000,4/26/2018
"CAREERBUILDER GOVERNMENT SOLUTIONS, LLC",Recruiting / Hiring,12000,12/27/2018
CARY MORGEN,Administrative Support,675,1/25/2018
CARY MORGEN,Administrative Support,675,2/27/2018
CARY MORGEN,Administrative Support,1519,3/9/2018
CARY MORGEN,Administrative Support,1552,5/18/2018
CARY MORGEN,Administrative Support,1687,6/8/2018
CARY MORGEN,Administrative Support,675,9/4/2018
CARY MORGEN,Administrative Support,675,9/4/2018
CARY MORGEN,Administrative Support,1856,11/20/2018
CASSAVA BREAD LLC,Real Estate,18500,5/4/2018
CASTLE CONSTRUCTION CORPORATION,Contract Construction,109372.86,7/27/2018
CDM SMITH INC.,Consulting Services,91425.19,1/16/2018
CDM SMITH INC.,Consulting Services,11852.2,2/5/2018
CDM SMITH INC.,Consulting Services,6450.16,3/5/2018
CDM SMITH INC.,Consulting Services,51658.28,3/12/2018
CDM SMITH INC.,Consulting Services,12813.92,3/27/2018
CDM SMITH INC.,Consulting Services,412.24,5/9/2018
CDM SMITH INC.,Consulting Services,4058.77,5/17/2018
CDM SMITH INC.,Consulting Services,4752.12,5/29/2018
CDM SMITH INC.,Consulting Services,2037.89,6/7/2018
CDM SMITH INC.,Consulting Services,11254.76,6/28/2018
CDM SMITH INC.,Consulting Services,5017.39,7/3/2018
CDM SMITH INC.,Consulting Services,75501.82,7/26/2018
CDM SMITH INC.,Consulting Services,56773.34,9/13/2018
CDM SMITH INC.,Consulting Services,32412.98,9/25/2018
CDM SMITH INC.,Consulting Services,10638.43,10/16/2018
CDM SMITH INC.,Consulting Services,24410.33,11/6/2018
CDM SMITH INC.,Consulting Services,23725.68,11/27/2018
CDM/WIGHT - A JOINT VENTURE,Consulting Services,6554.99,8/16/2018
CDM/WIGHT - A JOINT VENTURE,Consulting Services,3294.58,8/23/2018
CDM/WIGHT - A JOINT VENTURE,Consulting Services,2128.56,10/11/2018
CDW GOVERNMENT LLC,Administrative Support,832.26,1/5/2018
CDW GOVERNMENT LLC,Administrative Support,1207.48,1/22/2018
CDW GOVERNMENT LLC,General Shop/Gar/Term Repairs & Svcs,133.98,1/22/2018
CDW GOVERNMENT LLC,Management,271.87,1/22/2018
CDW GOVERNMENT LLC,Equipment Purchases,18438.34,1/29/2018
CDW GOVERNMENT LLC,Administrative Support,3429.4,2/2/2018
CDW GOVERNMENT LLC,Management,125.79,2/8/2018
CDW GOVERNMENT LLC,Administrative Support,4771.32,2/20/2018
CDW GOVERNMENT LLC,Administrative Support,4894.5,2/28/2018
CDW GOVERNMENT LLC,Administrative Support,1827.72,5/11/2018
CDW GOVERNMENT LLC,Maintenance of Track & Roadway,3263,5/11/2018
CDW GOVERNMENT LLC,Management,174,5/11/2018
CDW GOVERNMENT LLC,Training - Students,407.84,5/11/2018
CDW GOVERNMENT LLC,Administrative Support,386.62,5/22/2018
CDW GOVERNMENT LLC,Administrative Support,6184.1,5/29/2018
CDW GOVERNMENT LLC,Applications Support,4132.5,6/4/2018
CDW GOVERNMENT LLC,Administrative Support,4771.32,6/11/2018
CDW GOVERNMENT LLC,Applications Support,12390,7/5/2018
CDW GOVERNMENT LLC,Administrative Support,1244.41,7/6/2018
CDW GOVERNMENT LLC,Administrative Support,4618.43,7/13/2018
CDW GOVERNMENT LLC,Applications Support,60750,7/13/2018
CDW GOVERNMENT LLC,Applications Support,875423.27,7/26/2018
CDW GOVERNMENT LLC,Administrative Support,2606.58,7/31/2018
CDW GOVERNMENT LLC,Training - Students,694.95,8/21/2018
CDW GOVERNMENT LLC,Administrative Support,64.18,8/23/2018
CDW GOVERNMENT LLC,Administrative Support,81.85,8/24/2018
CDW GOVERNMENT LLC,Administrative Support,1322.41,8/31/2018
CDW GOVERNMENT LLC,Management,127.07,8/31/2018
CDW GOVERNMENT LLC,Administrative Support,1770.3,9/17/2018
CDW GOVERNMENT LLC,Maintenance of Track & Roadway,178.62,9/17/2018
CDW GOVERNMENT LLC,Administrative Support,622.71,9/25/2018
CDW GOVERNMENT LLC,Consulting Services,85,10/3/2018
CDW GOVERNMENT LLC,Administrative Support,116.54,10/10/2018
CDW GOVERNMENT LLC,Computer Systems Support (Non-IT Dept Areas),311.65,10/10/2018
CDW GOVERNMENT LLC,Training - Students,438.56,10/11/2018
CDW GOVERNMENT LLC,Training - Students,910.08,10/16/2018
CDW GOVERNMENT LLC,Equipment Purchases,1197.28,10/18/2018
CDW GOVERNMENT LLC,Administrative Support,959.88,10/31/2018
CDW GOVERNMENT LLC,Consulting Services,91762.78,11/6/2018
CDW GOVERNMENT LLC,Administrative Support,531.09,11/7/2018
CDW GOVERNMENT LLC,Applications Support,636.39,11/27/2018
CDW GOVERNMENT LLC,Administrative Support,244.08,12/4/2018
CELESTE GARCIA,I&D Claims (Damage Reserve),75,9/13/2018
CENTER FOR CONFLICT RESOLUTION,Administrative Support,1528,1/31/2018
CENTURION STORE SUPPLIES,I&D Claims (Damage Reserve),3824.96,4/24/2018
CHAMPION CONTAINER CORPORATION,Repair CTA Mini Bus/Train,2961,12/24/2018
CHAPMAN AND CUTLER,Consulting Services,62500,2/21/2018
CHAPMAN AND CUTLER,Administrative Support,30000,12/5/2018
CHARLES ADAMS,I&D Claims (Damage Reserve),75,7/3/2018
CHARLES CARROLL IV MD,I&D Claims (Damage Reserve),750,6/12/2018
CHARLES EQUIPMENT ENERGY SYSTEMS LLC,Maintenance of Buildings,9500,2/14/2018
CHARLES EQUIPMENT ENERGY SYSTEMS LLC,Maintenance of Buildings,7749.74,2/15/2018
CHARLES EQUIPMENT ENERGY SYSTEMS LLC,Maintenance of Buildings,5635.73,8/15/2018
CHARLES EQUIPMENT ENERGY SYSTEMS LLC,Maintenance of Buildings,3360,12/13/2018
CHASE CONLEY,Real Estate,6211,1/26/2018
CHELSEA  HOPKINS,Real Estate,466.67,8/15/2018
CHEROKEE PORCELAIN ENAMEL CORP.,Administrative Support,43502,11/20/2018
CHICAGO CENTER FOR SPORTS,Administrative Support,27.33,4/4/2018
CHICAGO CITY COUNCIL,Administrative Support,1500,10/18/2018
CHICAGO COMPENSATION ASSOC.,Compensation,380,1/12/2018
CHICAGO CRUSADER,Marketing,1416.1,5/10/2018
CHICAGO DEFENDER PUBLISHING CO.,Administrative Support,2864.4,2/16/2018
CHICAGO DEFENDER PUBLISHING CO.,Marketing,4050,4/3/2018
CHICAGO DEFENDER PUBLISHING CO.,Marketing,3300,5/9/2018
CHICAGO DEFENDER PUBLISHING CO.,Administrative Support,369.6,11/16/2018
"CHICAGO JACK SERVICE, INC.",Maintenance of Equipment,295,2/22/2018
"CHICAGO JACK SERVICE, INC.",Maintenance of Equipment,3180,6/5/2018
"CHICAGO JACK SERVICE, INC.",Maintenance of Equipment,245,7/20/2018
"CHICAGO JACK SERVICE, INC.",Manufacture Parts for Stock,1362,8/22/2018
"CHICAGO JACK SERVICE, INC.",Maintenance of Equipment,1265,10/11/2018
"CHICAGO JACK SERVICE, INC.",Manufacture Parts for Stock,1230,11/6/2018
CHICAGO KENT COLLEGE OF LAW,Administrative Support,260,11/28/2018
CHICAGO METRO CONSTRUCTION D/B/A ARLINGTON GLASS & MIRROR CO.,Maintenance of Buildings,2495.32,1/11/2018
CHICAGO METRO CONSTRUCTION D/B/A ARLINGTON GLASS & MIRROR CO.,Maintenance of Buildings,5703.06,1/16/2018
CHICAGO METRO CONSTRUCTION D/B/A ARLINGTON GLASS & MIRROR CO.,Maintenance of Buildings,7215.56,1/17/2018
CHICAGO METRO CONSTRUCTION D/B/A ARLINGTON GLASS & MIRROR CO.,Maintenance of Buildings,3646.26,1/25/2018
CHICAGO METRO CONSTRUCTION D/B/A ARLINGTON GLASS & MIRROR CO.,Maintenance of Buildings,4869,1/26/2018
CHICAGO METRO CONSTRUCTION D/B/A ARLINGTON GLASS & MIRROR CO.,Maintenance of Buildings,7144.38,2/8/2018
CHICAGO METRO CONSTRUCTION D/B/A ARLINGTON GLASS & MIRROR CO.,Maintenance of Buildings,7808.78,2/20/2018
CHICAGO METRO CONSTRUCTION D/B/A ARLINGTON GLASS & MIRROR CO.,Maintenance of Buildings,5255.51,2/22/2018
CHICAGO METRO CONSTRUCTION D/B/A ARLINGTON GLASS & MIRROR CO.,Maintenance of Buildings,5071.74,2/27/2018
CHICAGO METRO CONSTRUCTION D/B/A ARLINGTON GLASS & MIRROR CO.,Maintenance of Buildings,3686.56,3/7/2018
CHICAGO METRO CONSTRUCTION D/B/A ARLINGTON GLASS & MIRROR CO.,Maintenance of Buildings,1903.52,3/13/2018
CHICAGO METRO CONSTRUCTION D/B/A ARLINGTON GLASS & MIRROR CO.,Maintenance of Buildings,5507.88,3/20/2018
CHICAGO METRO CONSTRUCTION D/B/A ARLINGTON GLASS & MIRROR CO.,Maintenance of Buildings,8239.21,3/27/2018
CHICAGO METRO CONSTRUCTION D/B/A ARLINGTON GLASS & MIRROR CO.,Maintenance of Buildings,13012.98,3/29/2018
CHICAGO METRO CONSTRUCTION D/B/A ARLINGTON GLASS & MIRROR CO.,Maintenance of Buildings,4196.5,4/3/2018
CHICAGO METRO CONSTRUCTION D/B/A ARLINGTON GLASS & MIRROR CO.,Maintenance of Buildings,5993.44,4/5/2018
CHICAGO METRO CONSTRUCTION D/B/A ARLINGTON GLASS & MIRROR CO.,Maintenance of Buildings,10218.63,4/11/2018
CHICAGO METRO CONSTRUCTION D/B/A ARLINGTON GLASS & MIRROR CO.,Maintenance of Buildings,540.4,4/18/2018
CHICAGO METRO CONSTRUCTION D/B/A ARLINGTON GLASS & MIRROR CO.,Maintenance of Buildings,12511.95,4/19/2018
CHICAGO METRO CONSTRUCTION D/B/A ARLINGTON GLASS & MIRROR CO.,Maintenance of Buildings,5679.7,4/25/2018
CHICAGO METRO CONSTRUCTION D/B/A ARLINGTON GLASS & MIRROR CO.,Maintenance of Buildings,4030.33,5/1/2018
CHICAGO METRO CONSTRUCTION D/B/A ARLINGTON GLASS & MIRROR CO.,Maintenance of Buildings,4626.3,5/3/2018
CHICAGO METRO CONSTRUCTION D/B/A ARLINGTON GLASS & MIRROR CO.,Maintenance of Buildings,5822.85,5/8/2018
CHICAGO METRO CONSTRUCTION D/B/A ARLINGTON GLASS & MIRROR CO.,Maintenance of Buildings,5262.86,5/15/2018
CHICAGO METRO CONSTRUCTION D/B/A ARLINGTON GLASS & MIRROR CO.,Maintenance of Buildings,845,5/16/2018
CHICAGO METRO CONSTRUCTION D/B/A ARLINGTON GLASS & MIRROR CO.,Maintenance of Buildings,13211.55,5/22/2018
CHICAGO METRO CONSTRUCTION D/B/A ARLINGTON GLASS & MIRROR CO.,Maintenance of Buildings,1793.06,6/12/2018
CHICAGO METRO CONSTRUCTION D/B/A ARLINGTON GLASS & MIRROR CO.,Maintenance of Buildings,2889.19,6/13/2018
CHICAGO METRO CONSTRUCTION D/B/A ARLINGTON GLASS & MIRROR CO.,Maintenance of Buildings,3202.7,6/14/2018
CHICAGO METRO CONSTRUCTION D/B/A ARLINGTON GLASS & MIRROR CO.,Maintenance of Buildings,10566.36,6/19/2018
CHICAGO METRO CONSTRUCTION D/B/A ARLINGTON GLASS & MIRROR CO.,Maintenance of Buildings,7127.19,6/20/2018
CHICAGO METRO CONSTRUCTION D/B/A ARLINGTON GLASS & MIRROR CO.,Maintenance of Buildings,39712.64,6/26/2018
CHICAGO METRO CONSTRUCTION D/B/A ARLINGTON GLASS & MIRROR CO.,Maintenance of Buildings,2784.38,6/27/2018
CHICAGO METRO CONSTRUCTION D/B/A ARLINGTON GLASS & MIRROR CO.,Maintenance of Buildings,2033.94,7/5/2018
CHICAGO METRO CONSTRUCTION D/B/A ARLINGTON GLASS & MIRROR CO.,Maintenance of Buildings,10631.14,7/11/2018
CHICAGO METRO CONSTRUCTION D/B/A ARLINGTON GLASS & MIRROR CO.,Maintenance of Buildings,9262.67,7/19/2018
CHICAGO METRO CONSTRUCTION D/B/A ARLINGTON GLASS & MIRROR CO.,Maintenance of Buildings,70408.14,7/26/2018
CHICAGO METRO CONSTRUCTION D/B/A ARLINGTON GLASS & MIRROR CO.,Maintenance of Buildings,9987.53,7/31/2018
CHICAGO METRO CONSTRUCTION D/B/A ARLINGTON GLASS & MIRROR CO.,Maintenance of Buildings,2225.92,8/2/2018
CHICAGO METRO CONSTRUCTION D/B/A ARLINGTON GLASS & MIRROR CO.,Maintenance of Buildings,4781.92,8/9/2018
CHICAGO METRO CONSTRUCTION D/B/A ARLINGTON GLASS & MIRROR CO.,Maintenance of Buildings,10281.14,8/16/2018
CHICAGO METRO CONSTRUCTION D/B/A ARLINGTON GLASS & MIRROR CO.,Maintenance of Buildings,418.92,8/17/2018
CHICAGO METRO CONSTRUCTION D/B/A ARLINGTON GLASS & MIRROR CO.,Maintenance of Buildings,4337.86,8/22/2018
CHICAGO METRO CONSTRUCTION D/B/A ARLINGTON GLASS & MIRROR CO.,Maintenance of Buildings,5105.14,8/28/2018
CHICAGO METRO CONSTRUCTION D/B/A ARLINGTON GLASS & MIRROR CO.,Maintenance of Buildings,17468.23,8/30/2018
CHICAGO METRO CONSTRUCTION D/B/A ARLINGTON GLASS & MIRROR CO.,Maintenance of Buildings,2118,9/4/2018
CHICAGO METRO CONSTRUCTION D/B/A ARLINGTON GLASS & MIRROR CO.,Maintenance of Buildings,4452.65,9/5/2018
CHICAGO METRO CONSTRUCTION D/B/A ARLINGTON GLASS & MIRROR CO.,Maintenance of Buildings,4593.78,9/11/2018
CHICAGO METRO CONSTRUCTION D/B/A ARLINGTON GLASS & MIRROR CO.,Maintenance of Buildings,3267.58,9/13/2018
CHICAGO METRO CONSTRUCTION D/B/A ARLINGTON GLASS & MIRROR CO.,Maintenance of Buildings,2510.4,9/19/2018
CHICAGO METRO CONSTRUCTION D/B/A ARLINGTON GLASS & MIRROR CO.,Maintenance of Buildings,9924.7,9/25/2018
CHICAGO METRO CONSTRUCTION D/B/A ARLINGTON GLASS & MIRROR CO.,Maintenance of Buildings,2340.51,9/27/2018
CHICAGO METRO CONSTRUCTION D/B/A ARLINGTON GLASS & MIRROR CO.,Maintenance of Buildings,697.56,10/3/2018
CHICAGO METRO CONSTRUCTION D/B/A ARLINGTON GLASS & MIRROR CO.,Maintenance of Buildings,3785.72,10/9/2018
CHICAGO METRO CONSTRUCTION D/B/A ARLINGTON GLASS & MIRROR CO.,Maintenance of Buildings,12116.38,10/18/2018
CHICAGO METRO CONSTRUCTION D/B/A ARLINGTON GLASS & MIRROR CO.,Maintenance of Buildings,6088.16,10/23/2018
CHICAGO METRO CONSTRUCTION D/B/A ARLINGTON GLASS & MIRROR CO.,Maintenance of Buildings,1608.94,10/24/2018
CHICAGO METRO CONSTRUCTION D/B/A ARLINGTON GLASS & MIRROR CO.,Maintenance of Buildings,3865.39,10/25/2018
CHICAGO METRO CONSTRUCTION D/B/A ARLINGTON GLASS & MIRROR CO.,Maintenance of Buildings,571.2,10/31/2018
CHICAGO METRO CONSTRUCTION D/B/A ARLINGTON GLASS & MIRROR CO.,Maintenance of Buildings,1483.32,11/1/2018
CHICAGO METRO CONSTRUCTION D/B/A ARLINGTON GLASS & MIRROR CO.,Maintenance of Buildings,3780.12,11/6/2018
CHICAGO METRO CONSTRUCTION D/B/A ARLINGTON GLASS & MIRROR CO.,Maintenance of Buildings,9715.96,11/9/2018
CHICAGO METRO CONSTRUCTION D/B/A ARLINGTON GLASS & MIRROR CO.,Maintenance of Buildings,119.75,11/13/2018
CHICAGO METRO CONSTRUCTION D/B/A ARLINGTON GLASS & MIRROR CO.,Maintenance of Buildings,4361.85,11/14/2018
CHICAGO METRO CONSTRUCTION D/B/A ARLINGTON GLASS & MIRROR CO.,Maintenance of Buildings,2545,11/15/2018
CHICAGO METRO CONSTRUCTION D/B/A ARLINGTON GLASS & MIRROR CO.,Maintenance of Buildings,930.83,11/20/2018
CHICAGO METRO CONSTRUCTION D/B/A ARLINGTON GLASS & MIRROR CO.,Maintenance of Buildings,5381.54,11/21/2018
CHICAGO METRO CONSTRUCTION D/B/A ARLINGTON GLASS & MIRROR CO.,Maintenance of Buildings,4368.16,11/29/2018
CHICAGO METRO CONSTRUCTION D/B/A ARLINGTON GLASS & MIRROR CO.,Maintenance of Buildings,674.88,11/30/2018
CHICAGO METRO CONSTRUCTION D/B/A ARLINGTON GLASS & MIRROR CO.,Maintenance of Buildings,3205,12/4/2018
CHICAGO METRO CONSTRUCTION D/B/A ARLINGTON GLASS & MIRROR CO.,Maintenance of Buildings,4465.89,12/14/2018
CHICAGO METRO CONSTRUCTION D/B/A ARLINGTON GLASS & MIRROR CO.,Maintenance of Buildings,4563.24,12/19/2018
CHICAGO METRO CONSTRUCTION D/B/A ARLINGTON GLASS & MIRROR CO.,Maintenance of Buildings,1261.72,12/28/2018
CHICAGO METROPOLITAN FIRE PREVENTION CO,Maintenance of Buildings,255,5/15/2018
"CHICAGO ORTHOPAEDICS & SPORTS MEDICINE, S.C.",I&D Claims (Damage Reserve),800,9/14/2018
CHICAGO PAIN CENTER,I&D Claims (Damage Reserve),750,3/27/2018
CHICAGO POLICE DEPARTMENT,Security Rail,940176,2/8/2018
CHICAGO POLICE DEPARTMENT,Security Rail,1013389.74,3/6/2018
CHICAGO POLICE DEPARTMENT,Security Rail,1081233.55,4/4/2018
CHICAGO POLICE DEPARTMENT,Security Rail,1089345.63,5/15/2018
CHICAGO POLICE DEPARTMENT,Security Rail,1148348.84,6/1/2018
CHICAGO POLICE DEPARTMENT,Security Rail,1082166.5,7/10/2018
CHICAGO POLICE DEPARTMENT,Security Rail,785301.68,7/30/2018
CHICAGO POLICE DEPARTMENT,Security Rail,1029655.92,10/1/2018
CHICAGO POLICE DEPARTMENT,Misc. Expenditures,2007600.84,10/18/2018
CHICAGO POLICE DEPARTMENT,Security Rail,757078.09,11/19/2018
CHICAGO POLICE DEPARTMENT,Misc. Expenditures,469166.98,11/21/2018
CHICAGO POLICE DEPARTMENT,Security Rail,317397.57,12/24/2018
CHICAGO POLICE DEPARTMENT  (1),Security Rail,733532.23,10/16/2018
CHICAGO PRIMAL LLC,Real Estate,40000,1/12/2018
"CHICAGO SUN-TIMES, INCORPORATED dba Sun-Times Media Productions, LLC",Administrative Support,1157.36,1/26/2018
"CHICAGO SUN-TIMES, INCORPORATED dba Sun-Times Media Productions, LLC",Administrative Support,17.02,2/13/2018
"CHICAGO SUN-TIMES, INCORPORATED dba Sun-Times Media Productions, LLC",Administrative Support,50.32,2/13/2018
"CHICAGO SUN-TIMES, INCORPORATED dba Sun-Times Media Productions, LLC",Administrative Support,958.3,2/28/2018
"CHICAGO SUN-TIMES, INCORPORATED dba Sun-Times Media Productions, LLC",Administrative Support,26.64,3/27/2018
"CHICAGO SUN-TIMES, INCORPORATED dba Sun-Times Media Productions, LLC",Administrative Support,1175.86,3/28/2018
"CHICAGO SUN-TIMES, INCORPORATED dba Sun-Times Media Productions, LLC",Administrative Support,1166.24,4/26/2018
"CHICAGO SUN-TIMES, INCORPORATED dba Sun-Times Media Productions, LLC",Administrative Support,60.68,5/17/2018
"CHICAGO SUN-TIMES, INCORPORATED dba Sun-Times Media Productions, LLC",Administrative Support,981.24,5/25/2018
"CHICAGO SUN-TIMES, INCORPORATED dba Sun-Times Media Productions, LLC",Administrative Support,936.1,6/28/2018
"CHICAGO SUN-TIMES, INCORPORATED dba Sun-Times Media Productions, LLC",Administrative Support,25.16,7/19/2018
"CHICAGO SUN-TIMES, INCORPORATED dba Sun-Times Media Productions, LLC",Administrative Support,817.7,7/26/2018
"CHICAGO SUN-TIMES, INCORPORATED dba Sun-Times Media Productions, LLC",Administrative Support,416,8/7/2018
"CHICAGO SUN-TIMES, INCORPORATED dba Sun-Times Media Productions, LLC",Administrative Support,1804.86,8/28/2018
"CHICAGO SUN-TIMES, INCORPORATED dba Sun-Times Media Productions, LLC",Administrative Support,1091.5,9/27/2018
"CHICAGO SUN-TIMES, INCORPORATED dba Sun-Times Media Productions, LLC",Administrative Support,72.52,10/25/2018
"CHICAGO SUN-TIMES, INCORPORATED dba Sun-Times Media Productions, LLC",Administrative Support,1480.74,10/26/2018
"CHICAGO SUN-TIMES, INCORPORATED dba Sun-Times Media Productions, LLC",Administrative Support,1531.8,11/28/2018
"CHICAGO SUN-TIMES, INCORPORATED dba Sun-Times Media Productions, LLC",Administrative Support,489.6,11/28/2018
"CHICAGO SUN-TIMES, INCORPORATED dba Sun-Times Media Productions, LLC",Administrative Support,654.9,12/27/2018
CHICAGO SURGICAL GROUP LTD,I&D Claims (Damage Reserve),750,8/10/2018
CHICAGO TITLE & TRUST CO.,Real Estate,358314,1/26/2018
CHICAGO TITLE & TRUST CO.,Real Estate,51320,6/13/2018
CHICAGO TITLE & TRUST CO.,Real Estate,751725,6/13/2018
CHICAGO TITLE & TRUST CO.,Real Estate,110340,9/7/2018
CHICAGO TITLE & TRUST CO.,Real Estate,31140,9/7/2018
CHICAGO TITLE & TRUST CO.,Real Estate,427150,9/7/2018
CHICAGO TITLE & TRUST COMPANY,Real Estate,300060,1/16/2018
CHICAGO TITLE & TRUST COMPANY,Consulting Services,20812,7/26/2018
CHICAGO TITLE & TRUST COMPANY,Consulting Services,371295.83,7/27/2018
CHICAGO TITLE & TRUST COMPANY,Consulting Services,753419.96,7/31/2018
CHICAGO TITLE & TRUST COMPANY,Contract Construction,760321.05,7/31/2018
CHICAGO TITLE & TRUST COMPANY,Consulting Services,348849.66,8/1/2018
CHICAGO TITLE & TRUST COMPANY,Contract Construction,1181728.09,8/1/2018
CHICAGO TITLE & TRUST COMPANY,Consulting Services,474521.06,8/2/2018
CHICAGO TITLE & TRUST COMPANY,Contract Construction,1261367,8/2/2018
CHICAGO TITLE & TRUST COMPANY,Consulting Services,723366,8/3/2018
CHICAGO TITLE & TRUST COMPANY,Contract Construction,2156444.03,8/3/2018
CHICAGO TITLE & TRUST COMPANY,Contract Construction,745193.01,8/7/2018
CHICAGO TITLE & TRUST COMPANY,Contract Construction,176128.81,8/8/2018
CHICAGO TOP PHYISCAL THERAPY,I&D Claims (Damage Reserve),900,12/18/2018
CHICAGO TRANSIT AUTHORITY,Open Fare Implementation 04/30/2012,6375,2/16/2018
CHICAGO TRANSIT AUTHORITY,Open Fare Implementation 04/30/2012,43000,7/30/2018
CHICAGO TRANSIT AUTHORITY,Open Fare Implementation 04/30/2012,91975,12/24/2018
CHICAGO TRANSIT PARTNERS,Consulting Services,15496,1/10/2018
CHICAGO TRANSIT PARTNERS,Consulting Services,437596.33,1/17/2018
CHICAGO TRANSIT PARTNERS,Consulting Services,2728.59,1/24/2018
CHICAGO TRANSIT PARTNERS,Consulting Services,1803706.69,2/1/2018
CHICAGO TRANSIT PARTNERS,Consulting Services,885917.67,2/13/2018
CHICAGO TRANSIT PARTNERS,Consulting Services,564712.37,3/8/2018
CHICAGO TRANSIT PARTNERS,Consulting Services,1093916.01,3/14/2018
CHICAGO TRANSIT PARTNERS,Consulting Services,20893.25,4/2/2018
CHICAGO TRANSIT PARTNERS,Consulting Services,157149.95,4/5/2018
CHICAGO TRANSIT PARTNERS,Consulting Services,929244.02,4/6/2018
CHICAGO TRANSIT PARTNERS,Consulting Services,557676.12,4/25/2018
CHICAGO TRANSIT PARTNERS,Consulting Services,991368.09,5/9/2018
CHICAGO TRANSIT PARTNERS,Consulting Services,324901.39,5/29/2018
CHICAGO TRANSIT PARTNERS,Consulting Services,537084.29,5/31/2018
CHICAGO TRANSIT PARTNERS,Consulting Services,6979.18,6/7/2018
CHICAGO TRANSIT PARTNERS,Consulting Services,1688.94,6/25/2018
CHICAGO TRANSIT PARTNERS,Consulting Services,1172196.33,6/29/2018
CHICAGO TRANSIT PARTNERS,Consulting Services,629939.34,7/6/2018
CHICAGO TRANSIT PARTNERS,Consulting Services,4980.38,7/18/2018
CHICAGO TRANSIT PARTNERS,Consulting Services,409479.66,7/26/2018
CHICAGO TRANSIT PARTNERS,Consulting Services,844830.46,8/9/2018
CHICAGO TRANSIT PARTNERS,Consulting Services,377742.96,8/21/2018
CHICAGO TRANSIT PARTNERS,Consulting Services,2354670.33,10/2/2018
CHICAGO TRANSIT PARTNERS,Consulting Services,1327340.04,10/19/2018
CHICAGO TRANSIT PARTNERS,Consulting Services,92406.73,10/30/2018
CHICAGO TRANSIT PARTNERS,Consulting Services,11998.03,11/1/2018
CHICAGO TRANSIT PARTNERS,Consulting Services,1127967.84,11/15/2018
CHICAGO TRANSIT PARTNERS,Consulting Services,890839.33,12/20/2018
CHICAGO TRIBUNE,Recruiting / Hiring,995,7/5/2018
CHICAGO TRIBUNE,Administrative Support,351,7/11/2018
CHICAGO TRIBUNE CO.,Administrative Support,630,1/12/2018
CHICAGO TRIBUNE CO.,Administrative Support,2424.88,1/23/2018
CHICAGO TRIBUNE CO.,Recruiting / Hiring,2499,3/2/2018
CHICAGO TRIBUNE CO.,Administrative Support,180.45,3/20/2018
CHICAGO TRIBUNE CO.,Administrative Support,400,11/15/2018
CHICAGO TRIBUNE MEDIA GROUP,Administrative Support,235.2,4/24/2018
CHICAGO UNIFORM COMPANY,Administrative Support,145.2,8/22/2018
CHICAGO URBAN LEAGUE,Administrative Support,15000,5/23/2018
CHICAGO URBAN LEAGUE,Recruiting / Hiring,150,6/21/2018
CHICAGO URBAN LEAGUE,Administrative Support,15000,6/28/2018
CHICAGO URBAN LEAGUE,Administrative Support,15000,9/27/2018
CHIMNIAK COURT REPORTING,Administrative Support,110,6/29/2018
CHINESE AMERICAN NEWS,Administrative Support,500,2/7/2018
CHINESE AMERICAN NEWS,Administrative Support,210,11/15/2018
CHINESE AMERICAN NEWS,Administrative Support,210,12/20/2018
CHRIS WOOLEY,Real Estate,3963.33,1/12/2018
CHRISTIAN POPE,Reimb for lost tools/badges,20,7/17/2018
CHRISTINA KUO MD,I&D Claims (Damage Reserve),750,5/3/2018
CHRISTINA KUO MD,I&D Claims (Damage Reserve),375,7/24/2018
CHRISTINE M. MURPHY,Meals,27.96,7/27/2018
CHRISTINE M. MURPHY,Other Travel,43.5,7/27/2018
CHRISTINE M. MURPHY,Vehicle/Truck/Van Rental,121.35,7/27/2018
CHRISTOPHER COSNOWSKI,Consulting Services,36260,5/15/2018
CHRISTOPHER COSNOWSKI,Consulting Services,19600,11/29/2018
CHRISTOPHER PECKAT,Real Estate,60464,10/26/2018
CHRISTOPHER PRATTS,I&D Claims (Damage Reserve),75,5/22/2018
CICERO POLICE DEPT.,I&D Claims (Damage Reserve),5,1/30/2018
CICERO POLICE DEPT.,I&D Claims (Damage Reserve),5,9/28/2018
CICERO POLICE DEPT.,I&D Claims (Damage Reserve),5,12/11/2018
CICERO POLICE DEPT.,I&D Claims (Damage Reserve),5,12/26/2018
CINTAS CORPORATION,Maintenance of Structures,11073.7,4/13/2018
CINTAS CORPORATION,Engineering,673.64,5/18/2018
CINTAS CORPORATION,Maintainance of Signal & Control Equipment,4921.56,5/18/2018
CINTAS CORPORATION,Maintenance of Substations,2676.53,5/18/2018
CINTAS CORPORATION,Maintenance of Track & Roadway,8808.68,5/18/2018
CINTAS CORPORATION,Maintenance of Track & Roadway-Electrical,4437.54,5/18/2018
CINTAS CORPORATION,Management,58.72,5/18/2018
CINTAS CORPORATION,Management,1221.94,5/30/2018
CINTAS CORPORATION,Maintenance of Buildings,1868.24,5/31/2018
CINTAS CORPORATION,Maintenance of Structures,4735.88,6/1/2018
CINTAS CORPORATION,Professional / Technical,109.6,6/20/2018
CINTAS CORPORATION,Maintenance of Structures,4728.11,6/28/2018
CINTAS CORPORATION,Management,366.75,7/6/2018
CINTAS CORPORATION,Professional / Technical,246.6,7/11/2018
CINTAS CORPORATION,Engineering,672.66,7/12/2018
CINTAS CORPORATION,Maintainance of Signal & Control Equipment,6026.39,7/12/2018
CINTAS CORPORATION,Maintenance of Escalators,1014.02,7/12/2018
CINTAS CORPORATION,Maintenance of Substations,1617.68,7/12/2018
CINTAS CORPORATION,Maintenance of Track & Roadway,8821.37,7/12/2018
CINTAS CORPORATION,Maintenance of Track & Roadway-Electrical,4540.3,7/12/2018
CINTAS CORPORATION,Management,62.62,7/12/2018
CINTAS CORPORATION,Maintenance of Buildings,4134.02,7/13/2018
CINTAS CORPORATION,Maintenance of Buildings,1822.22,7/26/2018
CINTAS CORPORATION,Management,1584.18,7/26/2018
CINTAS CORPORATION,Professional / Technical,109.6,7/26/2018
CINTAS CORPORATION,Engineering,1505.89,7/30/2018
CINTAS CORPORATION,Maintainance of Signal & Control Equipment,11571.18,7/30/2018
CINTAS CORPORATION,Maintenance of Substations,5638.98,7/30/2018
CINTAS CORPORATION,Maintenance of Track & Roadway-Electrical,10153.68,7/30/2018
CINTAS CORPORATION,Management,144.84,7/30/2018
CINTAS CORPORATION,Maintenance of Structures,16627.68,8/1/2018
CINTAS CORPORATION,Maintenance of Track & Roadway,17892.27,8/1/2018
CINTAS CORPORATION,Management,1799.85,8/1/2018
CINTAS CORPORATION,Engineering,656.98,8/3/2018
CINTAS CORPORATION,Maintainance of Signal & Control Equipment,6031.28,8/3/2018
CINTAS CORPORATION,Maintenance of Substations,1617.68,8/3/2018
CINTAS CORPORATION,Maintenance of Track & Roadway,8701.9,8/3/2018
CINTAS CORPORATION,Maintenance of Track & Roadway-Electrical,4512.86,8/3/2018
CINTAS CORPORATION,Management,64.59,8/3/2018
CINTAS CORPORATION,Maintenance of Escalators,3297.95,8/16/2018
CINTAS CORPORATION,Management,243.8,8/24/2018
CINTAS CORPORATION,Management,121.89,8/27/2018
CINTAS CORPORATION,Engineering,656.98,8/28/2018
CINTAS CORPORATION,Maintainance of Signal & Control Equipment,3999.78,8/28/2018
CINTAS CORPORATION,Maintenance of Substations,3603.16,8/28/2018
CINTAS CORPORATION,Maintenance of Track & Roadway,8705.81,8/28/2018
CINTAS CORPORATION,Maintenance of Track & Roadway-Electrical,4714.74,8/28/2018
CINTAS CORPORATION,Management,186.49,8/28/2018
CINTAS CORPORATION,Maintenance of Structures,5050.25,9/17/2018
CINTAS CORPORATION,Professional / Technical,109.6,9/18/2018
CINTAS CORPORATION,Professional / Technical,121.32,10/2/2018
CINTAS CORPORATION,Maintenance of Buildings,1822.22,10/3/2018
CINTAS CORPORATION,Engineering,669.57,10/9/2018
CINTAS CORPORATION,Maintainance of Signal & Control Equipment,4669.7,10/9/2018
CINTAS CORPORATION,Maintenance of Substations,2990.34,10/9/2018
CINTAS CORPORATION,Maintenance of Track & Roadway,10269.03,10/9/2018
CINTAS CORPORATION,Maintenance of Track & Roadway-Electrical,4499.14,10/9/2018
CINTAS CORPORATION,Management,66.5,10/9/2018
CINTAS CORPORATION,Maintenance of Buildings,1868.24,10/15/2018
CINTAS CORPORATION,Maintenance of Buildings,2013.67,11/8/2018
CINTAS CORPORATION,Engineering,733.56,11/13/2018
CINTAS CORPORATION,Maintainance of Signal & Control Equipment,6781.8,11/13/2018
CINTAS CORPORATION,Maintenance of Substations,1855.04,11/13/2018
CINTAS CORPORATION,Maintenance of Track & Roadway,9434.65,11/13/2018
CINTAS CORPORATION,Maintenance of Track & Roadway-Electrical,5086.16,11/13/2018
CINTAS CORPORATION,Management,67.6,11/13/2018
CINTAS CORPORATION,Management,1129.13,11/14/2018
CINTAS CORPORATION,Maintenance of Escalators,1067.36,11/19/2018
CINTAS CORPORATION,Maintenance of Buildings,1838.49,11/23/2018
CINTAS CORPORATION,Maintenance of Escalators,1104.39,11/23/2018
CINTAS CORPORATION,Professional / Technical,462.76,11/23/2018
CINTAS CORPORATION,Maintenance of Escalators,1434.28,11/28/2018
CINTAS CORPORATION,Maintenance of Buildings,2500.7,11/29/2018
CINTAS CORPORATION,Maintenance of Escalators,1792.85,11/29/2018
CINTAS CORPORATION,Professional / Technical,91.3,11/29/2018
CINTAS CORPORATION,Engineering,916.95,12/19/2018
CINTAS CORPORATION,Maintainance of Signal & Control Equipment,8535.25,12/19/2018
CINTAS CORPORATION,Maintenance of Structures,6317.88,12/19/2018
CINTAS CORPORATION,Maintenance of Substations,2495.44,12/19/2018
CINTAS CORPORATION,Maintenance of Track & Roadway,13135.49,12/19/2018
CINTAS CORPORATION,Maintenance of Track & Roadway-Electrical,6481.29,12/19/2018
CINTAS CORPORATION,Management,84.5,12/19/2018
CINTAS CORPORATION,Maintenance of Buildings,2000.56,12/24/2018
CINTAS CORPORATION,Management,724.8,12/27/2018
CIOX HEALTH,I&D Claims (Damage Reserve),87.72,4/17/2018
CISION US INC,Marketing,27310.5,2/2/2018
CITIZEN NEWSPAPER GROUP,Marketing,2700,3/27/2018
CITIZEN NEWSPAPER GROUP,Marketing,4758.75,5/9/2018
CITIZEN NEWSPAPER GROUP,Marketing,4000,5/16/2018
CITIZENSHIP EDUCATION FUND,Administrative Support,1500,6/12/2018
CITY  OF HOMETOWN,Other General Expense,200,1/23/2018
CITY  OF HOMETOWN,Other General Expense,2300,1/26/2018
CITY  OF HOMETOWN,Other General Expense,100,1/31/2018
CITY  OF HOMETOWN,Other General Expense,100,5/1/2018
CITY  OF HOMETOWN,Other General Expense,100,10/16/2018
CITY CAREER FAIR,Recruiting / Hiring,795,4/24/2018
CITY CAREER FAIR,Recruiting / Hiring,860,9/4/2018
CITY OF BERWYN,Other General Expense,100,1/23/2018
CITY OF BURBANK,Other General Expense,100,1/2/2018
CITY OF BURBANK,Other General Expense,100,9/14/2018
CITY OF CHGO.-ENTERPRISE FUNDS,"Facilities Operating Expenses (Rent,Utilities,etc)",7880.31,1/5/2018
CITY OF CHGO.-ENTERPRISE FUNDS,"Facilities Operating Expenses (Rent,Utilities,etc)",5267.86,4/3/2018
CITY OF CHGO.-ENTERPRISE FUNDS,"Facilities Operating Expenses (Rent,Utilities,etc)",4709.14,7/12/2018
CITY OF CHGO.-ENTERPRISE FUNDS,"Facilities Operating Expenses (Rent,Utilities,etc)",7183.37,10/18/2018
CITY OF CHICAGO        (RPM),Contract Construction,4250,3/16/2018
CITY OF CHICAGO        (RPM),Contract Construction,215800,12/26/2018
CITY OF CHICAGO DEPT.OF REVENUE-RED LIGHT,Other General Expense,400,1/9/2018
CITY OF CHICAGO DEPT.OF REVENUE-RED LIGHT,Other General Expense,970,1/18/2018
CITY OF CHICAGO DEPT.OF REVENUE-RED LIGHT,Other General Expense,200,1/19/2018
CITY OF CHICAGO DEPT.OF REVENUE-RED LIGHT,Other General Expense,200,1/26/2018
CITY OF CHICAGO DEPT.OF REVENUE-RED LIGHT,Other General Expense,600,1/31/2018
CITY OF CHICAGO DEPT.OF REVENUE-RED LIGHT,Other General Expense,400,2/8/2018
CITY OF CHICAGO DEPT.OF REVENUE-RED LIGHT,Other General Expense,705,2/20/2018
CITY OF CHICAGO DEPT.OF REVENUE-RED LIGHT,Other General Expense,400,2/27/2018
CITY OF CHICAGO DEPT.OF REVENUE-RED LIGHT,Other General Expense,100,3/2/2018
CITY OF CHICAGO DEPT.OF REVENUE-RED LIGHT,Other General Expense,200,3/7/2018
CITY OF CHICAGO DEPT.OF REVENUE-RED LIGHT,Other General Expense,335,3/15/2018
CITY OF CHICAGO DEPT.OF REVENUE-RED LIGHT,Other General Expense,400,3/16/2018
CITY OF CHICAGO DEPT.OF REVENUE-RED LIGHT,Other General Expense,100,3/20/2018
CITY OF CHICAGO DEPT.OF REVENUE-RED LIGHT,Other General Expense,300,3/27/2018
CITY OF CHICAGO DEPT.OF REVENUE-RED LIGHT,Other General Expense,735,4/6/2018
CITY OF CHICAGO DEPT.OF REVENUE-RED LIGHT,Other General Expense,535,4/12/2018
CITY OF CHICAGO DEPT.OF REVENUE-RED LIGHT,Other General Expense,500,4/17/2018
CITY OF CHICAGO DEPT.OF REVENUE-RED LIGHT,Other General Expense,400,4/26/2018
CITY OF CHICAGO DEPT.OF REVENUE-RED LIGHT,Other General Expense,900,5/1/2018
CITY OF CHICAGO DEPT.OF REVENUE-RED LIGHT,Other General Expense,500,5/11/2018
CITY OF CHICAGO DEPT.OF REVENUE-RED LIGHT,Other General Expense,300,5/15/2018
CITY OF CHICAGO DEPT.OF REVENUE-RED LIGHT,Other General Expense,100,5/16/2018
CITY OF CHICAGO DEPT.OF REVENUE-RED LIGHT,Other General Expense,500,5/24/2018
CITY OF CHICAGO DEPT.OF REVENUE-RED LIGHT,Other General Expense,470,5/31/2018
CITY OF CHICAGO DEPT.OF REVENUE-RED LIGHT,Other General Expense,500,6/8/2018
CITY OF CHICAGO DEPT.OF REVENUE-RED LIGHT,Other General Expense,435,6/12/2018
CITY OF CHICAGO DEPT.OF REVENUE-RED LIGHT,Other General Expense,300,6/19/2018
CITY OF CHICAGO DEPT.OF REVENUE-RED LIGHT,Other General Expense,900,6/26/2018
CITY OF CHICAGO DEPT.OF REVENUE-RED LIGHT,Other General Expense,650,7/3/2018
CITY OF CHICAGO DEPT.OF REVENUE-RED LIGHT,Other General Expense,500,7/10/2018
CITY OF CHICAGO DEPT.OF REVENUE-RED LIGHT,Other General Expense,900,7/17/2018
CITY OF CHICAGO DEPT.OF REVENUE-RED LIGHT,Other General Expense,200,7/27/2018
CITY OF CHICAGO DEPT.OF REVENUE-RED LIGHT,Other General Expense,1400,8/1/2018
CITY OF CHICAGO DEPT.OF REVENUE-RED LIGHT,Other General Expense,135,8/14/2018
CITY OF CHICAGO DEPT.OF REVENUE-RED LIGHT,Other General Expense,500,8/17/2018
CITY OF CHICAGO DEPT.OF REVENUE-RED LIGHT,Other General Expense,600,8/21/2018
CITY OF CHICAGO DEPT.OF REVENUE-RED LIGHT,Other General Expense,570,8/30/2018
CITY OF CHICAGO DEPT.OF REVENUE-RED LIGHT,Other General Expense,700,9/4/2018
CITY OF CHICAGO DEPT.OF REVENUE-RED LIGHT,Other General Expense,21,9/7/2018
CITY OF CHICAGO DEPT.OF REVENUE-RED LIGHT,Other General Expense,900,9/14/2018
CITY OF CHICAGO DEPT.OF REVENUE-RED LIGHT,Other General Expense,500,9/20/2018
CITY OF CHICAGO DEPT.OF REVENUE-RED LIGHT,Other General Expense,700,10/2/2018
CITY OF CHICAGO DEPT.OF REVENUE-RED LIGHT,Other General Expense,600,10/9/2018
CITY OF CHICAGO DEPT.OF REVENUE-RED LIGHT,Other General Expense,635,10/11/2018
CITY OF CHICAGO DEPT.OF REVENUE-RED LIGHT,Other General Expense,565,10/19/2018
CITY OF CHICAGO DEPT.OF REVENUE-RED LIGHT,Other General Expense,600,10/23/2018
CITY OF CHICAGO DEPT.OF REVENUE-RED LIGHT,Other General Expense,700,11/1/2018
CITY OF CHICAGO DEPT.OF REVENUE-RED LIGHT,Other General Expense,700,11/8/2018
CITY OF CHICAGO DEPT.OF REVENUE-RED LIGHT,Other General Expense,500,11/14/2018
CITY OF CHICAGO DEPT.OF REVENUE-RED LIGHT,Other General Expense,35,11/20/2018
CITY OF CHICAGO DEPT.OF REVENUE-RED LIGHT,Other General Expense,1035,11/23/2018
CITY OF CHICAGO DEPT.OF REVENUE-RED LIGHT,Other General Expense,200,11/30/2018
CITY OF CHICAGO DEPT.OF REVENUE-RED LIGHT,Other General Expense,400,12/6/2018
CITY OF CHICAGO DEPT.OF REVENUE-RED LIGHT,Other General Expense,35,12/11/2018
CITY OF CHICAGO DEPT.OF REVENUE-RED LIGHT,Other General Expense,1500,12/13/2018
CITY OF CHICAGO DEPT.OF REVENUE-RED LIGHT,Other General Expense,670,12/21/2018
CITY OF CHICAGO DEPT.OF REVENUE-RED LIGHT,Other General Expense,100,12/27/2018
CITY OF CHICAGO POLICE DEPT,Security Rail,885992.75,1/9/2018
CITY OF CHICAGO-DEPT OF FLEET AND FACILITY  MGMT,Maintenance & Repair of Company Automobiles,125759.66,1/23/2018
CITY OF CHICAGO-DEPT OF FLEET AND FACILITY  MGMT,Service Vehicle and Equipment Repair,13316.26,1/23/2018
CITY OF CHICAGO-DEPT OF FLEET AND FACILITY  MGMT,Maintenance & Repair of Company Automobiles,92321.76,2/23/2018
CITY OF CHICAGO-DEPT OF FLEET AND FACILITY  MGMT,Service Vehicle and Equipment Repair,11496.98,2/23/2018
CITY OF CHICAGO-DEPT OF FLEET AND FACILITY  MGMT,Service Vehicle and Equipment Repair,582.22,4/17/2018
CITY OF CHICAGO-DEPT OF FLEET AND FACILITY  MGMT,Maintenance & Repair of Company Automobiles,274746.58,4/18/2018
CITY OF CHICAGO-DEPT OF FLEET AND FACILITY  MGMT,Service Vehicle and Equipment Repair,26965.65,4/18/2018
CITY OF CHICAGO-DEPT OF FLEET AND FACILITY  MGMT,Service Vehicle and Equipment Repair,266.49,6/22/2018
CITY OF CHICAGO-DEPT OF FLEET AND FACILITY  MGMT,Maintenance & Repair of Company Automobiles,200979.81,6/26/2018
CITY OF CHICAGO-DEPT OF FLEET AND FACILITY  MGMT,Service Vehicle and Equipment Repair,27422.16,6/26/2018
CITY OF CHICAGO-DEPT OF FLEET AND FACILITY  MGMT,Maintenance & Repair of Company Automobiles,128481.48,7/13/2018
CITY OF CHICAGO-DEPT OF FLEET AND FACILITY  MGMT,Service Vehicle and Equipment Repair,13958.94,7/13/2018
CITY OF CHICAGO-DEPT OF FLEET AND FACILITY  MGMT,Maintenance & Repair of Company Automobiles,97194.11,8/29/2018
CITY OF CHICAGO-DEPT OF FLEET AND FACILITY  MGMT,Service Vehicle and Equipment Repair,13989.26,8/29/2018
CITY OF CHICAGO-DEPT OF FLEET AND FACILITY  MGMT,Service Vehicle and Equipment Repair,59.21,8/30/2018
CITY OF CHICAGO-DEPT OF FLEET AND FACILITY  MGMT,Maintenance & Repair of Company Automobiles,129042.92,10/23/2018
CITY OF CHICAGO-DEPT OF FLEET AND FACILITY  MGMT,Service Vehicle and Equipment Repair,14603.36,10/23/2018
CITY OF CHICAGO-DEPT OF FLEET AND FACILITY  MGMT,Maintenance & Repair of Company Automobiles,206548.13,11/6/2018
CITY OF CHICAGO-DEPT OF FLEET AND FACILITY  MGMT,Service Vehicle and Equipment Repair,3563.91,11/6/2018
CITY OF CHICAGO-DEPT OF FLEET AND FACILITY  MGMT,Service Vehicle and Equipment Repair,11836.46,11/9/2018
CITY OF CHICAGO-DEPT OF FLEET AND FACILITY  MGMT,Engineering,24738.37,12/7/2018
CITY OF CHICAGO-DEPT OF FLEET AND FACILITY  MGMT,Service Vehicle and Equipment Repair,14269.77,12/24/2018
CITY OF CHICAGO-DEPT OF FLEET AND FACILITY  MGMT,Maintenance & Repair of Company Automobiles,229675.87,12/26/2018
CITY OF CHICAGO-DEPT OF REVENUE,Maintenance of Buildings,355,10/26/2018
CITY OF CHICAGO-DEPT OF REVENUE,Maintenance of Buildings,245,10/26/2018
CITY OF CHICAGO-DEPT OF REVENUE,Maintenance of Buildings,625,10/30/2018
CITY OF CHICAGO-DEPT OF REVENUE,Maintenance of Buildings,505,10/30/2018
CITY OF CHICAGO-DEPT OF TRANSPORTATION,Misc. Expenditures,4438.21,2/2/2018
CITY OF CHICAGO-DEPT OF WATER,Real Estate,237.78,1/26/2018
CITY OF CHICAGO-DEPT OF WATER,"Facilities Operating Expenses (Rent,Utilities,etc)",36070.44,2/20/2018
CITY OF CHICAGO-DEPT OF WATER,"Facilities Operating Expenses (Rent,Utilities,etc)",13213.1,2/28/2018
CITY OF CHICAGO-DEPT OF WATER,Real Estate,1785.74,4/11/2018
CITY OF CHICAGO-DEPT OF WATER,"Facilities Operating Expenses (Rent,Utilities,etc)",205091.96,4/17/2018
CITY OF CHICAGO-DEPT OF WATER,"Facilities Operating Expenses (Rent,Utilities,etc)",46529.32,5/8/2018
CITY OF CHICAGO-DEPT OF WATER,"Facilities Operating Expenses (Rent,Utilities,etc)",47775.54,5/15/2018
CITY OF CHICAGO-DEPT OF WATER,"Facilities Operating Expenses (Rent,Utilities,etc)",98137.13,5/17/2018
CITY OF CHICAGO-DEPT OF WATER,"Facilities Operating Expenses (Rent,Utilities,etc)",96708.52,6/29/2018
CITY OF CHICAGO-DEPT OF WATER,"Facilities Operating Expenses (Rent,Utilities,etc)",74399.54,7/17/2018
CITY OF CHICAGO-DEPT OF WATER,"Facilities Operating Expenses (Rent,Utilities,etc)",23577.62,7/27/2018
CITY OF CHICAGO-DEPT OF WATER,"Facilities Operating Expenses (Rent,Utilities,etc)",148859.8,8/10/2018
CITY OF CHICAGO-DEPT OF WATER,"Facilities Operating Expenses (Rent,Utilities,etc)",35734.95,8/31/2018
CITY OF CHICAGO-DEPT OF WATER,"Facilities Operating Expenses (Rent,Utilities,etc)",34928.66,9/11/2018
CITY OF CHICAGO-DEPT OF WATER,"Facilities Operating Expenses (Rent,Utilities,etc)",27918.42,9/18/2018
CITY OF CHICAGO-DEPT OF WATER,"Facilities Operating Expenses (Rent,Utilities,etc)",52505.03,9/21/2018
CITY OF CHICAGO-DEPT OF WATER,"Facilities Operating Expenses (Rent,Utilities,etc)",13496.39,10/3/2018
CITY OF CHICAGO-DEPT OF WATER,"Facilities Operating Expenses (Rent,Utilities,etc)",27170.62,11/1/2018
CITY OF CHICAGO-DEPT OF WATER,"Facilities Operating Expenses (Rent,Utilities,etc)",37457.3,11/20/2018
CITY OF CHICAGO-DEPT OF WATER,"Facilities Operating Expenses (Rent,Utilities,etc)",33117.62,12/18/2018
CITY OF CHICAGO-DEPT OF WATER,"Facilities Operating Expenses (Rent,Utilities,etc)",58074.97,12/24/2018
CITY OF CHICAGO/DEPT OF FINANCE,Misc. Expenditures,168092.97,1/26/2018
CITY OF CHICAGO/DEPT OF FINANCE,Misc. Expenditures,68642.78,3/7/2018
CITY OF CHICAGO/DEPT OF FINANCE,Maintenance of Buildings,795,3/30/2018
CITY OF CHICAGO/DEPT OF FINANCE,Misc. Expenditures,27750.35,5/2/2018
CITY OF CHICAGO/DEPT OF FINANCE,Misc. Expenditures,33695.39,6/13/2018
CITY OF CHICAGO/DEPT OF FINANCE,Maintenance of Buildings,700,7/26/2018
CITY OF CHICAGO/DEPT OF FINANCE,Real Estate,101.42,8/17/2018
CITY OF CHICAGO/DEPT OF FINANCE,Real Estate,2139.58,10/17/2018
CITY OF CHICAGO/DEPT OF FINANCE,Misc. Expenditures,77615.73,11/30/2018
CITY OF CHICAGO/DEPT OF FINANCE,Misc. Expenditures,8256.74,12/7/2018
CITY OF EVANSTON,"Facilities Operating Expenses (Rent,Utilities,etc)",1203.04,2/8/2018
CITY OF EVANSTON,"Facilities Operating Expenses (Rent,Utilities,etc)",1392.2,4/25/2018
CITY OF EVANSTON,"Facilities Operating Expenses (Rent,Utilities,etc)",747.09,6/21/2018
CITY OF EVANSTON,"Facilities Operating Expenses (Rent,Utilities,etc)",2403.03,8/22/2018
CITY OF EVANSTON,"Facilities Operating Expenses (Rent,Utilities,etc)",1653.26,10/4/2018
CITY OF EVANSTON,"Facilities Operating Expenses (Rent,Utilities,etc)",1486.76,12/4/2018
CITY OF HOMETOWN,Other General Expense,600,3/13/2018
CITY OF HOMETOWN,Other General Expense,100,10/23/2018
CLAREMONT LLC,Drug & Alcohol Testing,185,1/24/2018
CLAREMONT LLC,Drug & Alcohol Testing,840,1/25/2018
CLAREMONT LLC,Drug & Alcohol Testing,185,1/30/2018
CLAREMONT LLC,Drug & Alcohol Testing,234,2/27/2018
CLAREMONT LLC,Drug & Alcohol Testing,740,3/9/2018
CLAREMONT LLC,Drug & Alcohol Testing,1624,3/29/2018
CLAREMONT LLC,Drug & Alcohol Testing,185,4/3/2018
CLAREMONT LLC,Drug & Alcohol Testing,752,5/1/2018
CLAREMONT LLC,Drug & Alcohol Testing,1476,5/10/2018
CLAREMONT LLC,Drug & Alcohol Testing,185,5/15/2018
CLAREMONT LLC,Drug & Alcohol Testing,1786,5/24/2018
CLAREMONT LLC,Drug & Alcohol Testing,370,6/12/2018
CLAREMONT LLC,Drug & Alcohol Testing,2016,6/26/2018
CLAREMONT LLC,Drug & Alcohol Testing,2239,8/3/2018
CLAREMONT LLC,Drug & Alcohol Testing,2877,8/29/2018
CLAREMONT LLC,Drug & Alcohol Testing,185,8/30/2018
CLAREMONT LLC,Drug & Alcohol Testing,185,9/25/2018
CLAREMONT LLC,Drug & Alcohol Testing,2028,9/27/2018
CLAREMONT LLC,Drug & Alcohol Testing,1986,10/30/2018
CLAREMONT LLC,Drug & Alcohol Testing,555,11/1/2018
CLAREMONT LLC,Drug & Alcohol Testing,980,11/29/2018
CLAREMONT LLC,Drug & Alcohol Testing,1078,11/30/2018
CLARIVATE ANALYTICS (US) LLC,Professional / Technical,118.75,8/3/2018
CLARIVATE ANALYTICS (US) LLC,Engineering,2278,11/1/2018
CLARIVATE ANALYTICS (US) LLC,Engineering,594,12/14/2018
"CLARK CONSTRUCTION GROUP - CHICAGO, LLC",Contract Construction,817441,1/16/2018
"CLARK CONSTRUCTION GROUP - CHICAGO, LLC",Contract Construction,898786,2/6/2018
"CLARK CONSTRUCTION GROUP - CHICAGO, LLC",Contract Construction,940292,3/5/2018
"CLARK CONSTRUCTION GROUP - CHICAGO, LLC",Contract Construction,1474002,3/21/2018
"CLARK CONSTRUCTION GROUP - CHICAGO, LLC",Contract Construction,465590,4/23/2018
"CLARK CONSTRUCTION GROUP - CHICAGO, LLC",Contract Construction,1094527,5/22/2018
"CLARK CONSTRUCTION GROUP - CHICAGO, LLC",Contract Construction,321299,6/12/2018
"CLARK CONSTRUCTION GROUP - CHICAGO, LLC",Contract Construction,1208944,6/19/2018
"CLARK CONSTRUCTION GROUP - CHICAGO, LLC",Contract Construction,1541901,7/6/2018
"CLARK CONSTRUCTION GROUP - CHICAGO, LLC",Contract Construction,1120922,8/9/2018
"CLARK CONSTRUCTION GROUP - CHICAGO, LLC",Contract Construction,854079,8/24/2018
"CLARK CONSTRUCTION GROUP - CHICAGO, LLC",Contract Construction,527791,9/5/2018
"CLARK CONSTRUCTION GROUP - CHICAGO, LLC",Contract Construction,1424141,9/6/2018
"CLARK CONSTRUCTION GROUP - CHICAGO, LLC",Contract Construction,295714,10/25/2018
"CLARK CONSTRUCTION GROUP - CHICAGO, LLC",Contract Construction,1178202,11/6/2018
"CLARK CONSTRUCTION GROUP - CHICAGO, LLC",Contract Construction,602325,11/8/2018
"CLARK CONSTRUCTION GROUP - CHICAGO, LLC",Contract Construction,1772479,11/21/2018
"CLARK CONSTRUCTION GROUP - CHICAGO, LLC",Contract Construction,616982,12/7/2018
"CLARK CONSTRUCTION GROUP - CHICAGO, LLC",Contract Construction,1795733,12/13/2018
"CLAUSS ADR, INC.",Administrative Support,1275,2/1/2018
CLEAN! CLEAN! DRY CLEANERS,Repair CTA Mini Bus/Train,287.75,10/2/2018
CLERK OF THE CIRCUIT COURT  1,I&D Claims (Damage Reserve),7237.65,1/30/2018
CLERK OF THE CIRCUIT COURT  1,I&D Claims (Damage Reserve),3186.25,2/7/2018
CLERK OF THE CIRCUIT COURT  1,I&D Claims (Damage Reserve),6953.5,3/22/2018
CLERK OF THE CIRCUIT COURT  1,I&D Claims (Damage Reserve),5120.5,3/22/2018
CLERK OF THE CIRCUIT COURT  1,I&D Claims (Damage Reserve),3108,4/27/2018
CLERK OF THE CIRCUIT COURT  1,I&D Claims (Damage Reserve),177,5/9/2018
CLERK OF THE CIRCUIT COURT  1,I&D Claims (Damage Reserve),8491.82,5/10/2018
CLERK OF THE CIRCUIT COURT  1,I&D Claims (Damage Reserve),3142,5/10/2018
CLERK OF THE CIRCUIT COURT  1,I&D Claims (Damage Reserve),12,6/14/2018
CLERK OF THE CIRCUIT COURT  1,I&D Claims (Damage Reserve),7,7/18/2018
CLERK OF THE CIRCUIT COURT  1,I&D Claims (Damage Reserve),177,7/18/2018
CLERK OF THE CIRCUIT COURT  1,I&D Claims (Damage Reserve),5924.5,7/19/2018
CLERK OF THE CIRCUIT COURT  1,I&D Claims (Damage Reserve),6185.25,7/19/2018
CLERK OF THE CIRCUIT COURT  1,I&D Claims (Damage Reserve),4954.5,7/19/2018
CLERK OF THE CIRCUIT COURT  1,I&D Claims (Damage Reserve),4379.5,7/19/2018
CLERK OF THE CIRCUIT COURT  1,I&D Claims (Damage Reserve),16,8/15/2018
CLERK OF THE CIRCUIT COURT  1,I&D Claims (Damage Reserve),49,8/29/2018
CLERK OF THE CIRCUIT COURT  1,I&D Claims (Damage Reserve),6436.5,8/31/2018
CLERK OF THE CIRCUIT COURT  1,I&D Claims (Damage Reserve),5469.25,9/4/2018
CLERK OF THE CIRCUIT COURT  1,I&D Claims (Damage Reserve),11.5,11/23/2018
CLERK OF THE CIRCUIT COURT  1,I&D Claims (Damage Reserve),5228,11/23/2018
CLERK OF THE CIRCUIT COURT  1,I&D Claims (Damage Reserve),4401.5,11/23/2018
CLERK OF THE CIRCUIT COURT  1,I&D Claims (Damage Reserve),7824.75,11/23/2018
CLERK OF THE CIRCUIT COURT  1,I&D Claims (Damage Reserve),128,11/23/2018
CLERK OF THE CIRCUIT COURT  1,I&D Claims (Damage Reserve),2728,11/23/2018
CLERK OF THE CIRCUIT COURT  1,I&D Claims (Damage Reserve),6149,11/23/2018
CLERK OF THE CIRCUIT COURT  1,I&D Claims (Damage Reserve),6149,11/23/2018
CLERK OF THE CIRCUIT COURT  1,I&D Claims (Damage Reserve),402.5,11/23/2018
CLERK OF THE CIRCUIT COURT  1,I&D Claims (Damage Reserve),402,11/30/2018
CLERK OF THE CIRCUIT COURT  1,I&D Claims (Damage Reserve),287.25,12/11/2018
"CLEVER DEVICES, LTD",Applications Support,745357.7,1/5/2018
"CLEVER DEVICES, LTD",Applications Support,372678.85,2/14/2018
"CLEVER DEVICES, LTD",Applications Support,277500,2/15/2018
"CLEVER DEVICES, LTD",Professional / Technical,49800,3/5/2018
"CLEVER DEVICES, LTD",Applications Support,372678.85,3/16/2018
"CLEVER DEVICES, LTD",Applications Support,157837.67,3/22/2018
"CLEVER DEVICES, LTD",Applications Support,372678.85,4/11/2018
"CLEVER DEVICES, LTD",Applications Support,17907.22,4/13/2018
"CLEVER DEVICES, LTD",Applications Support,990,5/9/2018
"CLEVER DEVICES, LTD",Applications Support,372678.85,5/17/2018
"CLEVER DEVICES, LTD",Applications Support,372678.85,7/9/2018
"CLEVER DEVICES, LTD",Applications Support,372678.85,7/11/2018
"CLEVER DEVICES, LTD",Equipment Purchases,64324.25,7/18/2018
"CLEVER DEVICES, LTD",Equipment Purchases,64324.26,7/19/2018
"CLEVER DEVICES, LTD",Applications Support,372678.85,8/15/2018
"CLEVER DEVICES, LTD",Applications Support,372678.85,9/19/2018
"CLEVER DEVICES, LTD",Applications Support,11519.9,10/18/2018
"CLEVER DEVICES, LTD",Applications Support,377673.88,10/25/2018
"CLEVER DEVICES, LTD",Applications Support,372678.85,11/13/2018
"CLEVER DEVICES, LTD",Applications Support,32436,11/15/2018
"CLEVER DEVICES, LTD",Applications Support,205.75,11/19/2018
"CLEVER DEVICES, LTD",Applications Support,387649.39,12/19/2018
"CLEVER DEVICES, LTD",Applications Support,500,12/27/2018
CMA/Flodyne/Hydradyne,Repair Non-Revenue Equipment,9184,1/5/2018
COLES COUNTY SHERIFF,I&D Claims (Damage Reserve),50,10/24/2018
COLETTE HOLT & ASSOCIATES,Consulting Services,82225,11/6/2018
COLETTE HOLT & ASSOCIATES,Consulting Services,50725,12/27/2018
COLUMBIA COLLEGE CHICAGO,Administrative Support,75,8/28/2018
"COMCAST OF CHICAGO, IL",Maintain/Repair Communications  Equip,41.71,1/11/2018
"COMCAST OF CHICAGO, IL",Maintain/Repair Communications  Equip,196.69,1/11/2018
"COMCAST OF CHICAGO, IL",Maintain/Repair Communications  Equip,201.07,1/31/2018
"COMCAST OF CHICAGO, IL",Maintain/Repair Communications  Equip,51.17,1/31/2018
"COMCAST OF CHICAGO, IL",Maintain/Repair Communications  Equip,51.67,3/16/2018
"COMCAST OF CHICAGO, IL",Maintain/Repair Communications  Equip,149.91,3/16/2018
"COMCAST OF CHICAGO, IL",Maintain/Repair Communications  Equip,259.22,4/3/2018
"COMCAST OF CHICAGO, IL",Maintain/Repair Communications  Equip,51.73,4/3/2018
"COMCAST OF CHICAGO, IL",Maintain/Repair Communications  Equip,191.07,5/8/2018
"COMCAST OF CHICAGO, IL",Maintain/Repair Communications  Equip,41.61,5/8/2018
"COMCAST OF CHICAGO, IL",Maintain/Repair Communications  Equip,201.07,6/15/2018
"COMCAST OF CHICAGO, IL",Maintain/Repair Communications  Equip,51.67,6/15/2018
"COMCAST OF CHICAGO, IL",Maintain/Repair Communications  Equip,191.07,7/5/2018
"COMCAST OF CHICAGO, IL",Maintain/Repair Communications  Equip,51.67,7/5/2018
"COMCAST OF CHICAGO, IL",Maintain/Repair Communications  Equip,189.43,8/3/2018
"COMCAST OF CHICAGO, IL",Maintain/Repair Communications  Equip,51.67,8/3/2018
"COMCAST OF CHICAGO, IL",Maintain/Repair Communications  Equip,199.43,8/28/2018
"COMCAST OF CHICAGO, IL",Maintain/Repair Communications  Equip,51.67,8/28/2018
"COMCAST OF CHICAGO, IL",Maintain/Repair Communications  Equip,191.07,10/2/2018
"COMCAST OF CHICAGO, IL",Maintain/Repair Communications  Equip,41.67,10/2/2018
"COMCAST OF CHICAGO, IL",Maintain/Repair Communications  Equip,201.05,10/26/2018
"COMCAST OF CHICAGO, IL",Maintain/Repair Communications  Equip,51.67,10/26/2018
"COMCAST OF CHICAGO, IL",Maintain/Repair Communications  Equip,191.05,11/29/2018
"COMCAST OF CHICAGO, IL",Maintain/Repair Communications  Equip,41.67,11/29/2018
"COMCAST OF CHICAGO, IL",Maintain/Repair Communications  Equip,191.05,12/28/2018
"COMCAST OF CHICAGO, IL",Maintain/Repair Communications  Equip,41.67,12/28/2018
"COMET MESSENGER SERVICE, INC.",Cash Management,12.75,1/5/2018
"COMET MESSENGER SERVICE, INC.",Couriers,31.36,1/5/2018
"COMET MESSENGER SERVICE, INC.",Cash Management,19.5,1/12/2018
"COMET MESSENGER SERVICE, INC.",Cash Management,13,1/19/2018
"COMET MESSENGER SERVICE, INC.",I&D Claims (Damage Reserve),128.49,1/23/2018
"COMET MESSENGER SERVICE, INC.",Cash Management,6.5,1/26/2018
"COMET MESSENGER SERVICE, INC.",Cash Management,19,2/2/2018
"COMET MESSENGER SERVICE, INC.",Administrative Support,221.25,2/6/2018
"COMET MESSENGER SERVICE, INC.",Cash Management,6.5,2/9/2018
"COMET MESSENGER SERVICE, INC.",I&D Claims (Damage Reserve),24.98,2/13/2018
"COMET MESSENGER SERVICE, INC.",Cash Management,19.5,2/16/2018
"COMET MESSENGER SERVICE, INC.",Cash Management,6.5,2/23/2018
"COMET MESSENGER SERVICE, INC.",Cash Management,19.25,3/2/2018
"COMET MESSENGER SERVICE, INC.",I&D Claims (Damage Reserve),49.95,3/2/2018
"COMET MESSENGER SERVICE, INC.",Administrative Support,285.6,3/9/2018
"COMET MESSENGER SERVICE, INC.",Cash Management,6.5,3/9/2018
"COMET MESSENGER SERVICE, INC.",I&D Claims (Damage Reserve),105.21,3/9/2018
"COMET MESSENGER SERVICE, INC.",Administrative Support,312.61,3/16/2018
"COMET MESSENGER SERVICE, INC.",Cash Management,13,3/16/2018
"COMET MESSENGER SERVICE, INC.",Administrative Support,207.99,3/20/2018
"COMET MESSENGER SERVICE, INC.",Cash Management,13,3/23/2018
"COMET MESSENGER SERVICE, INC.",I&D Claims (Damage Reserve),57.1,3/28/2018
"COMET MESSENGER SERVICE, INC.",Cash Management,26,3/30/2018
"COMET MESSENGER SERVICE, INC.",Cash Management,6.5,4/6/2018
"COMET MESSENGER SERVICE, INC.",Administrative Support,393.42,4/10/2018
"COMET MESSENGER SERVICE, INC.",I&D Claims (Damage Reserve),63.41,4/10/2018
"COMET MESSENGER SERVICE, INC.",Administrative Support,6.5,4/11/2018
"COMET MESSENGER SERVICE, INC.",Cash Management,6.5,4/13/2018
"COMET MESSENGER SERVICE, INC.",Administrative Support,275.6,4/19/2018
"COMET MESSENGER SERVICE, INC.",Cash Management,6.5,4/20/2018
"COMET MESSENGER SERVICE, INC.",I&D Claims (Damage Reserve),41.19,4/20/2018
"COMET MESSENGER SERVICE, INC.",Administrative Support,16.65,4/24/2018
"COMET MESSENGER SERVICE, INC.",Administrative Support,200.2,4/27/2018
"COMET MESSENGER SERVICE, INC.",Cash Management,6.5,5/1/2018
"COMET MESSENGER SERVICE, INC.",Cash Management,13,5/4/2018
"COMET MESSENGER SERVICE, INC.",Cash Management,13,5/11/2018
"COMET MESSENGER SERVICE, INC.",Administrative Support,198.7,5/15/2018
"COMET MESSENGER SERVICE, INC.",I&D Claims (Damage Reserve),120.22,5/16/2018
"COMET MESSENGER SERVICE, INC.",Administrative Support,144.26,5/18/2018
"COMET MESSENGER SERVICE, INC.",Cash Management,25.5,5/18/2018
"COMET MESSENGER SERVICE, INC.",Administrative Support,16.96,5/29/2018
"COMET MESSENGER SERVICE, INC.",I&D Claims (Damage Reserve),127.38,6/1/2018
"COMET MESSENGER SERVICE, INC.",Administrative Support,406.95,6/5/2018
"COMET MESSENGER SERVICE, INC.",Cash Management,32.5,6/6/2018
"COMET MESSENGER SERVICE, INC.",Administrative Support,6.5,6/8/2018
"COMET MESSENGER SERVICE, INC.",Cash Management,6.5,6/8/2018
"COMET MESSENGER SERVICE, INC.",Administrative Support,32.5,6/14/2018
"COMET MESSENGER SERVICE, INC.",Cash Management,13,6/14/2018
"COMET MESSENGER SERVICE, INC.",Administrative Support,153.39,6/22/2018
"COMET MESSENGER SERVICE, INC.",Cash Management,13,6/28/2018
"COMET MESSENGER SERVICE, INC.",Cash Management,6.5,6/29/2018
"COMET MESSENGER SERVICE, INC.",I&D Claims (Damage Reserve),41.62,6/29/2018
"COMET MESSENGER SERVICE, INC.",Administrative Support,139.08,7/6/2018
"COMET MESSENGER SERVICE, INC.",Cash Management,19.5,7/6/2018
"COMET MESSENGER SERVICE, INC.",Cash Management,6.5,7/13/2018
"COMET MESSENGER SERVICE, INC.",Cash Management,6.5,7/26/2018
"COMET MESSENGER SERVICE, INC.",Cash Management,6.5,7/27/2018
"COMET MESSENGER SERVICE, INC.",Administrative Support,43.82,8/3/2018
"COMET MESSENGER SERVICE, INC.",Cash Management,25.75,8/3/2018
"COMET MESSENGER SERVICE, INC.",Administrative Support,122.76,8/7/2018
"COMET MESSENGER SERVICE, INC.",I&D Claims (Damage Reserve),39.56,8/7/2018
"COMET MESSENGER SERVICE, INC.",I&D Claims (Damage Reserve),224.17,8/8/2018
"COMET MESSENGER SERVICE, INC.",Administrative Support,99.61,8/10/2018
"COMET MESSENGER SERVICE, INC.",Cash Management,6.5,8/10/2018
"COMET MESSENGER SERVICE, INC.",Administrative Support,39,8/17/2018
"COMET MESSENGER SERVICE, INC.",I&D Claims (Damage Reserve),20.81,8/17/2018
"COMET MESSENGER SERVICE, INC.",Cash Management,6.5,8/22/2018
"COMET MESSENGER SERVICE, INC.",Administrative Support,338.56,8/24/2018
"COMET MESSENGER SERVICE, INC.",Cash Management,6.5,8/24/2018
"COMET MESSENGER SERVICE, INC.",Administrative Support,97.9,8/31/2018
"COMET MESSENGER SERVICE, INC.",Cash Management,6.5,8/31/2018
"COMET MESSENGER SERVICE, INC.",Administrative Support,243.06,9/7/2018
"COMET MESSENGER SERVICE, INC.",Cash Management,6.5,9/7/2018
"COMET MESSENGER SERVICE, INC.",I&D Claims (Damage Reserve),69.82,9/7/2018
"COMET MESSENGER SERVICE, INC.",Administrative Support,69.96,9/14/2018
"COMET MESSENGER SERVICE, INC.",Cash Management,6.5,9/14/2018
"COMET MESSENGER SERVICE, INC.",Administrative Support,117.06,9/18/2018
"COMET MESSENGER SERVICE, INC.",Administrative Support,67.82,9/21/2018
"COMET MESSENGER SERVICE, INC.",Cash Management,6.5,9/21/2018
"COMET MESSENGER SERVICE, INC.",I&D Claims (Damage Reserve),62.43,9/21/2018
"COMET MESSENGER SERVICE, INC.",Cash Management,19.5,9/28/2018
"COMET MESSENGER SERVICE, INC.",Administrative Support,140.18,10/2/2018
"COMET MESSENGER SERVICE, INC.",Cash Management,6.5,10/5/2018
"COMET MESSENGER SERVICE, INC.",I&D Claims (Damage Reserve),112.21,10/5/2018
"COMET MESSENGER SERVICE, INC.",Administrative Support,397.27,10/11/2018
"COMET MESSENGER SERVICE, INC.",Administrative Support,32.5,10/12/2018
"COMET MESSENGER SERVICE, INC.",Cash Management,31.75,10/12/2018
"COMET MESSENGER SERVICE, INC.",I&D Claims (Damage Reserve),20.81,10/12/2018
"COMET MESSENGER SERVICE, INC.",Cash Management,6.5,10/23/2018
"COMET MESSENGER SERVICE, INC.",I&D Claims (Damage Reserve),154.91,10/24/2018
"COMET MESSENGER SERVICE, INC.",Administrative Support,150.08,10/26/2018
"COMET MESSENGER SERVICE, INC.",Cash Management,6.5,10/26/2018
"COMET MESSENGER SERVICE, INC.",I&D Claims (Damage Reserve),50,10/26/2018
"COMET MESSENGER SERVICE, INC.",Administrative Support,86.65,11/2/2018
"COMET MESSENGER SERVICE, INC.",I&D Claims (Damage Reserve),142.69,11/2/2018
"COMET MESSENGER SERVICE, INC.",Administrative Support,164.88,11/6/2018
"COMET MESSENGER SERVICE, INC.",Cash Management,6.5,11/6/2018
"COMET MESSENGER SERVICE, INC.",Administrative Support,31.14,11/7/2018
"COMET MESSENGER SERVICE, INC.",Cash Management,13,11/8/2018
"COMET MESSENGER SERVICE, INC.",Cash Management,6.5,11/16/2018
"COMET MESSENGER SERVICE, INC.",I&D Claims (Damage Reserve),41.62,11/16/2018
"COMET MESSENGER SERVICE, INC.",Administrative Support,206.08,11/20/2018
"COMET MESSENGER SERVICE, INC.",Cash Management,6.5,11/23/2018
"COMET MESSENGER SERVICE, INC.",Couriers,16.65,11/23/2018
"COMET MESSENGER SERVICE, INC.",Cash Management,19.25,11/30/2018
"COMET MESSENGER SERVICE, INC.",Administrative Support,73.05,12/4/2018
"COMET MESSENGER SERVICE, INC.",Cash Management,6.5,12/7/2018
"COMET MESSENGER SERVICE, INC.",I&D Claims (Damage Reserve),134.52,12/7/2018
"COMET MESSENGER SERVICE, INC.",I&D Claims (Damage Reserve),43.79,12/14/2018
"COMET MESSENGER SERVICE, INC.",Administrative Support,18.98,12/18/2018
"COMET MESSENGER SERVICE, INC.",Administrative Support,150.25,12/19/2018
"COMET MESSENGER SERVICE, INC.",Cash Management,6.25,12/21/2018
"COMET MESSENGER SERVICE, INC.",I&D Claims (Damage Reserve),41.62,12/21/2018
"COMET MESSENGER SERVICE, INC.",Administrative Support,202.33,12/24/2018
"COMET MESSENGER SERVICE, INC.",Cash Management,6.5,12/28/2018
COMFORT INN & SUITES,Travel & Seminar,789.21,12/28/2018
COMFORT INN & SUITES,Travel & Seminar,964.59,12/28/2018
COMFORT INN & SUITES,Travel & Seminar,964.59,12/28/2018
COMMONWEALTH EDISON CO.,Contract Construction,1443084.3,5/18/2018
COMMONWEALTH EDISON CO.,Contract Construction,1538954.1,7/27/2018
COMMONWEALTH EDISON CO.,Contract Construction,1714650,9/19/2018
COMMONWEALTH EDISON CO.,Contract Construction,1571762.5,11/16/2018
COMMONWEALTH EDISON CO.,Contract Construction,4420341.97,11/28/2018
COMMONWEALTH EDISON.,Real Estate,53.26,1/12/2018
COMMONWEALTH EDISON.,Real Estate,107.49,1/26/2018
COMMONWEALTH EDISON.,"Facilities Operating Expenses (Rent,Utilities,etc)",268447.43,2/5/2018
COMMONWEALTH EDISON.,"Facilities Operating Expenses (Rent,Utilities,etc)",434702.95,3/7/2018
COMMONWEALTH EDISON.,Real Estate,665.8,3/7/2018
COMMONWEALTH EDISON.,"Facilities Operating Expenses (Rent,Utilities,etc)",300580.44,3/9/2018
COMMONWEALTH EDISON.,"Facilities Operating Expenses (Rent,Utilities,etc)",186462.82,3/14/2018
COMMONWEALTH EDISON.,"Facilities Operating Expenses (Rent,Utilities,etc)",225200.66,3/15/2018
COMMONWEALTH EDISON.,Real Estate,276.77,3/28/2018
COMMONWEALTH EDISON.,Real Estate,26.58,4/4/2018
COMMONWEALTH EDISON.,Real Estate,2949.84,4/11/2018
COMMONWEALTH EDISON.,"Facilities Operating Expenses (Rent,Utilities,etc)",320311.9,4/12/2018
COMMONWEALTH EDISON.,Real Estate,297.47,4/25/2018
COMMONWEALTH EDISON.,Real Estate,69.86,5/9/2018
COMMONWEALTH EDISON.,"Facilities Operating Expenses (Rent,Utilities,etc)",272480.64,6/8/2018
COMMONWEALTH EDISON.,"Facilities Operating Expenses (Rent,Utilities,etc)",287808.76,6/26/2018
COMMONWEALTH EDISON.,"Facilities Operating Expenses (Rent,Utilities,etc)",258755.23,7/6/2018
COMMONWEALTH EDISON.,"Facilities Operating Expenses (Rent,Utilities,etc)",334490.36,8/13/2018
COMMONWEALTH EDISON.,"Facilities Operating Expenses (Rent,Utilities,etc)",217139.21,9/7/2018
COMMONWEALTH EDISON.,"Facilities Operating Expenses (Rent,Utilities,etc)",111879.34,9/11/2018
COMMONWEALTH EDISON.,"Facilities Operating Expenses (Rent,Utilities,etc)",228527.75,10/5/2018
COMMONWEALTH EDISON.,Real Estate,29.67,11/9/2018
COMMONWEALTH EDISON.,"Facilities Operating Expenses (Rent,Utilities,etc)",166933.25,12/18/2018
COMMONWEALTH EDISON.,"Facilities Operating Expenses (Rent,Utilities,etc)",62602.99,12/20/2018
COMMONWEALTH EDISON.,"Facilities Operating Expenses (Rent,Utilities,etc)",218394.11,12/28/2018
COMPASS MINERALS AMERICA INC,"Facilities Operating Expenses (Rent,Utilities,etc)",13559.27,1/17/2018
COMPASS MINERALS AMERICA INC,"Facilities Operating Expenses (Rent,Utilities,etc)",30255.21,3/21/2018
COMPASS MINERALS AMERICA INC,"Facilities Operating Expenses (Rent,Utilities,etc)",15246.83,5/18/2018
COMPASS MINERALS AMERICA INC,"Facilities Operating Expenses (Rent,Utilities,etc)",4841.52,5/25/2018
COMPASS MINERALS AMERICA INC,"Facilities Operating Expenses (Rent,Utilities,etc)",10369.21,6/6/2018
COMPASS MINERALS AMERICA INC,"Facilities Operating Expenses (Rent,Utilities,etc)",14831.37,6/22/2018
COMPASS MINERALS AMERICA INC,"Facilities Operating Expenses (Rent,Utilities,etc)",20543.45,6/29/2018
COMPUTER AID INC,Applications Support,39715.12,1/22/2018
COMPUTER AID INC,Consulting Services,100012.5,1/22/2018
COMPUTER AID INC,Applications Support,263923.2,1/24/2018
COMPUTER AID INC,Consulting Services,101130.11,1/29/2018
COMPUTER AID INC,Consulting Services,17762.5,2/5/2018
COMPUTER AID INC,Applications Support,263923.2,2/7/2018
COMPUTER AID INC,Applications Support,58726,2/8/2018
COMPUTER AID INC,Consulting Services,101130.11,2/14/2018
COMPUTER AID INC,Consulting Services,25200,2/15/2018
COMPUTER AID INC,Consulting Services,28306.25,3/5/2018
COMPUTER AID INC,Applications Support,20554,3/15/2018
COMPUTER AID INC,Applications Support,20067.04,3/16/2018
COMPUTER AID INC,Consulting Services,20937.84,3/20/2018
COMPUTER AID INC,Applications Support,308810,3/27/2018
COMPUTER AID INC,Consulting Services,101130.11,4/5/2018
COMPUTER AID INC,Applications Support,28804.36,4/10/2018
COMPUTER AID INC,Consulting Services,25506.25,4/10/2018
COMPUTER AID INC,Consulting Services,101130.11,4/16/2018
COMPUTER AID INC,Consulting Services,102731.6,4/17/2018
COMPUTER AID INC,Applications Support,40630,5/10/2018
COMPUTER AID INC,Applications Support,323332.2,6/1/2018
COMPUTER AID INC,Applications Support,43302.56,6/4/2018
COMPUTER AID INC,Consulting Services,101130.11,6/12/2018
COMPUTER AID INC,Applications Support,56866.93,7/9/2018
COMPUTER AID INC,Consulting Services,25462.5,7/11/2018
COMPUTER AID INC,Consulting Services,17864,7/17/2018
COMPUTER AID INC,Consulting Services,27115,7/18/2018
COMPUTER AID INC,Applications Support,332624.84,7/23/2018
COMPUTER AID INC,Applications Support,268937.75,7/26/2018
COMPUTER AID INC,Consulting Services,103051.59,7/31/2018
COMPUTER AID INC,Consulting Services,63810.56,8/3/2018
COMPUTER AID INC,Consulting Services,26716.25,8/7/2018
COMPUTER AID INC,Applications Support,311987,8/17/2018
COMPUTER AID INC,Consulting Services,103051.59,8/21/2018
COMPUTER AID INC,Consulting Services,20937.84,8/23/2018
COMPUTER AID INC,Applications Support,268937.75,8/24/2018
COMPUTER AID INC,Applications Support,322415.95,8/29/2018
COMPUTER AID INC,Consulting Services,206103.18,8/30/2018
COMPUTER AID INC,Applications Support,45917.88,9/19/2018
COMPUTER AID INC,Consulting Services,26875.75,9/25/2018
COMPUTER AID INC,Applications Support,76361.79,9/27/2018
COMPUTER AID INC,Consulting Services,103531.25,9/28/2018
COMPUTER AID INC,Applications Support,420450.2,10/17/2018
COMPUTER AID INC,Consulting Services,131442.59,10/25/2018
COMPUTER AID INC,Applications Support,383193.06,11/1/2018
COMPUTER AID INC,Consulting Services,81908.03,11/1/2018
COMPUTER AID INC,Consulting Services,24244,11/6/2018
COMPUTER AID INC,Applications Support,12428,11/8/2018
COMPUTER AID INC,Applications Support,396747,12/13/2018
COMPUTER AID INC,Consulting Services,57828.32,12/13/2018
COMPUTER AID INC,Consulting Services,120864.91,12/18/2018
COMPUTER AID INC,Consulting Services,105500.02,12/28/2018
"COMPUTER AID, INC.",Consulting Services,21750,1/10/2018
"COMPUTER PRODUCTS & SUPPLIES, INC.",Equipment Purchases,14810.85,1/31/2018
"COMPUTER PRODUCTS & SUPPLIES, INC.",Training - Students,1124,2/1/2018
COMTO NATIONAL HEADQUARTERS,Management,5100,5/24/2018
"CONCARE, INC.",Maintenance of Buildings,22108.82,2/7/2018
"CONCARE, INC.",Maintenance of Buildings,11054.41,12/5/2018
CONSOLIDATED PRINTING,Benefits,4300.74,8/22/2018
CONSOLIDATED PRINTING,Administrative Support,8061.26,12/20/2018
"CONSTELLATION NEW ENERGY GAS DIVISION, LLC","Facilities Operating Expenses (Rent,Utilities,etc)",674655.14,3/30/2018
"CONSTELLATION NEW ENERGY GAS DIVISION, LLC","Facilities Operating Expenses (Rent,Utilities,etc)",701025.04,5/4/2018
"CONSTELLATION NEW ENERGY GAS DIVISION, LLC","Facilities Operating Expenses (Rent,Utilities,etc)",282232.02,6/11/2018
"CONSTELLATION NEW ENERGY GAS DIVISION, LLC","Facilities Operating Expenses (Rent,Utilities,etc)",201084.95,6/28/2018
"CONSTELLATION NEW ENERGY GAS DIVISION, LLC","Facilities Operating Expenses (Rent,Utilities,etc)",22068.02,6/29/2018
"CONSTELLATION NEW ENERGY GAS DIVISION, LLC","Facilities Operating Expenses (Rent,Utilities,etc)",32179.95,7/20/2018
"CONSTELLATION NEW ENERGY GAS DIVISION, LLC","Facilities Operating Expenses (Rent,Utilities,etc)",41691.19,7/30/2018
"CONSTELLATION NEW ENERGY GAS DIVISION, LLC","Facilities Operating Expenses (Rent,Utilities,etc)",11006.49,9/6/2018
"CONSTELLATION NEW ENERGY GAS DIVISION, LLC","Facilities Operating Expenses (Rent,Utilities,etc)",7731.84,10/26/2018
"CONSTELLATION NEW ENERGY GAS DIVISION, LLC","Facilities Operating Expenses (Rent,Utilities,etc)",8490.17,12/18/2018
CONSTRUCTION SPECIFICATIONS INSTITUTE,Professional / Technical,420,6/26/2018
CONTINENTAL LANGUAGES LLC,I&D Claims (Damage Reserve),450,1/5/2018
CONTINENTAL LANGUAGES LLC,I&D Claims (Damage Reserve),210,3/6/2018
CONTINENTAL LANGUAGES LLC,I&D Claims (Damage Reserve),262.5,4/18/2018
CONTINENTAL LANGUAGES LLC,I&D Claims (Damage Reserve),210,5/18/2018
CONTINENTAL LANGUAGES LLC,I&D Claims (Damage Reserve),600,10/2/2018
CONTINENTAL LANGUAGES LLC,I&D Claims (Damage Reserve),390,11/2/2018
CONTINENTAL LANGUAGES LLC,I&D Claims (Damage Reserve),225,12/5/2018
CONTINENTAL LANGUAGES LLC,I&D Claims (Damage Reserve),345,12/5/2018
